{"text_format":"1","workbook":"xlsx","n_sheets":4,"sheets":["Stückliste","Bestellung","Ergebnis","DropDown"],"not_rendered":{"charts":0,"images":0,"macros":1,"external_links":0,"defined_names":9,"comments":0,"pivot_tables":0},"unopened":[],"bounds":{"document_bytes":16777216,"sheet_cells":100000,"rows_first":2000,"rows_last":500,"rows_between":2000,"halvings":0,"cell_chars":16384,"cell_head_chars":4096},"cells_cut":0,"cells_raw":0,"read":"whole","date_system":"1900"}

{"sheet":"Stückliste","index":0,"n_rows":72,"n_cols":22,"rows_kept":72,"cut":false,"hidden":false,"merged":[]}
[]
["Stückliste",null,null,null,null,null,null,null,null,null,null,null,null,"Einzelprodukte"]
[null,null,null,null,null,null,null,null,null,null,null,null,null,"Feldtyp","Zusatz","Connection Type","Innere Unterteilung","Polzahl","Art","Pagode","SPD","Verschluss"]
["Feldtyp","Anzahl /Feld","Identnummer","Artikelbeschreibung","Zusatz","Connection Type","Innere Unterteilung","Polzahl","Art","Pagode","SPD","Verschluss",null,"TEST",{"$f":"_xlfn.TEXTJOIN(\";\", FALSE, IF(_xlfn.UNIQUE(_xlfn._xlws.FILTER(tblStückliste[Zusatz], tblStückliste[Feldtyp]=tblFeldtypen[[#This Row],[Feldtyp]]))=\"\", \"Frei\", _xlfn.UNIQUE(_xlfn._xlws.FILTER(tblStückliste[Zusatz], tblStückliste[Feldtyp]=tblFeldtypen[[#This Row],[Feldtyp]]))))","v":"GF;FOP;OP;Frei"},{"$f":"_xlfn.TEXTJOIN(\";\", FALSE, IF(_xlfn.UNIQUE(_xlfn._xlws.FILTER(tblStückliste[Connection Type], tblStückliste[Feldtyp]=tblFeldtypen[[#This Row],[Feldtyp]]))=\"\", \"Frei\", _xlfn.UNIQUE(_xlfn._xlws.FILTER(tblStückliste[Connection Type], tblStückliste[Feldtyp]=tblFeldtypen[[#This Row],[Feldtyp]]))))","v":"Frei;Typ 1;Typ 3;Typ 4;Typ 5;Typ 2"},{"$f":"_xlfn.TEXTJOIN(\";\", FALSE, IF(_xlfn.UNIQUE(_xlfn._xlws.FILTER(tblStückliste[Innere Unterteilung], tblStückliste[Feldtyp]=tblFeldtypen[[#This Row],[Feldtyp]]))=\"\", \"Frei\", _xlfn.UNIQUE(_xlfn._xlws.FILTER(tblStückliste[Innere Unterteilung], tblStückliste[Feldtyp]=tblFeldtypen[[#This Row],[Feldtyp]]))))","v":"4a;4b;Frei;2"},{"$f":"_xlfn.TEXTJOIN(\";\", FALSE, IF(_xlfn.UNIQUE(_xlfn._xlws.FILTER(tblStückliste[Polzahl], tblStückliste[Feldtyp]=tblFeldtypen[[#This Row],[Feldtyp]]))=\"\", \"Frei\", _xlfn.UNIQUE(_xlfn._xlws.FILTER(tblStückliste[Polzahl], tblStückliste[Feldtyp]=tblFeldtypen[[#This Row],[Feldtyp]]))))","v":"3;4;Frei"},{"$f":"_xlfn.TEXTJOIN(\";\", FALSE, IF(_xlfn.UNIQUE(_xlfn._xlws.FILTER(tblStückliste[Art], tblStückliste[Feldtyp]=tblFeldtypen[[#This Row],[Feldtyp]]))=\"\", \"Frei\", _xlfn.UNIQUE(_xlfn._xlws.FILTER(tblStückliste[Art], tblStückliste[Feldtyp]=tblFeldtypen[[#This Row],[Feldtyp]]))))","v":"Fahrbar;Fest;Frei"},{"$f":"_xlfn.TEXTJOIN(\";\", FALSE, IF(_xlfn.UNIQUE(_xlfn._xlws.FILTER(tblStückliste[Pagode], tblStückliste[Feldtyp]=tblFeldtypen[[#This Row],[Feldtyp]]))=\"\", \"Frei\", _xlfn.UNIQUE(_xlfn._xlws.FILTER(tblStückliste[Pagode], tblStückliste[Feldtyp]=tblFeldtypen[[#This Row],[Feldtyp]]))))","v":"Frei"},{"$f":"_xlfn.TEXTJOIN(\";\", FALSE, IF(_xlfn.UNIQUE(_xlfn._xlws.FILTER(tblStückliste[SPD], tblStückliste[Feldtyp]=tblFeldtypen[[#This Row],[Feldtyp]]))=\"\", \"Frei\", _xlfn.UNIQUE(_xlfn._xlws.FILTER(tblStückliste[SPD], tblStückliste[Feldtyp]=tblFeldtypen[[#This Row],[Feldtyp]]))))","v":"Frei;SPD"},{"$f":"_xlfn.TEXTJOIN(\";\", FALSE, IF(_xlfn.UNIQUE(_xlfn._xlws.FILTER(tblStückliste[Verschluss], tblStückliste[Feldtyp]=tblFeldtypen[[#This Row],[Feldtyp]]))=\"\", \"Frei\", _xlfn.UNIQUE(_xlfn._xlws.FILTER(tblStückliste[Verschluss], tblStückliste[Feldtyp]=tblFeldtypen[[#This Row],[Feldtyp]]))))","v":"Frei;Stangenverschluss"}]
["TEST",3,"Artikelnummer1","Artikel1294","GF",null,"4a","3","Fahrbar",null,null,null,null,"TEST 2",{"$f":"_xlfn.TEXTJOIN(\";\", FALSE, IF(_xlfn.UNIQUE(_xlfn._xlws.FILTER(tblStückliste[Zusatz], tblStückliste[Feldtyp]=tblFeldtypen[[#This Row],[Feldtyp]]))=\"\", \"Frei\", _xlfn.UNIQUE(_xlfn._xlws.FILTER(tblStückliste[Zusatz], tblStückliste[Feldtyp]=tblFeldtypen[[#This Row],[Feldtyp]]))))","v":"Frei"},{"$f":"_xlfn.TEXTJOIN(\";\", FALSE, IF(_xlfn.UNIQUE(_xlfn._xlws.FILTER(tblStückliste[Connection Type], tblStückliste[Feldtyp]=tblFeldtypen[[#This Row],[Feldtyp]]))=\"\", \"Frei\", _xlfn.UNIQUE(_xlfn._xlws.FILTER(tblStückliste[Connection Type], tblStückliste[Feldtyp]=tblFeldtypen[[#This Row],[Feldtyp]]))))","v":"Frei;Typ 1;Typ 2"},{"$f":"_xlfn.TEXTJOIN(\";\", FALSE, IF(_xlfn.UNIQUE(_xlfn._xlws.FILTER(tblStückliste[Innere Unterteilung], tblStückliste[Feldtyp]=tblFeldtypen[[#This Row],[Feldtyp]]))=\"\", \"Frei\", _xlfn.UNIQUE(_xlfn._xlws.FILTER(tblStückliste[Innere Unterteilung], tblStückliste[Feldtyp]=tblFeldtypen[[#This Row],[Feldtyp]]))))","v":"4b;2;Frei"},{"$f":"_xlfn.TEXTJOIN(\";\", FALSE, IF(_xlfn.UNIQUE(_xlfn._xlws.FILTER(tblStückliste[Polzahl], tblStückliste[Feldtyp]=tblFeldtypen[[#This Row],[Feldtyp]]))=\"\", \"Frei\", _xlfn.UNIQUE(_xlfn._xlws.FILTER(tblStückliste[Polzahl], tblStückliste[Feldtyp]=tblFeldtypen[[#This Row],[Feldtyp]]))))","v":"Frei;4"},{"$f":"_xlfn.TEXTJOIN(\";\", FALSE, IF(_xlfn.UNIQUE(_xlfn._xlws.FILTER(tblStückliste[Art], tblStückliste[Feldtyp]=tblFeldtypen[[#This Row],[Feldtyp]]))=\"\", \"Frei\", _xlfn.UNIQUE(_xlfn._xlws.FILTER(tblStückliste[Art], tblStückliste[Feldtyp]=tblFeldtypen[[#This Row],[Feldtyp]]))))","v":"Fest;Fahrbar;Frei"},{"$f":"_xlfn.TEXTJOIN(\";\", FALSE, IF(_xlfn.UNIQUE(_xlfn._xlws.FILTER(tblStückliste[Pagode], tblStückliste[Feldtyp]=tblFeldtypen[[#This Row],[Feldtyp]]))=\"\", \"Frei\", _xlfn.UNIQUE(_xlfn._xlws.FILTER(tblStückliste[Pagode], tblStückliste[Feldtyp]=tblFeldtypen[[#This Row],[Feldtyp]]))))","v":"Frei"},{"$f":"_xlfn.TEXTJOIN(\";\", FALSE, IF(_xlfn.UNIQUE(_xlfn._xlws.FILTER(tblStückliste[SPD], tblStückliste[Feldtyp]=tblFeldtypen[[#This Row],[Feldtyp]]))=\"\", \"Frei\", _xlfn.UNIQUE(_xlfn._xlws.FILTER(tblStückliste[SPD], tblStückliste[Feldtyp]=tblFeldtypen[[#This Row],[Feldtyp]]))))","v":"Frei;SPD"},{"$f":"_xlfn.TEXTJOIN(\";\", FALSE, IF(_xlfn.UNIQUE(_xlfn._xlws.FILTER(tblStückliste[Verschluss], tblStückliste[Feldtyp]=tblFeldtypen[[#This Row],[Feldtyp]]))=\"\", \"Frei\", _xlfn.UNIQUE(_xlfn._xlws.FILTER(tblStückliste[Verschluss], tblStückliste[Feldtyp]=tblFeldtypen[[#This Row],[Feldtyp]]))))","v":"Frei"}]
["TEST",4,"Artikelnummer2","Artikel1295","FOP",null,"4b","3","Fahrbar",null,"SPD"]
["TEST",3,"Artikelnummer3","Artikel1296","GF","Typ 1",null,"4","Fahrbar"]
["TEST",3,"Artikelnummer3","Artikel1296","GF","Typ 3",null,"4","Fahrbar"]
["TEST",1,"Artikelnummer4","Artikel1297","GF",null,null,"4","Fest"]
["TEST",3,"Artikelnummer5","Artikel1298","OP","Typ 3",null,"4","Fest"]
["TEST",3,"Artikelnummer5","Artikel1298","OP","Typ 4",null,"4","Fest"]
["TEST",3,"Artikelnummer5","Artikel1298","OP","Typ 5",null,"4","Fest"]
["TEST",1,"ID123NR456","Artikel1234",null,"Typ 1",null,null,"Fahrbar"]
["TEST",1,"ID123NR457","Artikel1235",null,"Typ 1",null,null,"Fest"]
["TEST",1,"ID123NR458","Artikel1236",null,"Typ 1",null,null,"Fahrbar"]
["TEST",1,"ID123NR459","Artikel1237",null,"Typ 1",null,null,"Fahrbar"]
["TEST",1,"ID123NR460","Artikel1238",null,"Typ 1",null,null,"Fahrbar"]
["TEST",1,"ID123NR461","Artikel1239",null,"Typ 1",null,null,"Fahrbar"]
["TEST",2,"ID123NR462","Artikel1240",null,null,"4a",null,"Fest"]
["TEST",1,"ID123NR463","Artikel1241",null,null,"4a",null,"Fahrbar"]
["TEST",1,"ID123NR464","Artikel1242",null,null,"2",null,"Fahrbar"]
["TEST 2",1,"ID123NR465","Artikel1243",null,null,"4b",null,"Fest"]
["TEST 2",1,"ID123NR466","Artikel1244",null,null,"2","4","Fahrbar"]
["TEST 2",1,"ID123NR467","Artikel1245",null,null,null,"4","Fest"]
["TEST 2",1,"ID123NR468","Artikel1246",null,null,null,"4","Fahrbar"]
["TEST 2",1,"ID123NR469","Artikel1247",null,null,null,"4","Fest"]
["TEST 2",1,"ID123NR470","Artikel1248",null,null,null,null,"Fahrbar"]
["TEST 2",1,"ID123NR471","Artikel1249",null,null,null,null,"Fahrbar"]
["TEST 2",1,"ID123NR472","Artikel1250",null,null,null,null,"Fest"]
["TEST 2",1,"ID123NR473","Artikel1251",null,null,null,null,"Fahrbar"]
["TEST 2",1,"ID123NR474","Artikel1252",null,null,null,null,null,null,"SPD"]
["TEST 2",1,"ID123NR475","Artikel1253",null,null,null,null,"Fahrbar"]
["TEST 2",1,"ID123NR476","Artikel1254",null,null,null,null,"Fest"]
["TEST 2",2,"ID123NR477","Artikel1255",null,"Typ 1",null,null,"Fahrbar"]
["TEST 2",2,"ID123NR478","Artikel1256",null,"Typ 1",null,null,"Fest"]
["TEST 2",2,"ID123NR479","Artikel1257",null,"Typ 2",null,null,"Fahrbar"]
["TEST",2,"ID123NR480","Artikel1258",null,"Typ 2",null,null,"Fest"]
["TEST",2,"ID123NR481","Artikel1259",null,"Typ 3",null,null,"Fahrbar"]
["TEST",2,"ID123NR482","Artikel1260",null,"Typ 3",null,null,"Fest"]
["TEST",2,"ID123NR483","Artikel1261",null,"Typ 4",null,null,"Fahrbar"]
["TEST",2,"ID123NR484","Artikel1262",null,"Typ 4",null,null,"Fest"]
["TEST",2,"ID123NR485","Artikel1263",null,"Typ 5",null,null,"Fahrbar"]
["TEST",2,"ID123NR486","Artikel1264",null,"Typ 5",null,null,"Fest"]
["TEST",1,"ID123NR487","Artikel1265","GF"]
["TEST",1,"ID123NR488","Artikel1266","GF"]
["TEST",2,"ID123NR489","Artikel1267",null,null,null,null,"Fest"]
["TEST",1,"ID123NR490","Artikel1268","GF","Typ 1"]
["TEST",2,"ID123NR491","Artikel1269","GF","Typ 1"]
["TEST",6,"ID123NR492","Artikel1270","GF",null,null,"3"]
["TEST",6,"ID123NR493","Artikel1271",null,null,null,"3","Fahrbar"]
["TEST",6,"ID123NR494","Artikel1272",null,null,null,null,"Fest"]
["TEST",6,"ID123NR495","Artikel1273","GF"]
["TEST",1,"ID123NR496","Artikel1274",null,null,null,null,null,null,null,"Stangenverschluss"]
["TEST",1,"ID123NR497","Artikel1275",null,null,null,null,null,null,null,"Stangenverschluss"]
["TEST",12,"ID123NR498","Artikel1276","GF"]
["TEST",1,"ID123NR499","Artikel1277",null,null,null,null,"Fest"]
["TEST",1,"ID123NR500","Artikel1278",null,null,null,null,"Fest"]
["TEST",6,"ID123NR501","Artikel1279","GF"]
["TEST",4,"ID123NR502","Artikel1280","GF"]
["TEST",4,"ID123NR503","Artikel1281","GF",null,"4a"]
["TEST",4,"ID123NR504","Artikel1282","GF",null,"4a"]
["TEST",2,"ID123NR505","Artikel1283","GF",null,"4a"]
["TEST",2,"ID123NR506","Artikel1284","GF",null,"4a"]
["TEST",4,"ID123NR507","Artikel1285","GF"]
["TEST",4,"ID123NR508","Artikel1286","GF"]
["TEST",1,"ID123NR509","Artikel1287","GF"]
["TEST",4,"ID123NR510","Artikel1288","GF"]
["TEST",1,"ID123NR511","Artikel1289","GF"]
["TEST",4,"ID123NR512","Artikel1290","GF"]
["TEST",1,"ID123NR513","Artikel1291","GF"]
["TEST",5,"ID123NR514","Artikel1292","GF"]
["TEST",8,"ID123NR515","Artikel1293","GF"]

{"sheet":"Bestellung","index":1,"n_rows":14,"n_cols":21,"rows_kept":14,"cut":false,"hidden":false,"merged":[]}
[]
[]
[]
[]
[]
["Bestellung"]
["Position","Feldtyp","Menge","Zusatz","Connection Type","Innere Unterteilung","Polzahl","Art","Pagode","SPD","Verschluss"]
[1,"TEST",5,null,"Typ 1",null,null,"Fahrbar",null,null,null,null,{"$f":"tblVariante[#Headers]","v":"Feldtyp"},"Zusatz","Connection Type","Innere Unterteilung","Polzahl","Art","Pagode","SPD","Verschluss"]
[null,"TEST",null,"FOP","Typ 1","4b","4","Fahrbar","Frei","SPD","Stangenverschluss",null,{"$f":"_xlfn.UNIQUE(tblVariante[Feldtyp])","v":"TEST"},{"$f":"_xlfn._xlws.SORT(_xlfn.UNIQUE(_xlfn._xlws.FILTER(tblVariante[Zusatz],tblVariante[Feldtyp]=B9,\"\")))","v":"FOP"},{"$f":"_xlfn._xlws.SORT(_xlfn.UNIQUE(_xlfn._xlws.FILTER(tblVariante[Connection Type],--(tblVariante[Zusatz]=D9),\"\")))","v":"Frei"},{"$f":"_xlfn.UNIQUE(_xlfn._xlws.FILTER(tblVariante[Innere Unterteilung],--(tblVariante[Connection Type]=E9),\"\"))","v":"4a"},{"$f":"_xlfn.UNIQUE(_xlfn._xlws.FILTER(tblVariante[Polzahl],--(tblVariante[Innere Unterteilung]=F9),\"\"))","v":"3"},{"$f":"_xlfn.UNIQUE(_xlfn._xlws.FILTER(tblVariante[Art],--(tblVariante[Polzahl]=G9),\"\"))","v":"Fahrbar"},{"$f":"_xlfn.UNIQUE(_xlfn._xlws.FILTER(tblVariante[Pagode],--(tblVariante[Art]=H9),\"\"))","v":"Frei"},{"$f":"_xlfn.UNIQUE(_xlfn._xlws.FILTER(tblVariante[SPD],--(tblVariante[Pagode]=I9),\"\"))","v":"Frei"},{"$f":"_xlfn.UNIQUE(_xlfn._xlws.FILTER(tblVariante[Verschluss],--(tblVariante[SPD]=J9),\"\"))","v":"Frei"}]
[null,"TEST 2",null,"Frei","Typ 3","4b","4","Frei",0,null,null,null,"TEST 2","Frei","Typ 1","4b","4","Fest",null,"SPD","Stangenverschluss"]
[null,"TEST",null,"FOP","Typ 1","Frei",null,null,null,null,null,null,null,"GF","Typ 2","Frei","Frei","Frei"]
[null,"TEST 2",null,"Frei","Typ 2","4b","4","Frei","Frei","SPD","Stangenverschluss",null,null,"OP","Typ 3","2"]
[null,null,null,null,null,null,null,null,null,null,null,null,null,null,"Typ 4"]
[null,null,null,null,null,null,null,null,null,null,null,null,null,null,"Typ 5"]

{"sheet":"Ergebnis","index":2,"n_rows":9,"n_cols":3,"rows_kept":9,"cut":false,"hidden":false,"merged":[]}
[]
["Ergebnis"]
["Identnummer","Artikelbeschreibung","Anzahl / Feld"]
["ID123NR456","Artikel1234",5]
["ID123NR458","Artikel1236",5]
["ID123NR459","Artikel1237",5]
["ID123NR460","Artikel1238",5]
["ID123NR461","Artikel1239",5]
["ID123NR477","Artikel1255",10]

{"sheet":"DropDown","index":3,"n_rows":3565,"n_cols":9,"rows_kept":3565,"cut":false,"hidden":false,"merged":[]}
["Feldtyp","Zusatz","Connection Type","Innere Unterteilung","Polzahl","Art","Pagode","SPD","Verschluss"]
["TEST","GF","Frei","4a","3","Fahrbar","Frei","Frei","Frei"]
["TEST","GF","Frei","4a","3","Fahrbar","Frei","Frei","Stangenverschluss"]
["TEST","GF","Frei","4a","3","Fahrbar","Frei","SPD","Frei"]
["TEST","GF","Frei","4a","3","Fahrbar","Frei","SPD","Stangenverschluss"]
["TEST","GF","Frei","4a","3","Fest","Frei","Frei","Frei"]
["TEST","GF","Frei","4a","3","Fest","Frei","Frei","Stangenverschluss"]
["TEST","GF","Frei","4a","3","Fest","Frei","SPD","Frei"]
["TEST","GF","Frei","4a","3","Fest","Frei","SPD","Stangenverschluss"]
["TEST","GF","Frei","4a","3","Frei","Frei","Frei","Frei"]
["TEST","GF","Frei","4a","3","Frei","Frei","Frei","Stangenverschluss"]
["TEST","GF","Frei","4a","3","Frei","Frei","SPD","Frei"]
["TEST","GF","Frei","4a","3","Frei","Frei","SPD","Stangenverschluss"]
["TEST","GF","Frei","4a","4","Fahrbar","Frei","Frei","Frei"]
["TEST","GF","Frei","4a","4","Fahrbar","Frei","Frei","Stangenverschluss"]
["TEST","GF","Frei","4a","4","Fahrbar","Frei","SPD","Frei"]
["TEST","GF","Frei","4a","4","Fahrbar","Frei","SPD","Stangenverschluss"]
["TEST","GF","Frei","4a","4","Fest","Frei","Frei","Frei"]
["TEST","GF","Frei","4a","4","Fest","Frei","Frei","Stangenverschluss"]
["TEST","GF","Frei","4a","4","Fest","Frei","SPD","Frei"]
["TEST","GF","Frei","4a","4","Fest","Frei","SPD","Stangenverschluss"]
["TEST","GF","Frei","4a","4","Frei","Frei","Frei","Frei"]
["TEST","GF","Frei","4a","4","Frei","Frei","Frei","Stangenverschluss"]
["TEST","GF","Frei","4a","4","Frei","Frei","SPD","Frei"]
["TEST","GF","Frei","4a","4","Frei","Frei","SPD","Stangenverschluss"]
["TEST","GF","Frei","4a","Frei","Fahrbar","Frei","Frei","Frei"]
["TEST","GF","Frei","4a","Frei","Fahrbar","Frei","Frei","Stangenverschluss"]
["TEST","GF","Frei","4a","Frei","Fahrbar","Frei","SPD","Frei"]
["TEST","GF","Frei","4a","Frei","Fahrbar","Frei","SPD","Stangenverschluss"]
["TEST","GF","Frei","4a","Frei","Fest","Frei","Frei","Frei"]
["TEST","GF","Frei","4a","Frei","Fest","Frei","Frei","Stangenverschluss"]
["TEST","GF","Frei","4a","Frei","Fest","Frei","SPD","Frei"]
["TEST","GF","Frei","4a","Frei","Fest","Frei","SPD","Stangenverschluss"]
["TEST","GF","Frei","4a","Frei","Frei","Frei","Frei","Frei"]
["TEST","GF","Frei","4a","Frei","Frei","Frei","Frei","Stangenverschluss"]
["TEST","GF","Frei","4a","Frei","Frei","Frei","SPD","Frei"]
["TEST","GF","Frei","4a","Frei","Frei","Frei","SPD","Stangenverschluss"]
["TEST","GF","Frei","4b","3","Fahrbar","Frei","Frei","Frei"]
["TEST","GF","Frei","4b","3","Fahrbar","Frei","Frei","Stangenverschluss"]
["TEST","GF","Frei","4b","3","Fahrbar","Frei","SPD","Frei"]
["TEST","GF","Frei","4b","3","Fahrbar","Frei","SPD","Stangenverschluss"]
["TEST","GF","Frei","4b","3","Fest","Frei","Frei","Frei"]
["TEST","GF","Frei","4b","3","Fest","Frei","Frei","Stangenverschluss"]
["TEST","GF","Frei","4b","3","Fest","Frei","SPD","Frei"]
["TEST","GF","Frei","4b","3","Fest","Frei","SPD","Stangenverschluss"]
["TEST","GF","Frei","4b","3","Frei","Frei","Frei","Frei"]
["TEST","GF","Frei","4b","3","Frei","Frei","Frei","Stangenverschluss"]
["TEST","GF","Frei","4b","3","Frei","Frei","SPD","Frei"]
["TEST","GF","Frei","4b","3","Frei","Frei","SPD","Stangenverschluss"]
["TEST","GF","Frei","4b","4","Fahrbar","Frei","Frei","Frei"]
["TEST","GF","Frei","4b","4","Fahrbar","Frei","Frei","Stangenverschluss"]
["TEST","GF","Frei","4b","4","Fahrbar","Frei","SPD","Frei"]
["TEST","GF","Frei","4b","4","Fahrbar","Frei","SPD","Stangenverschluss"]
["TEST","GF","Frei","4b","4","Fest","Frei","Frei","Frei"]
["TEST","GF","Frei","4b","4","Fest","Frei","Frei","Stangenverschluss"]
["TEST","GF","Frei","4b","4","Fest","Frei","SPD","Frei"]
["TEST","GF","Frei","4b","4","Fest","Frei","SPD","Stangenverschluss"]
["TEST","GF","Frei","4b","4","Frei","Frei","Frei","Frei"]
["TEST","GF","Frei","4b","4","Frei","Frei","Frei","Stangenverschluss"]
["TEST","GF","Frei","4b","4","Frei","Frei","SPD","Frei"]
["TEST","GF","Frei","4b","4","Frei","Frei","SPD","Stangenverschluss"]
["TEST","GF","Frei","4b","Frei","Fahrbar","Frei","Frei","Frei"]
["TEST","GF","Frei","4b","Frei","Fahrbar","Frei","Frei","Stangenverschluss"]
["TEST","GF","Frei","4b","Frei","Fahrbar","Frei","SPD","Frei"]
["TEST","GF","Frei","4b","Frei","Fahrbar","Frei","SPD","Stangenverschluss"]
["TEST","GF","Frei","4b","Frei","Fest","Frei","Frei","Frei"]
["TEST","GF","Frei","4b","Frei","Fest","Frei","Frei","Stangenverschluss"]
["TEST","GF","Frei","4b","Frei","Fest","Frei","SPD","Frei"]
["TEST","GF","Frei","4b","Frei","Fest","Frei","SPD","Stangenverschluss"]
["TEST","GF","Frei","4b","Frei","Frei","Frei","Frei","Frei"]
["TEST","GF","Frei","4b","Frei","Frei","Frei","Frei","Stangenverschluss"]
["TEST","GF","Frei","4b","Frei","Frei","Frei","SPD","Frei"]
["TEST","GF","Frei","4b","Frei","Frei","Frei","SPD","Stangenverschluss"]
["TEST","GF","Frei","Frei","3","Fahrbar","Frei","Frei","Frei"]
["TEST","GF","Frei","Frei","3","Fahrbar","Frei","Frei","Stangenverschluss"]
["TEST","GF","Frei","Frei","3","Fahrbar","Frei","SPD","Frei"]
["TEST","GF","Frei","Frei","3","Fahrbar","Frei","SPD","Stangenverschluss"]
["TEST","GF","Frei","Frei","3","Fest","Frei","Frei","Frei"]
["TEST","GF","Frei","Frei","3","Fest","Frei","Frei","Stangenverschluss"]
["TEST","GF","Frei","Frei","3","Fest","Frei","SPD","Frei"]
["TEST","GF","Frei","Frei","3","Fest","Frei","SPD","Stangenverschluss"]
["TEST","GF","Frei","Frei","3","Frei","Frei","Frei","Frei"]
["TEST","GF","Frei","Frei","3","Frei","Frei","Frei","Stangenverschluss"]
["TEST","GF","Frei","Frei","3","Frei","Frei","SPD","Frei"]
["TEST","GF","Frei","Frei","3","Frei","Frei","SPD","Stangenverschluss"]
["TEST","GF","Frei","Frei","4","Fahrbar","Frei","Frei","Frei"]
["TEST","GF","Frei","Frei","4","Fahrbar","Frei","Frei","Stangenverschluss"]
["TEST","GF","Frei","Frei","4","Fahrbar","Frei","SPD","Frei"]
["TEST","GF","Frei","Frei","4","Fahrbar","Frei","SPD","Stangenverschluss"]
["TEST","GF","Frei","Frei","4","Fest","Frei","Frei","Frei"]
["TEST","GF","Frei","Frei","4","Fest","Frei","Frei","Stangenverschluss"]
["TEST","GF","Frei","Frei","4","Fest","Frei","SPD","Frei"]
["TEST","GF","Frei","Frei","4","Fest","Frei","SPD","Stangenverschluss"]
["TEST","GF","Frei","Frei","4","Frei","Frei","Frei","Frei"]
["TEST","GF","Frei","Frei","4","Frei","Frei","Frei","Stangenverschluss"]
["TEST","GF","Frei","Frei","4","Frei","Frei","SPD","Frei"]
["TEST","GF","Frei","Frei","4","Frei","Frei","SPD","Stangenverschluss"]
["TEST","GF","Frei","Frei","Frei","Fahrbar","Frei","Frei","Frei"]
["TEST","GF","Frei","Frei","Frei","Fahrbar","Frei","Frei","Stangenverschluss"]
["TEST","GF","Frei","Frei","Frei","Fahrbar","Frei","SPD","Frei"]
["TEST","GF","Frei","Frei","Frei","Fahrbar","Frei","SPD","Stangenverschluss"]
["TEST","GF","Frei","Frei","Frei","Fest","Frei","Frei","Frei"]
["TEST","GF","Frei","Frei","Frei","Fest","Frei","Frei","Stangenverschluss"]
["TEST","GF","Frei","Frei","Frei","Fest","Frei","SPD","Frei"]
["TEST","GF","Frei","Frei","Frei","Fest","Frei","SPD","Stangenverschluss"]
["TEST","GF","Frei","Frei","Frei","Frei","Frei","Frei","Frei"]
["TEST","GF","Frei","Frei","Frei","Frei","Frei","Frei","Stangenverschluss"]
["TEST","GF","Frei","Frei","Frei","Frei","Frei","SPD","Frei"]
["TEST","GF","Frei","Frei","Frei","Frei","Frei","SPD","Stangenverschluss"]
["TEST","GF","Frei","2","3","Fahrbar","Frei","Frei","Frei"]
["TEST","GF","Frei","2","3","Fahrbar","Frei","Frei","Stangenverschluss"]
["TEST","GF","Frei","2","3","Fahrbar","Frei","SPD","Frei"]
["TEST","GF","Frei","2","3","Fahrbar","Frei","SPD","Stangenverschluss"]
["TEST","GF","Frei","2","3","Fest","Frei","Frei","Frei"]
["TEST","GF","Frei","2","3","Fest","Frei","Frei","Stangenverschluss"]
["TEST","GF","Frei","2","3","Fest","Frei","SPD","Frei"]
["TEST","GF","Frei","2","3","Fest","Frei","SPD","Stangenverschluss"]
["TEST","GF","Frei","2","3","Frei","Frei","Frei","Frei"]
["TEST","GF","Frei","2","3","Frei","Frei","Frei","Stangenverschluss"]
["TEST","GF","Frei","2","3","Frei","Frei","SPD","Frei"]
["TEST","GF","Frei","2","3","Frei","Frei","SPD","Stangenverschluss"]
["TEST","GF","Frei","2","4","Fahrbar","Frei","Frei","Frei"]
["TEST","GF","Frei","2","4","Fahrbar","Frei","Frei","Stangenverschluss"]
["TEST","GF","Frei","2","4","Fahrbar","Frei","SPD","Frei"]
["TEST","GF","Frei","2","4","Fahrbar","Frei","SPD","Stangenverschluss"]
["TEST","GF","Frei","2","4","Fest","Frei","Frei","Frei"]
["TEST","GF","Frei","2","4","Fest","Frei","Frei","Stangenverschluss"]
["TEST","GF","Frei","2","4","Fest","Frei","SPD","Frei"]
["TEST","GF","Frei","2","4","Fest","Frei","SPD","Stangenverschluss"]
["TEST","GF","Frei","2","4","Frei","Frei","Frei","Frei"]
["TEST","GF","Frei","2","4","Frei","Frei","Frei","Stangenverschluss"]
["TEST","GF","Frei","2","4","Frei","Frei","SPD","Frei"]
["TEST","GF","Frei","2","4","Frei","Frei","SPD","Stangenverschluss"]
["TEST","GF","Frei","2","Frei","Fahrbar","Frei","Frei","Frei"]
["TEST","GF","Frei","2","Frei","Fahrbar","Frei","Frei","Stangenverschluss"]
["TEST","GF","Frei","2","Frei","Fahrbar","Frei","SPD","Frei"]
["TEST","GF","Frei","2","Frei","Fahrbar","Frei","SPD","Stangenverschluss"]
["TEST","GF","Frei","2","Frei","Fest","Frei","Frei","Frei"]
["TEST","GF","Frei","2","Frei","Fest","Frei","Frei","Stangenverschluss"]
["TEST","GF","Frei","2","Frei","Fest","Frei","SPD","Frei"]
["TEST","GF","Frei","2","Frei","Fest","Frei","SPD","Stangenverschluss"]
["TEST","GF","Frei","2","Frei","Frei","Frei","Frei","Frei"]
["TEST","GF","Frei","2","Frei","Frei","Frei","Frei","Stangenverschluss"]
["TEST","GF","Frei","2","Frei","Frei","Frei","SPD","Frei"]
["TEST","GF","Frei","2","Frei","Frei","Frei","SPD","Stangenverschluss"]
["TEST","GF","Typ 1","4a","3","Fahrbar","Frei","Frei","Frei"]
["TEST","GF","Typ 1","4a","3","Fahrbar","Frei","Frei","Stangenverschluss"]
["TEST","GF","Typ 1","4a","3","Fahrbar","Frei","SPD","Frei"]
["TEST","GF","Typ 1","4a","3","Fahrbar","Frei","SPD","Stangenverschluss"]
["TEST","GF","Typ 1","4a","3","Fest","Frei","Frei","Frei"]
["TEST","GF","Typ 1","4a","3","Fest","Frei","Frei","Stangenverschluss"]
["TEST","GF","Typ 1","4a","3","Fest","Frei","SPD","Frei"]
["TEST","GF","Typ 1","4a","3","Fest","Frei","SPD","Stangenverschluss"]
["TEST","GF","Typ 1","4a","3","Frei","Frei","Frei","Frei"]
["TEST","GF","Typ 1","4a","3","Frei","Frei","Frei","Stangenverschluss"]
["TEST","GF","Typ 1","4a","3","Frei","Frei","SPD","Frei"]
["TEST","GF","Typ 1","4a","3","Frei","Frei","SPD","Stangenverschluss"]
["TEST","GF","Typ 1","4a","4","Fahrbar","Frei","Frei","Frei"]
["TEST","GF","Typ 1","4a","4","Fahrbar","Frei","Frei","Stangenverschluss"]
["TEST","GF","Typ 1","4a","4","Fahrbar","Frei","SPD","Frei"]
["TEST","GF","Typ 1","4a","4","Fahrbar","Frei","SPD","Stangenverschluss"]
["TEST","GF","Typ 1","4a","4","Fest","Frei","Frei","Frei"]
["TEST","GF","Typ 1","4a","4","Fest","Frei","Frei","Stangenverschluss"]
["TEST","GF","Typ 1","4a","4","Fest","Frei","SPD","Frei"]
["TEST","GF","Typ 1","4a","4","Fest","Frei","SPD","Stangenverschluss"]
["TEST","GF","Typ 1","4a","4","Frei","Frei","Frei","Frei"]
["TEST","GF","Typ 1","4a","4","Frei","Frei","Frei","Stangenverschluss"]
["TEST","GF","Typ 1","4a","4","Frei","Frei","SPD","Frei"]
["TEST","GF","Typ 1","4a","4","Frei","Frei","SPD","Stangenverschluss"]
["TEST","GF","Typ 1","4a","Frei","Fahrbar","Frei","Frei","Frei"]
["TEST","GF","Typ 1","4a","Frei","Fahrbar","Frei","Frei","Stangenverschluss"]
["TEST","GF","Typ 1","4a","Frei","Fahrbar","Frei","SPD","Frei"]
["TEST","GF","Typ 1","4a","Frei","Fahrbar","Frei","SPD","Stangenverschluss"]
["TEST","GF","Typ 1","4a","Frei","Fest","Frei","Frei","Frei"]
["TEST","GF","Typ 1","4a","Frei","Fest","Frei","Frei","Stangenverschluss"]
["TEST","GF","Typ 1","4a","Frei","Fest","Frei","SPD","Frei"]
["TEST","GF","Typ 1","4a","Frei","Fest","Frei","SPD","Stangenverschluss"]
["TEST","GF","Typ 1","4a","Frei","Frei","Frei","Frei","Frei"]
["TEST","GF","Typ 1","4a","Frei","Frei","Frei","Frei","Stangenverschluss"]
["TEST","GF","Typ 1","4a","Frei","Frei","Frei","SPD","Frei"]
["TEST","GF","Typ 1","4a","Frei","Frei","Frei","SPD","Stangenverschluss"]
["TEST","GF","Typ 1","4b","3","Fahrbar","Frei","Frei","Frei"]
["TEST","GF","Typ 1","4b","3","Fahrbar","Frei","Frei","Stangenverschluss"]
["TEST","GF","Typ 1","4b","3","Fahrbar","Frei","SPD","Frei"]
["TEST","GF","Typ 1","4b","3","Fahrbar","Frei","SPD","Stangenverschluss"]
["TEST","GF","Typ 1","4b","3","Fest","Frei","Frei","Frei"]
["TEST","GF","Typ 1","4b","3","Fest","Frei","Frei","Stangenverschluss"]
["TEST","GF","Typ 1","4b","3","Fest","Frei","SPD","Frei"]
["TEST","GF","Typ 1","4b","3","Fest","Frei","SPD","Stangenverschluss"]
["TEST","GF","Typ 1","4b","3","Frei","Frei","Frei","Frei"]
["TEST","GF","Typ 1","4b","3","Frei","Frei","Frei","Stangenverschluss"]
["TEST","GF","Typ 1","4b","3","Frei","Frei","SPD","Frei"]
["TEST","GF","Typ 1","4b","3","Frei","Frei","SPD","Stangenverschluss"]
["TEST","GF","Typ 1","4b","4","Fahrbar","Frei","Frei","Frei"]
["TEST","GF","Typ 1","4b","4","Fahrbar","Frei","Frei","Stangenverschluss"]
["TEST","GF","Typ 1","4b","4","Fahrbar","Frei","SPD","Frei"]
["TEST","GF","Typ 1","4b","4","Fahrbar","Frei","SPD","Stangenverschluss"]
["TEST","GF","Typ 1","4b","4","Fest","Frei","Frei","Frei"]
["TEST","GF","Typ 1","4b","4","Fest","Frei","Frei","Stangenverschluss"]
["TEST","GF","Typ 1","4b","4","Fest","Frei","SPD","Frei"]
["TEST","GF","Typ 1","4b","4","Fest","Frei","SPD","Stangenverschluss"]
["TEST","GF","Typ 1","4b","4","Frei","Frei","Frei","Frei"]
["TEST","GF","Typ 1","4b","4","Frei","Frei","Frei","Stangenverschluss"]
["TEST","GF","Typ 1","4b","4","Frei","Frei","SPD","Frei"]
["TEST","GF","Typ 1","4b","4","Frei","Frei","SPD","Stangenverschluss"]
["TEST","GF","Typ 1","4b","Frei","Fahrbar","Frei","Frei","Frei"]
["TEST","GF","Typ 1","4b","Frei","Fahrbar","Frei","Frei","Stangenverschluss"]
["TEST","GF","Typ 1","4b","Frei","Fahrbar","Frei","SPD","Frei"]
["TEST","GF","Typ 1","4b","Frei","Fahrbar","Frei","SPD","Stangenverschluss"]
["TEST","GF","Typ 1","4b","Frei","Fest","Frei","Frei","Frei"]
["TEST","GF","Typ 1","4b","Frei","Fest","Frei","Frei","Stangenverschluss"]
["TEST","GF","Typ 1","4b","Frei","Fest","Frei","SPD","Frei"]
["TEST","GF","Typ 1","4b","Frei","Fest","Frei","SPD","Stangenverschluss"]
["TEST","GF","Typ 1","4b","Frei","Frei","Frei","Frei","Frei"]
["TEST","GF","Typ 1","4b","Frei","Frei","Frei","Frei","Stangenverschluss"]
["TEST","GF","Typ 1","4b","Frei","Frei","Frei","SPD","Frei"]
["TEST","GF","Typ 1","4b","Frei","Frei","Frei","SPD","Stangenverschluss"]
["TEST","GF","Typ 1","Frei","3","Fahrbar","Frei","Frei","Frei"]
["TEST","GF","Typ 1","Frei","3","Fahrbar","Frei","Frei","Stangenverschluss"]
["TEST","GF","Typ 1","Frei","3","Fahrbar","Frei","SPD","Frei"]
["TEST","GF","Typ 1","Frei","3","Fahrbar","Frei","SPD","Stangenverschluss"]
["TEST","GF","Typ 1","Frei","3","Fest","Frei","Frei","Frei"]
["TEST","GF","Typ 1","Frei","3","Fest","Frei","Frei","Stangenverschluss"]
["TEST","GF","Typ 1","Frei","3","Fest","Frei","SPD","Frei"]
["TEST","GF","Typ 1","Frei","3","Fest","Frei","SPD","Stangenverschluss"]
["TEST","GF","Typ 1","Frei","3","Frei","Frei","Frei","Frei"]
["TEST","GF","Typ 1","Frei","3","Frei","Frei","Frei","Stangenverschluss"]
["TEST","GF","Typ 1","Frei","3","Frei","Frei","SPD","Frei"]
["TEST","GF","Typ 1","Frei","3","Frei","Frei","SPD","Stangenverschluss"]
["TEST","GF","Typ 1","Frei","4","Fahrbar","Frei","Frei","Frei"]
["TEST","GF","Typ 1","Frei","4","Fahrbar","Frei","Frei","Stangenverschluss"]
["TEST","GF","Typ 1","Frei","4","Fahrbar","Frei","SPD","Frei"]
["TEST","GF","Typ 1","Frei","4","Fahrbar","Frei","SPD","Stangenverschluss"]
["TEST","GF","Typ 1","Frei","4","Fest","Frei","Frei","Frei"]
["TEST","GF","Typ 1","Frei","4","Fest","Frei","Frei","Stangenverschluss"]
["TEST","GF","Typ 1","Frei","4","Fest","Frei","SPD","Frei"]
["TEST","GF","Typ 1","Frei","4","Fest","Frei","SPD","Stangenverschluss"]
["TEST","GF","Typ 1","Frei","4","Frei","Frei","Frei","Frei"]
["TEST","GF","Typ 1","Frei","4","Frei","Frei","Frei","Stangenverschluss"]
["TEST","GF","Typ 1","Frei","4","Frei","Frei","SPD","Frei"]
["TEST","GF","Typ 1","Frei","4","Frei","Frei","SPD","Stangenverschluss"]
["TEST","GF","Typ 1","Frei","Frei","Fahrbar","Frei","Frei","Frei"]
["TEST","GF","Typ 1","Frei","Frei","Fahrbar","Frei","Frei","Stangenverschluss"]
["TEST","GF","Typ 1","Frei","Frei","Fahrbar","Frei","SPD","Frei"]
["TEST","GF","Typ 1","Frei","Frei","Fahrbar","Frei","SPD","Stangenverschluss"]
["TEST","GF","Typ 1","Frei","Frei","Fest","Frei","Frei","Frei"]
["TEST","GF","Typ 1","Frei","Frei","Fest","Frei","Frei","Stangenverschluss"]
["TEST","GF","Typ 1","Frei","Frei","Fest","Frei","SPD","Frei"]
["TEST","GF","Typ 1","Frei","Frei","Fest","Frei","SPD","Stangenverschluss"]
["TEST","GF","Typ 1","Frei","Frei","Frei","Frei","Frei","Frei"]
["TEST","GF","Typ 1","Frei","Frei","Frei","Frei","Frei","Stangenverschluss"]
["TEST","GF","Typ 1","Frei","Frei","Frei","Frei","SPD","Frei"]
["TEST","GF","Typ 1","Frei","Frei","Frei","Frei","SPD","Stangenverschluss"]
["TEST","GF","Typ 1","2","3","Fahrbar","Frei","Frei","Frei"]
["TEST","GF","Typ 1","2","3","Fahrbar","Frei","Frei","Stangenverschluss"]
["TEST","GF","Typ 1","2","3","Fahrbar","Frei","SPD","Frei"]
["TEST","GF","Typ 1","2","3","Fahrbar","Frei","SPD","Stangenverschluss"]
["TEST","GF","Typ 1","2","3","Fest","Frei","Frei","Frei"]
["TEST","GF","Typ 1","2","3","Fest","Frei","Frei","Stangenverschluss"]
["TEST","GF","Typ 1","2","3","Fest","Frei","SPD","Frei"]
["TEST","GF","Typ 1","2","3","Fest","Frei","SPD","Stangenverschluss"]
["TEST","GF","Typ 1","2","3","Frei","Frei","Frei","Frei"]
["TEST","GF","Typ 1","2","3","Frei","Frei","Frei","Stangenverschluss"]
["TEST","GF","Typ 1","2","3","Frei","Frei","SPD","Frei"]
["TEST","GF","Typ 1","2","3","Frei","Frei","SPD","Stangenverschluss"]
["TEST","GF","Typ 1","2","4","Fahrbar","Frei","Frei","Frei"]
["TEST","GF","Typ 1","2","4","Fahrbar","Frei","Frei","Stangenverschluss"]
["TEST","GF","Typ 1","2","4","Fahrbar","Frei","SPD","Frei"]
["TEST","GF","Typ 1","2","4","Fahrbar","Frei","SPD","Stangenverschluss"]
["TEST","GF","Typ 1","2","4","Fest","Frei","Frei","Frei"]
["TEST","GF","Typ 1","2","4","Fest","Frei","Frei","Stangenverschluss"]
["TEST","GF","Typ 1","2","4","Fest","Frei","SPD","Frei"]
["TEST","GF","Typ 1","2","4","Fest","Frei","SPD","Stangenverschluss"]
["TEST","GF","Typ 1","2","4","Frei","Frei","Frei","Frei"]
["TEST","GF","Typ 1","2","4","Frei","Frei","Frei","Stangenverschluss"]
["TEST","GF","Typ 1","2","4","Frei","Frei","SPD","Frei"]
["TEST","GF","Typ 1","2","4","Frei","Frei","SPD","Stangenverschluss"]
["TEST","GF","Typ 1","2","Frei","Fahrbar","Frei","Frei","Frei"]
["TEST","GF","Typ 1","2","Frei","Fahrbar","Frei","Frei","Stangenverschluss"]
["TEST","GF","Typ 1","2","Frei","Fahrbar","Frei","SPD","Frei"]
["TEST","GF","Typ 1","2","Frei","Fahrbar","Frei","SPD","Stangenverschluss"]
["TEST","GF","Typ 1","2","Frei","Fest","Frei","Frei","Frei"]
["TEST","GF","Typ 1","2","Frei","Fest","Frei","Frei","Stangenverschluss"]
["TEST","GF","Typ 1","2","Frei","Fest","Frei","SPD","Frei"]
["TEST","GF","Typ 1","2","Frei","Fest","Frei","SPD","Stangenverschluss"]
["TEST","GF","Typ 1","2","Frei","Frei","Frei","Frei","Frei"]
["TEST","GF","Typ 1","2","Frei","Frei","Frei","Frei","Stangenverschluss"]
["TEST","GF","Typ 1","2","Frei","Frei","Frei","SPD","Frei"]
["TEST","GF","Typ 1","2","Frei","Frei","Frei","SPD","Stangenverschluss"]
["TEST","GF","Typ 3","4a","3","Fahrbar","Frei","Frei","Frei"]
["TEST","GF","Typ 3","4a","3","Fahrbar","Frei","Frei","Stangenverschluss"]
["TEST","GF","Typ 3","4a","3","Fahrbar","Frei","SPD","Frei"]
["TEST","GF","Typ 3","4a","3","Fahrbar","Frei","SPD","Stangenverschluss"]
["TEST","GF","Typ 3","4a","3","Fest","Frei","Frei","Frei"]
["TEST","GF","Typ 3","4a","3","Fest","Frei","Frei","Stangenverschluss"]
["TEST","GF","Typ 3","4a","3","Fest","Frei","SPD","Frei"]
["TEST","GF","Typ 3","4a","3","Fest","Frei","SPD","Stangenverschluss"]
["TEST","GF","Typ 3","4a","3","Frei","Frei","Frei","Frei"]
["TEST","GF","Typ 3","4a","3","Frei","Frei","Frei","Stangenverschluss"]
["TEST","GF","Typ 3","4a","3","Frei","Frei","SPD","Frei"]
["TEST","GF","Typ 3","4a","3","Frei","Frei","SPD","Stangenverschluss"]
["TEST","GF","Typ 3","4a","4","Fahrbar","Frei","Frei","Frei"]
["TEST","GF","Typ 3","4a","4","Fahrbar","Frei","Frei","Stangenverschluss"]
["TEST","GF","Typ 3","4a","4","Fahrbar","Frei","SPD","Frei"]
["TEST","GF","Typ 3","4a","4","Fahrbar","Frei","SPD","Stangenverschluss"]
["TEST","GF","Typ 3","4a","4","Fest","Frei","Frei","Frei"]
["TEST","GF","Typ 3","4a","4","Fest","Frei","Frei","Stangenverschluss"]
["TEST","GF","Typ 3","4a","4","Fest","Frei","SPD","Frei"]
["TEST","GF","Typ 3","4a","4","Fest","Frei","SPD","Stangenverschluss"]
["TEST","GF","Typ 3","4a","4","Frei","Frei","Frei","Frei"]
["TEST","GF","Typ 3","4a","4","Frei","Frei","Frei","Stangenverschluss"]
["TEST","GF","Typ 3","4a","4","Frei","Frei","SPD","Frei"]
["TEST","GF","Typ 3","4a","4","Frei","Frei","SPD","Stangenverschluss"]
["TEST","GF","Typ 3","4a","Frei","Fahrbar","Frei","Frei","Frei"]
["TEST","GF","Typ 3","4a","Frei","Fahrbar","Frei","Frei","Stangenverschluss"]
["TEST","GF","Typ 3","4a","Frei","Fahrbar","Frei","SPD","Frei"]
["TEST","GF","Typ 3","4a","Frei","Fahrbar","Frei","SPD","Stangenverschluss"]
["TEST","GF","Typ 3","4a","Frei","Fest","Frei","Frei","Frei"]
["TEST","GF","Typ 3","4a","Frei","Fest","Frei","Frei","Stangenverschluss"]
["TEST","GF","Typ 3","4a","Frei","Fest","Frei","SPD","Frei"]
["TEST","GF","Typ 3","4a","Frei","Fest","Frei","SPD","Stangenverschluss"]
["TEST","GF","Typ 3","4a","Frei","Frei","Frei","Frei","Frei"]
["TEST","GF","Typ 3","4a","Frei","Frei","Frei","Frei","Stangenverschluss"]
["TEST","GF","Typ 3","4a","Frei","Frei","Frei","SPD","Frei"]
["TEST","GF","Typ 3","4a","Frei","Frei","Frei","SPD","Stangenverschluss"]
["TEST","GF","Typ 3","4b","3","Fahrbar","Frei","Frei","Frei"]
["TEST","GF","Typ 3","4b","3","Fahrbar","Frei","Frei","Stangenverschluss"]
["TEST","GF","Typ 3","4b","3","Fahrbar","Frei","SPD","Frei"]
["TEST","GF","Typ 3","4b","3","Fahrbar","Frei","SPD","Stangenverschluss"]
["TEST","GF","Typ 3","4b","3","Fest","Frei","Frei","Frei"]
["TEST","GF","Typ 3","4b","3","Fest","Frei","Frei","Stangenverschluss"]
["TEST","GF","Typ 3","4b","3","Fest","Frei","SPD","Frei"]
["TEST","GF","Typ 3","4b","3","Fest","Frei","SPD","Stangenverschluss"]
["TEST","GF","Typ 3","4b","3","Frei","Frei","Frei","Frei"]
["TEST","GF","Typ 3","4b","3","Frei","Frei","Frei","Stangenverschluss"]
["TEST","GF","Typ 3","4b","3","Frei","Frei","SPD","Frei"]
["TEST","GF","Typ 3","4b","3","Frei","Frei","SPD","Stangenverschluss"]
["TEST","GF","Typ 3","4b","4","Fahrbar","Frei","Frei","Frei"]
["TEST","GF","Typ 3","4b","4","Fahrbar","Frei","Frei","Stangenverschluss"]
["TEST","GF","Typ 3","4b","4","Fahrbar","Frei","SPD","Frei"]
["TEST","GF","Typ 3","4b","4","Fahrbar","Frei","SPD","Stangenverschluss"]
["TEST","GF","Typ 3","4b","4","Fest","Frei","Frei","Frei"]
["TEST","GF","Typ 3","4b","4","Fest","Frei","Frei","Stangenverschluss"]
["TEST","GF","Typ 3","4b","4","Fest","Frei","SPD","Frei"]
["TEST","GF","Typ 3","4b","4","Fest","Frei","SPD","Stangenverschluss"]
["TEST","GF","Typ 3","4b","4","Frei","Frei","Frei","Frei"]
["TEST","GF","Typ 3","4b","4","Frei","Frei","Frei","Stangenverschluss"]
["TEST","GF","Typ 3","4b","4","Frei","Frei","SPD","Frei"]
["TEST","GF","Typ 3","4b","4","Frei","Frei","SPD","Stangenverschluss"]
["TEST","GF","Typ 3","4b","Frei","Fahrbar","Frei","Frei","Frei"]
["TEST","GF","Typ 3","4b","Frei","Fahrbar","Frei","Frei","Stangenverschluss"]
["TEST","GF","Typ 3","4b","Frei","Fahrbar","Frei","SPD","Frei"]
["TEST","GF","Typ 3","4b","Frei","Fahrbar","Frei","SPD","Stangenverschluss"]
["TEST","GF","Typ 3","4b","Frei","Fest","Frei","Frei","Frei"]
["TEST","GF","Typ 3","4b","Frei","Fest","Frei","Frei","Stangenverschluss"]
["TEST","GF","Typ 3","4b","Frei","Fest","Frei","SPD","Frei"]
["TEST","GF","Typ 3","4b","Frei","Fest","Frei","SPD","Stangenverschluss"]
["TEST","GF","Typ 3","4b","Frei","Frei","Frei","Frei","Frei"]
["TEST","GF","Typ 3","4b","Frei","Frei","Frei","Frei","Stangenverschluss"]
["TEST","GF","Typ 3","4b","Frei","Frei","Frei","SPD","Frei"]
["TEST","GF","Typ 3","4b","Frei","Frei","Frei","SPD","Stangenverschluss"]
["TEST","GF","Typ 3","Frei","3","Fahrbar","Frei","Frei","Frei"]
["TEST","GF","Typ 3","Frei","3","Fahrbar","Frei","Frei","Stangenverschluss"]
["TEST","GF","Typ 3","Frei","3","Fahrbar","Frei","SPD","Frei"]
["TEST","GF","Typ 3","Frei","3","Fahrbar","Frei","SPD","Stangenverschluss"]
["TEST","GF","Typ 3","Frei","3","Fest","Frei","Frei","Frei"]
["TEST","GF","Typ 3","Frei","3","Fest","Frei","Frei","Stangenverschluss"]
["TEST","GF","Typ 3","Frei","3","Fest","Frei","SPD","Frei"]
["TEST","GF","Typ 3","Frei","3","Fest","Frei","SPD","Stangenverschluss"]
["TEST","GF","Typ 3","Frei","3","Frei","Frei","Frei","Frei"]
["TEST","GF","Typ 3","Frei","3","Frei","Frei","Frei","Stangenverschluss"]
["TEST","GF","Typ 3","Frei","3","Frei","Frei","SPD","Frei"]
["TEST","GF","Typ 3","Frei","3","Frei","Frei","SPD","Stangenverschluss"]
["TEST","GF","Typ 3","Frei","4","Fahrbar","Frei","Frei","Frei"]
["TEST","GF","Typ 3","Frei","4","Fahrbar","Frei","Frei","Stangenverschluss"]
["TEST","GF","Typ 3","Frei","4","Fahrbar","Frei","SPD","Frei"]
["TEST","GF","Typ 3","Frei","4","Fahrbar","Frei","SPD","Stangenverschluss"]
["TEST","GF","Typ 3","Frei","4","Fest","Frei","Frei","Frei"]
["TEST","GF","Typ 3","Frei","4","Fest","Frei","Frei","Stangenverschluss"]
["TEST","GF","Typ 3","Frei","4","Fest","Frei","SPD","Frei"]
["TEST","GF","Typ 3","Frei","4","Fest","Frei","SPD","Stangenverschluss"]
["TEST","GF","Typ 3","Frei","4","Frei","Frei","Frei","Frei"]
["TEST","GF","Typ 3","Frei","4","Frei","Frei","Frei","Stangenverschluss"]
["TEST","GF","Typ 3","Frei","4","Frei","Frei","SPD","Frei"]
["TEST","GF","Typ 3","Frei","4","Frei","Frei","SPD","Stangenverschluss"]
["TEST","GF","Typ 3","Frei","Frei","Fahrbar","Frei","Frei","Frei"]
["TEST","GF","Typ 3","Frei","Frei","Fahrbar","Frei","Frei","Stangenverschluss"]
["TEST","GF","Typ 3","Frei","Frei","Fahrbar","Frei","SPD","Frei"]
["TEST","GF","Typ 3","Frei","Frei","Fahrbar","Frei","SPD","Stangenverschluss"]
["TEST","GF","Typ 3","Frei","Frei","Fest","Frei","Frei","Frei"]
["TEST","GF","Typ 3","Frei","Frei","Fest","Frei","Frei","Stangenverschluss"]
["TEST","GF","Typ 3","Frei","Frei","Fest","Frei","SPD","Frei"]
["TEST","GF","Typ 3","Frei","Frei","Fest","Frei","SPD","Stangenverschluss"]
["TEST","GF","Typ 3","Frei","Frei","Frei","Frei","Frei","Frei"]
["TEST","GF","Typ 3","Frei","Frei","Frei","Frei","Frei","Stangenverschluss"]
["TEST","GF","Typ 3","Frei","Frei","Frei","Frei","SPD","Frei"]
["TEST","GF","Typ 3","Frei","Frei","Frei","Frei","SPD","Stangenverschluss"]
["TEST","GF","Typ 3","2","3","Fahrbar","Frei","Frei","Frei"]
["TEST","GF","Typ 3","2","3","Fahrbar","Frei","Frei","Stangenverschluss"]
["TEST","GF","Typ 3","2","3","Fahrbar","Frei","SPD","Frei"]
["TEST","GF","Typ 3","2","3","Fahrbar","Frei","SPD","Stangenverschluss"]
["TEST","GF","Typ 3","2","3","Fest","Frei","Frei","Frei"]
["TEST","GF","Typ 3","2","3","Fest","Frei","Frei","Stangenverschluss"]
["TEST","GF","Typ 3","2","3","Fest","Frei","SPD","Frei"]
["TEST","GF","Typ 3","2","3","Fest","Frei","SPD","Stangenverschluss"]
["TEST","GF","Typ 3","2","3","Frei","Frei","Frei","Frei"]
["TEST","GF","Typ 3","2","3","Frei","Frei","Frei","Stangenverschluss"]
["TEST","GF","Typ 3","2","3","Frei","Frei","SPD","Frei"]
["TEST","GF","Typ 3","2","3","Frei","Frei","SPD","Stangenverschluss"]
["TEST","GF","Typ 3","2","4","Fahrbar","Frei","Frei","Frei"]
["TEST","GF","Typ 3","2","4","Fahrbar","Frei","Frei","Stangenverschluss"]
["TEST","GF","Typ 3","2","4","Fahrbar","Frei","SPD","Frei"]
["TEST","GF","Typ 3","2","4","Fahrbar","Frei","SPD","Stangenverschluss"]
["TEST","GF","Typ 3","2","4","Fest","Frei","Frei","Frei"]
["TEST","GF","Typ 3","2","4","Fest","Frei","Frei","Stangenverschluss"]
["TEST","GF","Typ 3","2","4","Fest","Frei","SPD","Frei"]
["TEST","GF","Typ 3","2","4","Fest","Frei","SPD","Stangenverschluss"]
["TEST","GF","Typ 3","2","4","Frei","Frei","Frei","Frei"]
["TEST","GF","Typ 3","2","4","Frei","Frei","Frei","Stangenverschluss"]
["TEST","GF","Typ 3","2","4","Frei","Frei","SPD","Frei"]
["TEST","GF","Typ 3","2","4","Frei","Frei","SPD","Stangenverschluss"]
["TEST","GF","Typ 3","2","Frei","Fahrbar","Frei","Frei","Frei"]
["TEST","GF","Typ 3","2","Frei","Fahrbar","Frei","Frei","Stangenverschluss"]
["TEST","GF","Typ 3","2","Frei","Fahrbar","Frei","SPD","Frei"]
["TEST","GF","Typ 3","2","Frei","Fahrbar","Frei","SPD","Stangenverschluss"]
["TEST","GF","Typ 3","2","Frei","Fest","Frei","Frei","Frei"]
["TEST","GF","Typ 3","2","Frei","Fest","Frei","Frei","Stangenverschluss"]
["TEST","GF","Typ 3","2","Frei","Fest","Frei","SPD","Frei"]
["TEST","GF","Typ 3","2","Frei","Fest","Frei","SPD","Stangenverschluss"]
["TEST","GF","Typ 3","2","Frei","Frei","Frei","Frei","Frei"]
["TEST","GF","Typ 3","2","Frei","Frei","Frei","Frei","Stangenverschluss"]
["TEST","GF","Typ 3","2","Frei","Frei","Frei","SPD","Frei"]
["TEST","GF","Typ 3","2","Frei","Frei","Frei","SPD","Stangenverschluss"]
["TEST","GF","Typ 4","4a","3","Fahrbar","Frei","Frei","Frei"]
["TEST","GF","Typ 4","4a","3","Fahrbar","Frei","Frei","Stangenverschluss"]
["TEST","GF","Typ 4","4a","3","Fahrbar","Frei","SPD","Frei"]
["TEST","GF","Typ 4","4a","3","Fahrbar","Frei","SPD","Stangenverschluss"]
["TEST","GF","Typ 4","4a","3","Fest","Frei","Frei","Frei"]
["TEST","GF","Typ 4","4a","3","Fest","Frei","Frei","Stangenverschluss"]
["TEST","GF","Typ 4","4a","3","Fest","Frei","SPD","Frei"]
["TEST","GF","Typ 4","4a","3","Fest","Frei","SPD","Stangenverschluss"]
["TEST","GF","Typ 4","4a","3","Frei","Frei","Frei","Frei"]
["TEST","GF","Typ 4","4a","3","Frei","Frei","Frei","Stangenverschluss"]
["TEST","GF","Typ 4","4a","3","Frei","Frei","SPD","Frei"]
["TEST","GF","Typ 4","4a","3","Frei","Frei","SPD","Stangenverschluss"]
["TEST","GF","Typ 4","4a","4","Fahrbar","Frei","Frei","Frei"]
["TEST","GF","Typ 4","4a","4","Fahrbar","Frei","Frei","Stangenverschluss"]
["TEST","GF","Typ 4","4a","4","Fahrbar","Frei","SPD","Frei"]
["TEST","GF","Typ 4","4a","4","Fahrbar","Frei","SPD","Stangenverschluss"]
["TEST","GF","Typ 4","4a","4","Fest","Frei","Frei","Frei"]
["TEST","GF","Typ 4","4a","4","Fest","Frei","Frei","Stangenverschluss"]
["TEST","GF","Typ 4","4a","4","Fest","Frei","SPD","Frei"]
["TEST","GF","Typ 4","4a","4","Fest","Frei","SPD","Stangenverschluss"]
["TEST","GF","Typ 4","4a","4","Frei","Frei","Frei","Frei"]
["TEST","GF","Typ 4","4a","4","Frei","Frei","Frei","Stangenverschluss"]
["TEST","GF","Typ 4","4a","4","Frei","Frei","SPD","Frei"]
["TEST","GF","Typ 4","4a","4","Frei","Frei","SPD","Stangenverschluss"]
["TEST","GF","Typ 4","4a","Frei","Fahrbar","Frei","Frei","Frei"]
["TEST","GF","Typ 4","4a","Frei","Fahrbar","Frei","Frei","Stangenverschluss"]
["TEST","GF","Typ 4","4a","Frei","Fahrbar","Frei","SPD","Frei"]
["TEST","GF","Typ 4","4a","Frei","Fahrbar","Frei","SPD","Stangenverschluss"]
["TEST","GF","Typ 4","4a","Frei","Fest","Frei","Frei","Frei"]
["TEST","GF","Typ 4","4a","Frei","Fest","Frei","Frei","Stangenverschluss"]
["TEST","GF","Typ 4","4a","Frei","Fest","Frei","SPD","Frei"]
["TEST","GF","Typ 4","4a","Frei","Fest","Frei","SPD","Stangenverschluss"]
["TEST","GF","Typ 4","4a","Frei","Frei","Frei","Frei","Frei"]
["TEST","GF","Typ 4","4a","Frei","Frei","Frei","Frei","Stangenverschluss"]
["TEST","GF","Typ 4","4a","Frei","Frei","Frei","SPD","Frei"]
["TEST","GF","Typ 4","4a","Frei","Frei","Frei","SPD","Stangenverschluss"]
["TEST","GF","Typ 4","4b","3","Fahrbar","Frei","Frei","Frei"]
["TEST","GF","Typ 4","4b","3","Fahrbar","Frei","Frei","Stangenverschluss"]
["TEST","GF","Typ 4","4b","3","Fahrbar","Frei","SPD","Frei"]
["TEST","GF","Typ 4","4b","3","Fahrbar","Frei","SPD","Stangenverschluss"]
["TEST","GF","Typ 4","4b","3","Fest","Frei","Frei","Frei"]
["TEST","GF","Typ 4","4b","3","Fest","Frei","Frei","Stangenverschluss"]
["TEST","GF","Typ 4","4b","3","Fest","Frei","SPD","Frei"]
["TEST","GF","Typ 4","4b","3","Fest","Frei","SPD","Stangenverschluss"]
["TEST","GF","Typ 4","4b","3","Frei","Frei","Frei","Frei"]
["TEST","GF","Typ 4","4b","3","Frei","Frei","Frei","Stangenverschluss"]
["TEST","GF","Typ 4","4b","3","Frei","Frei","SPD","Frei"]
["TEST","GF","Typ 4","4b","3","Frei","Frei","SPD","Stangenverschluss"]
["TEST","GF","Typ 4","4b","4","Fahrbar","Frei","Frei","Frei"]
["TEST","GF","Typ 4","4b","4","Fahrbar","Frei","Frei","Stangenverschluss"]
["TEST","GF","Typ 4","4b","4","Fahrbar","Frei","SPD","Frei"]
["TEST","GF","Typ 4","4b","4","Fahrbar","Frei","SPD","Stangenverschluss"]
["TEST","GF","Typ 4","4b","4","Fest","Frei","Frei","Frei"]
["TEST","GF","Typ 4","4b","4","Fest","Frei","Frei","Stangenverschluss"]
["TEST","GF","Typ 4","4b","4","Fest","Frei","SPD","Frei"]
["TEST","GF","Typ 4","4b","4","Fest","Frei","SPD","Stangenverschluss"]
["TEST","GF","Typ 4","4b","4","Frei","Frei","Frei","Frei"]
["TEST","GF","Typ 4","4b","4","Frei","Frei","Frei","Stangenverschluss"]
["TEST","GF","Typ 4","4b","4","Frei","Frei","SPD","Frei"]
["TEST","GF","Typ 4","4b","4","Frei","Frei","SPD","Stangenverschluss"]
["TEST","GF","Typ 4","4b","Frei","Fahrbar","Frei","Frei","Frei"]
["TEST","GF","Typ 4","4b","Frei","Fahrbar","Frei","Frei","Stangenverschluss"]
["TEST","GF","Typ 4","4b","Frei","Fahrbar","Frei","SPD","Frei"]
["TEST","GF","Typ 4","4b","Frei","Fahrbar","Frei","SPD","Stangenverschluss"]
["TEST","GF","Typ 4","4b","Frei","Fest","Frei","Frei","Frei"]
["TEST","GF","Typ 4","4b","Frei","Fest","Frei","Frei","Stangenverschluss"]
["TEST","GF","Typ 4","4b","Frei","Fest","Frei","SPD","Frei"]
["TEST","GF","Typ 4","4b","Frei","Fest","Frei","SPD","Stangenverschluss"]
["TEST","GF","Typ 4","4b","Frei","Frei","Frei","Frei","Frei"]
["TEST","GF","Typ 4","4b","Frei","Frei","Frei","Frei","Stangenverschluss"]
["TEST","GF","Typ 4","4b","Frei","Frei","Frei","SPD","Frei"]
["TEST","GF","Typ 4","4b","Frei","Frei","Frei","SPD","Stangenverschluss"]
["TEST","GF","Typ 4","Frei","3","Fahrbar","Frei","Frei","Frei"]
["TEST","GF","Typ 4","Frei","3","Fahrbar","Frei","Frei","Stangenverschluss"]
["TEST","GF","Typ 4","Frei","3","Fahrbar","Frei","SPD","Frei"]
["TEST","GF","Typ 4","Frei","3","Fahrbar","Frei","SPD","Stangenverschluss"]
["TEST","GF","Typ 4","Frei","3","Fest","Frei","Frei","Frei"]
["TEST","GF","Typ 4","Frei","3","Fest","Frei","Frei","Stangenverschluss"]
["TEST","GF","Typ 4","Frei","3","Fest","Frei","SPD","Frei"]
["TEST","GF","Typ 4","Frei","3","Fest","Frei","SPD","Stangenverschluss"]
["TEST","GF","Typ 4","Frei","3","Frei","Frei","Frei","Frei"]
["TEST","GF","Typ 4","Frei","3","Frei","Frei","Frei","Stangenverschluss"]
["TEST","GF","Typ 4","Frei","3","Frei","Frei","SPD","Frei"]
["TEST","GF","Typ 4","Frei","3","Frei","Frei","SPD","Stangenverschluss"]
["TEST","GF","Typ 4","Frei","4","Fahrbar","Frei","Frei","Frei"]
["TEST","GF","Typ 4","Frei","4","Fahrbar","Frei","Frei","Stangenverschluss"]
["TEST","GF","Typ 4","Frei","4","Fahrbar","Frei","SPD","Frei"]
["TEST","GF","Typ 4","Frei","4","Fahrbar","Frei","SPD","Stangenverschluss"]
["TEST","GF","Typ 4","Frei","4","Fest","Frei","Frei","Frei"]
["TEST","GF","Typ 4","Frei","4","Fest","Frei","Frei","Stangenverschluss"]
["TEST","GF","Typ 4","Frei","4","Fest","Frei","SPD","Frei"]
["TEST","GF","Typ 4","Frei","4","Fest","Frei","SPD","Stangenverschluss"]
["TEST","GF","Typ 4","Frei","4","Frei","Frei","Frei","Frei"]
["TEST","GF","Typ 4","Frei","4","Frei","Frei","Frei","Stangenverschluss"]
["TEST","GF","Typ 4","Frei","4","Frei","Frei","SPD","Frei"]
["TEST","GF","Typ 4","Frei","4","Frei","Frei","SPD","Stangenverschluss"]
["TEST","GF","Typ 4","Frei","Frei","Fahrbar","Frei","Frei","Frei"]
["TEST","GF","Typ 4","Frei","Frei","Fahrbar","Frei","Frei","Stangenverschluss"]
["TEST","GF","Typ 4","Frei","Frei","Fahrbar","Frei","SPD","Frei"]
["TEST","GF","Typ 4","Frei","Frei","Fahrbar","Frei","SPD","Stangenverschluss"]
["TEST","GF","Typ 4","Frei","Frei","Fest","Frei","Frei","Frei"]
["TEST","GF","Typ 4","Frei","Frei","Fest","Frei","Frei","Stangenverschluss"]
["TEST","GF","Typ 4","Frei","Frei","Fest","Frei","SPD","Frei"]
["TEST","GF","Typ 4","Frei","Frei","Fest","Frei","SPD","Stangenverschluss"]
["TEST","GF","Typ 4","Frei","Frei","Frei","Frei","Frei","Frei"]
["TEST","GF","Typ 4","Frei","Frei","Frei","Frei","Frei","Stangenverschluss"]
["TEST","GF","Typ 4","Frei","Frei","Frei","Frei","SPD","Frei"]
["TEST","GF","Typ 4","Frei","Frei","Frei","Frei","SPD","Stangenverschluss"]
["TEST","GF","Typ 4","2","3","Fahrbar","Frei","Frei","Frei"]
["TEST","GF","Typ 4","2","3","Fahrbar","Frei","Frei","Stangenverschluss"]
["TEST","GF","Typ 4","2","3","Fahrbar","Frei","SPD","Frei"]
["TEST","GF","Typ 4","2","3","Fahrbar","Frei","SPD","Stangenverschluss"]
["TEST","GF","Typ 4","2","3","Fest","Frei","Frei","Frei"]
["TEST","GF","Typ 4","2","3","Fest","Frei","Frei","Stangenverschluss"]
["TEST","GF","Typ 4","2","3","Fest","Frei","SPD","Frei"]
["TEST","GF","Typ 4","2","3","Fest","Frei","SPD","Stangenverschluss"]
["TEST","GF","Typ 4","2","3","Frei","Frei","Frei","Frei"]
["TEST","GF","Typ 4","2","3","Frei","Frei","Frei","Stangenverschluss"]
["TEST","GF","Typ 4","2","3","Frei","Frei","SPD","Frei"]
["TEST","GF","Typ 4","2","3","Frei","Frei","SPD","Stangenverschluss"]
["TEST","GF","Typ 4","2","4","Fahrbar","Frei","Frei","Frei"]
["TEST","GF","Typ 4","2","4","Fahrbar","Frei","Frei","Stangenverschluss"]
["TEST","GF","Typ 4","2","4","Fahrbar","Frei","SPD","Frei"]
["TEST","GF","Typ 4","2","4","Fahrbar","Frei","SPD","Stangenverschluss"]
["TEST","GF","Typ 4","2","4","Fest","Frei","Frei","Frei"]
["TEST","GF","Typ 4","2","4","Fest","Frei","Frei","Stangenverschluss"]
["TEST","GF","Typ 4","2","4","Fest","Frei","SPD","Frei"]
["TEST","GF","Typ 4","2","4","Fest","Frei","SPD","Stangenverschluss"]
["TEST","GF","Typ 4","2","4","Frei","Frei","Frei","Frei"]
["TEST","GF","Typ 4","2","4","Frei","Frei","Frei","Stangenverschluss"]
["TEST","GF","Typ 4","2","4","Frei","Frei","SPD","Frei"]
["TEST","GF","Typ 4","2","4","Frei","Frei","SPD","Stangenverschluss"]
["TEST","GF","Typ 4","2","Frei","Fahrbar","Frei","Frei","Frei"]
["TEST","GF","Typ 4","2","Frei","Fahrbar","Frei","Frei","Stangenverschluss"]
["TEST","GF","Typ 4","2","Frei","Fahrbar","Frei","SPD","Frei"]
["TEST","GF","Typ 4","2","Frei","Fahrbar","Frei","SPD","Stangenverschluss"]
["TEST","GF","Typ 4","2","Frei","Fest","Frei","Frei","Frei"]
["TEST","GF","Typ 4","2","Frei","Fest","Frei","Frei","Stangenverschluss"]
["TEST","GF","Typ 4","2","Frei","Fest","Frei","SPD","Frei"]
["TEST","GF","Typ 4","2","Frei","Fest","Frei","SPD","Stangenverschluss"]
["TEST","GF","Typ 4","2","Frei","Frei","Frei","Frei","Frei"]
["TEST","GF","Typ 4","2","Frei","Frei","Frei","Frei","Stangenverschluss"]
["TEST","GF","Typ 4","2","Frei","Frei","Frei","SPD","Frei"]
["TEST","GF","Typ 4","2","Frei","Frei","Frei","SPD","Stangenverschluss"]
["TEST","GF","Typ 5","4a","3","Fahrbar","Frei","Frei","Frei"]
["TEST","GF","Typ 5","4a","3","Fahrbar","Frei","Frei","Stangenverschluss"]
["TEST","GF","Typ 5","4a","3","Fahrbar","Frei","SPD","Frei"]
["TEST","GF","Typ 5","4a","3","Fahrbar","Frei","SPD","Stangenverschluss"]
["TEST","GF","Typ 5","4a","3","Fest","Frei","Frei","Frei"]
["TEST","GF","Typ 5","4a","3","Fest","Frei","Frei","Stangenverschluss"]
["TEST","GF","Typ 5","4a","3","Fest","Frei","SPD","Frei"]
["TEST","GF","Typ 5","4a","3","Fest","Frei","SPD","Stangenverschluss"]
["TEST","GF","Typ 5","4a","3","Frei","Frei","Frei","Frei"]
["TEST","GF","Typ 5","4a","3","Frei","Frei","Frei","Stangenverschluss"]
["TEST","GF","Typ 5","4a","3","Frei","Frei","SPD","Frei"]
["TEST","GF","Typ 5","4a","3","Frei","Frei","SPD","Stangenverschluss"]
["TEST","GF","Typ 5","4a","4","Fahrbar","Frei","Frei","Frei"]
["TEST","GF","Typ 5","4a","4","Fahrbar","Frei","Frei","Stangenverschluss"]
["TEST","GF","Typ 5","4a","4","Fahrbar","Frei","SPD","Frei"]
["TEST","GF","Typ 5","4a","4","Fahrbar","Frei","SPD","Stangenverschluss"]
["TEST","GF","Typ 5","4a","4","Fest","Frei","Frei","Frei"]
["TEST","GF","Typ 5","4a","4","Fest","Frei","Frei","Stangenverschluss"]
["TEST","GF","Typ 5","4a","4","Fest","Frei","SPD","Frei"]
["TEST","GF","Typ 5","4a","4","Fest","Frei","SPD","Stangenverschluss"]
["TEST","GF","Typ 5","4a","4","Frei","Frei","Frei","Frei"]
["TEST","GF","Typ 5","4a","4","Frei","Frei","Frei","Stangenverschluss"]
["TEST","GF","Typ 5","4a","4","Frei","Frei","SPD","Frei"]
["TEST","GF","Typ 5","4a","4","Frei","Frei","SPD","Stangenverschluss"]
["TEST","GF","Typ 5","4a","Frei","Fahrbar","Frei","Frei","Frei"]
["TEST","GF","Typ 5","4a","Frei","Fahrbar","Frei","Frei","Stangenverschluss"]
["TEST","GF","Typ 5","4a","Frei","Fahrbar","Frei","SPD","Frei"]
["TEST","GF","Typ 5","4a","Frei","Fahrbar","Frei","SPD","Stangenverschluss"]
["TEST","GF","Typ 5","4a","Frei","Fest","Frei","Frei","Frei"]
["TEST","GF","Typ 5","4a","Frei","Fest","Frei","Frei","Stangenverschluss"]
["TEST","GF","Typ 5","4a","Frei","Fest","Frei","SPD","Frei"]
["TEST","GF","Typ 5","4a","Frei","Fest","Frei","SPD","Stangenverschluss"]
["TEST","GF","Typ 5","4a","Frei","Frei","Frei","Frei","Frei"]
["TEST","GF","Typ 5","4a","Frei","Frei","Frei","Frei","Stangenverschluss"]
["TEST","GF","Typ 5","4a","Frei","Frei","Frei","SPD","Frei"]
["TEST","GF","Typ 5","4a","Frei","Frei","Frei","SPD","Stangenverschluss"]
["TEST","GF","Typ 5","4b","3","Fahrbar","Frei","Frei","Frei"]
["TEST","GF","Typ 5","4b","3","Fahrbar","Frei","Frei","Stangenverschluss"]
["TEST","GF","Typ 5","4b","3","Fahrbar","Frei","SPD","Frei"]
["TEST","GF","Typ 5","4b","3","Fahrbar","Frei","SPD","Stangenverschluss"]
["TEST","GF","Typ 5","4b","3","Fest","Frei","Frei","Frei"]
["TEST","GF","Typ 5","4b","3","Fest","Frei","Frei","Stangenverschluss"]
["TEST","GF","Typ 5","4b","3","Fest","Frei","SPD","Frei"]
["TEST","GF","Typ 5","4b","3","Fest","Frei","SPD","Stangenverschluss"]
["TEST","GF","Typ 5","4b","3","Frei","Frei","Frei","Frei"]
["TEST","GF","Typ 5","4b","3","Frei","Frei","Frei","Stangenverschluss"]
["TEST","GF","Typ 5","4b","3","Frei","Frei","SPD","Frei"]
["TEST","GF","Typ 5","4b","3","Frei","Frei","SPD","Stangenverschluss"]
["TEST","GF","Typ 5","4b","4","Fahrbar","Frei","Frei","Frei"]
["TEST","GF","Typ 5","4b","4","Fahrbar","Frei","Frei","Stangenverschluss"]
["TEST","GF","Typ 5","4b","4","Fahrbar","Frei","SPD","Frei"]
["TEST","GF","Typ 5","4b","4","Fahrbar","Frei","SPD","Stangenverschluss"]
["TEST","GF","Typ 5","4b","4","Fest","Frei","Frei","Frei"]
["TEST","GF","Typ 5","4b","4","Fest","Frei","Frei","Stangenverschluss"]
["TEST","GF","Typ 5","4b","4","Fest","Frei","SPD","Frei"]
["TEST","GF","Typ 5","4b","4","Fest","Frei","SPD","Stangenverschluss"]
["TEST","GF","Typ 5","4b","4","Frei","Frei","Frei","Frei"]
["TEST","GF","Typ 5","4b","4","Frei","Frei","Frei","Stangenverschluss"]
["TEST","GF","Typ 5","4b","4","Frei","Frei","SPD","Frei"]
["TEST","GF","Typ 5","4b","4","Frei","Frei","SPD","Stangenverschluss"]
["TEST","GF","Typ 5","4b","Frei","Fahrbar","Frei","Frei","Frei"]
["TEST","GF","Typ 5","4b","Frei","Fahrbar","Frei","Frei","Stangenverschluss"]
["TEST","GF","Typ 5","4b","Frei","Fahrbar","Frei","SPD","Frei"]
["TEST","GF","Typ 5","4b","Frei","Fahrbar","Frei","SPD","Stangenverschluss"]
["TEST","GF","Typ 5","4b","Frei","Fest","Frei","Frei","Frei"]
["TEST","GF","Typ 5","4b","Frei","Fest","Frei","Frei","Stangenverschluss"]
["TEST","GF","Typ 5","4b","Frei","Fest","Frei","SPD","Frei"]
["TEST","GF","Typ 5","4b","Frei","Fest","Frei","SPD","Stangenverschluss"]
["TEST","GF","Typ 5","4b","Frei","Frei","Frei","Frei","Frei"]
["TEST","GF","Typ 5","4b","Frei","Frei","Frei","Frei","Stangenverschluss"]
["TEST","GF","Typ 5","4b","Frei","Frei","Frei","SPD","Frei"]
["TEST","GF","Typ 5","4b","Frei","Frei","Frei","SPD","Stangenverschluss"]
["TEST","GF","Typ 5","Frei","3","Fahrbar","Frei","Frei","Frei"]
["TEST","GF","Typ 5","Frei","3","Fahrbar","Frei","Frei","Stangenverschluss"]
["TEST","GF","Typ 5","Frei","3","Fahrbar","Frei","SPD","Frei"]
["TEST","GF","Typ 5","Frei","3","Fahrbar","Frei","SPD","Stangenverschluss"]
["TEST","GF","Typ 5","Frei","3","Fest","Frei","Frei","Frei"]
["TEST","GF","Typ 5","Frei","3","Fest","Frei","Frei","Stangenverschluss"]
["TEST","GF","Typ 5","Frei","3","Fest","Frei","SPD","Frei"]
["TEST","GF","Typ 5","Frei","3","Fest","Frei","SPD","Stangenverschluss"]
["TEST","GF","Typ 5","Frei","3","Frei","Frei","Frei","Frei"]
["TEST","GF","Typ 5","Frei","3","Frei","Frei","Frei","Stangenverschluss"]
["TEST","GF","Typ 5","Frei","3","Frei","Frei","SPD","Frei"]
["TEST","GF","Typ 5","Frei","3","Frei","Frei","SPD","Stangenverschluss"]
["TEST","GF","Typ 5","Frei","4","Fahrbar","Frei","Frei","Frei"]
["TEST","GF","Typ 5","Frei","4","Fahrbar","Frei","Frei","Stangenverschluss"]
["TEST","GF","Typ 5","Frei","4","Fahrbar","Frei","SPD","Frei"]
["TEST","GF","Typ 5","Frei","4","Fahrbar","Frei","SPD","Stangenverschluss"]
["TEST","GF","Typ 5","Frei","4","Fest","Frei","Frei","Frei"]
["TEST","GF","Typ 5","Frei","4","Fest","Frei","Frei","Stangenverschluss"]
["TEST","GF","Typ 5","Frei","4","Fest","Frei","SPD","Frei"]
["TEST","GF","Typ 5","Frei","4","Fest","Frei","SPD","Stangenverschluss"]
["TEST","GF","Typ 5","Frei","4","Frei","Frei","Frei","Frei"]
["TEST","GF","Typ 5","Frei","4","Frei","Frei","Frei","Stangenverschluss"]
["TEST","GF","Typ 5","Frei","4","Frei","Frei","SPD","Frei"]
["TEST","GF","Typ 5","Frei","4","Frei","Frei","SPD","Stangenverschluss"]
["TEST","GF","Typ 5","Frei","Frei","Fahrbar","Frei","Frei","Frei"]
["TEST","GF","Typ 5","Frei","Frei","Fahrbar","Frei","Frei","Stangenverschluss"]
["TEST","GF","Typ 5","Frei","Frei","Fahrbar","Frei","SPD","Frei"]
["TEST","GF","Typ 5","Frei","Frei","Fahrbar","Frei","SPD","Stangenverschluss"]
["TEST","GF","Typ 5","Frei","Frei","Fest","Frei","Frei","Frei"]
["TEST","GF","Typ 5","Frei","Frei","Fest","Frei","Frei","Stangenverschluss"]
["TEST","GF","Typ 5","Frei","Frei","Fest","Frei","SPD","Frei"]
["TEST","GF","Typ 5","Frei","Frei","Fest","Frei","SPD","Stangenverschluss"]
["TEST","GF","Typ 5","Frei","Frei","Frei","Frei","Frei","Frei"]
["TEST","GF","Typ 5","Frei","Frei","Frei","Frei","Frei","Stangenverschluss"]
["TEST","GF","Typ 5","Frei","Frei","Frei","Frei","SPD","Frei"]
["TEST","GF","Typ 5","Frei","Frei","Frei","Frei","SPD","Stangenverschluss"]
["TEST","GF","Typ 5","2","3","Fahrbar","Frei","Frei","Frei"]
["TEST","GF","Typ 5","2","3","Fahrbar","Frei","Frei","Stangenverschluss"]
["TEST","GF","Typ 5","2","3","Fahrbar","Frei","SPD","Frei"]
["TEST","GF","Typ 5","2","3","Fahrbar","Frei","SPD","Stangenverschluss"]
["TEST","GF","Typ 5","2","3","Fest","Frei","Frei","Frei"]
["TEST","GF","Typ 5","2","3","Fest","Frei","Frei","Stangenverschluss"]
["TEST","GF","Typ 5","2","3","Fest","Frei","SPD","Frei"]
["TEST","GF","Typ 5","2","3","Fest","Frei","SPD","Stangenverschluss"]
["TEST","GF","Typ 5","2","3","Frei","Frei","Frei","Frei"]
["TEST","GF","Typ 5","2","3","Frei","Frei","Frei","Stangenverschluss"]
["TEST","GF","Typ 5","2","3","Frei","Frei","SPD","Frei"]
["TEST","GF","Typ 5","2","3","Frei","Frei","SPD","Stangenverschluss"]
["TEST","GF","Typ 5","2","4","Fahrbar","Frei","Frei","Frei"]
["TEST","GF","Typ 5","2","4","Fahrbar","Frei","Frei","Stangenverschluss"]
["TEST","GF","Typ 5","2","4","Fahrbar","Frei","SPD","Frei"]
["TEST","GF","Typ 5","2","4","Fahrbar","Frei","SPD","Stangenverschluss"]
["TEST","GF","Typ 5","2","4","Fest","Frei","Frei","Frei"]
["TEST","GF","Typ 5","2","4","Fest","Frei","Frei","Stangenverschluss"]
["TEST","GF","Typ 5","2","4","Fest","Frei","SPD","Frei"]
["TEST","GF","Typ 5","2","4","Fest","Frei","SPD","Stangenverschluss"]
["TEST","GF","Typ 5","2","4","Frei","Frei","Frei","Frei"]
["TEST","GF","Typ 5","2","4","Frei","Frei","Frei","Stangenverschluss"]
["TEST","GF","Typ 5","2","4","Frei","Frei","SPD","Frei"]
["TEST","GF","Typ 5","2","4","Frei","Frei","SPD","Stangenverschluss"]
["TEST","GF","Typ 5","2","Frei","Fahrbar","Frei","Frei","Frei"]
["TEST","GF","Typ 5","2","Frei","Fahrbar","Frei","Frei","Stangenverschluss"]
["TEST","GF","Typ 5","2","Frei","Fahrbar","Frei","SPD","Frei"]
["TEST","GF","Typ 5","2","Frei","Fahrbar","Frei","SPD","Stangenverschluss"]
["TEST","GF","Typ 5","2","Frei","Fest","Frei","Frei","Frei"]
["TEST","GF","Typ 5","2","Frei","Fest","Frei","Frei","Stangenverschluss"]
["TEST","GF","Typ 5","2","Frei","Fest","Frei","SPD","Frei"]
["TEST","GF","Typ 5","2","Frei","Fest","Frei","SPD","Stangenverschluss"]
["TEST","GF","Typ 5","2","Frei","Frei","Frei","Frei","Frei"]
["TEST","GF","Typ 5","2","Frei","Frei","Frei","Frei","Stangenverschluss"]
["TEST","GF","Typ 5","2","Frei","Frei","Frei","SPD","Frei"]
["TEST","GF","Typ 5","2","Frei","Frei","Frei","SPD","Stangenverschluss"]
["TEST","GF","Typ 2","4a","3","Fahrbar","Frei","Frei","Frei"]
["TEST","GF","Typ 2","4a","3","Fahrbar","Frei","Frei","Stangenverschluss"]
["TEST","GF","Typ 2","4a","3","Fahrbar","Frei","SPD","Frei"]
["TEST","GF","Typ 2","4a","3","Fahrbar","Frei","SPD","Stangenverschluss"]
["TEST","GF","Typ 2","4a","3","Fest","Frei","Frei","Frei"]
["TEST","GF","Typ 2","4a","3","Fest","Frei","Frei","Stangenverschluss"]
["TEST","GF","Typ 2","4a","3","Fest","Frei","SPD","Frei"]
["TEST","GF","Typ 2","4a","3","Fest","Frei","SPD","Stangenverschluss"]
["TEST","GF","Typ 2","4a","3","Frei","Frei","Frei","Frei"]
["TEST","GF","Typ 2","4a","3","Frei","Frei","Frei","Stangenverschluss"]
["TEST","GF","Typ 2","4a","3","Frei","Frei","SPD","Frei"]
["TEST","GF","Typ 2","4a","3","Frei","Frei","SPD","Stangenverschluss"]
["TEST","GF","Typ 2","4a","4","Fahrbar","Frei","Frei","Frei"]
["TEST","GF","Typ 2","4a","4","Fahrbar","Frei","Frei","Stangenverschluss"]
["TEST","GF","Typ 2","4a","4","Fahrbar","Frei","SPD","Frei"]
["TEST","GF","Typ 2","4a","4","Fahrbar","Frei","SPD","Stangenverschluss"]
["TEST","GF","Typ 2","4a","4","Fest","Frei","Frei","Frei"]
["TEST","GF","Typ 2","4a","4","Fest","Frei","Frei","Stangenverschluss"]
["TEST","GF","Typ 2","4a","4","Fest","Frei","SPD","Frei"]
["TEST","GF","Typ 2","4a","4","Fest","Frei","SPD","Stangenverschluss"]
["TEST","GF","Typ 2","4a","4","Frei","Frei","Frei","Frei"]
["TEST","GF","Typ 2","4a","4","Frei","Frei","Frei","Stangenverschluss"]
["TEST","GF","Typ 2","4a","4","Frei","Frei","SPD","Frei"]
["TEST","GF","Typ 2","4a","4","Frei","Frei","SPD","Stangenverschluss"]
["TEST","GF","Typ 2","4a","Frei","Fahrbar","Frei","Frei","Frei"]
["TEST","GF","Typ 2","4a","Frei","Fahrbar","Frei","Frei","Stangenverschluss"]
["TEST","GF","Typ 2","4a","Frei","Fahrbar","Frei","SPD","Frei"]
["TEST","GF","Typ 2","4a","Frei","Fahrbar","Frei","SPD","Stangenverschluss"]
["TEST","GF","Typ 2","4a","Frei","Fest","Frei","Frei","Frei"]
["TEST","GF","Typ 2","4a","Frei","Fest","Frei","Frei","Stangenverschluss"]
["TEST","GF","Typ 2","4a","Frei","Fest","Frei","SPD","Frei"]
["TEST","GF","Typ 2","4a","Frei","Fest","Frei","SPD","Stangenverschluss"]
["TEST","GF","Typ 2","4a","Frei","Frei","Frei","Frei","Frei"]
["TEST","GF","Typ 2","4a","Frei","Frei","Frei","Frei","Stangenverschluss"]
["TEST","GF","Typ 2","4a","Frei","Frei","Frei","SPD","Frei"]
["TEST","GF","Typ 2","4a","Frei","Frei","Frei","SPD","Stangenverschluss"]
["TEST","GF","Typ 2","4b","3","Fahrbar","Frei","Frei","Frei"]
["TEST","GF","Typ 2","4b","3","Fahrbar","Frei","Frei","Stangenverschluss"]
["TEST","GF","Typ 2","4b","3","Fahrbar","Frei","SPD","Frei"]
["TEST","GF","Typ 2","4b","3","Fahrbar","Frei","SPD","Stangenverschluss"]
["TEST","GF","Typ 2","4b","3","Fest","Frei","Frei","Frei"]
["TEST","GF","Typ 2","4b","3","Fest","Frei","Frei","Stangenverschluss"]
["TEST","GF","Typ 2","4b","3","Fest","Frei","SPD","Frei"]
["TEST","GF","Typ 2","4b","3","Fest","Frei","SPD","Stangenverschluss"]
["TEST","GF","Typ 2","4b","3","Frei","Frei","Frei","Frei"]
["TEST","GF","Typ 2","4b","3","Frei","Frei","Frei","Stangenverschluss"]
["TEST","GF","Typ 2","4b","3","Frei","Frei","SPD","Frei"]
["TEST","GF","Typ 2","4b","3","Frei","Frei","SPD","Stangenverschluss"]
["TEST","GF","Typ 2","4b","4","Fahrbar","Frei","Frei","Frei"]
["TEST","GF","Typ 2","4b","4","Fahrbar","Frei","Frei","Stangenverschluss"]
["TEST","GF","Typ 2","4b","4","Fahrbar","Frei","SPD","Frei"]
["TEST","GF","Typ 2","4b","4","Fahrbar","Frei","SPD","Stangenverschluss"]
["TEST","GF","Typ 2","4b","4","Fest","Frei","Frei","Frei"]
["TEST","GF","Typ 2","4b","4","Fest","Frei","Frei","Stangenverschluss"]
["TEST","GF","Typ 2","4b","4","Fest","Frei","SPD","Frei"]
["TEST","GF","Typ 2","4b","4","Fest","Frei","SPD","Stangenverschluss"]
["TEST","GF","Typ 2","4b","4","Frei","Frei","Frei","Frei"]
["TEST","GF","Typ 2","4b","4","Frei","Frei","Frei","Stangenverschluss"]
["TEST","GF","Typ 2","4b","4","Frei","Frei","SPD","Frei"]
["TEST","GF","Typ 2","4b","4","Frei","Frei","SPD","Stangenverschluss"]
["TEST","GF","Typ 2","4b","Frei","Fahrbar","Frei","Frei","Frei"]
["TEST","GF","Typ 2","4b","Frei","Fahrbar","Frei","Frei","Stangenverschluss"]
["TEST","GF","Typ 2","4b","Frei","Fahrbar","Frei","SPD","Frei"]
["TEST","GF","Typ 2","4b","Frei","Fahrbar","Frei","SPD","Stangenverschluss"]
["TEST","GF","Typ 2","4b","Frei","Fest","Frei","Frei","Frei"]
["TEST","GF","Typ 2","4b","Frei","Fest","Frei","Frei","Stangenverschluss"]
["TEST","GF","Typ 2","4b","Frei","Fest","Frei","SPD","Frei"]
["TEST","GF","Typ 2","4b","Frei","Fest","Frei","SPD","Stangenverschluss"]
["TEST","GF","Typ 2","4b","Frei","Frei","Frei","Frei","Frei"]
["TEST","GF","Typ 2","4b","Frei","Frei","Frei","Frei","Stangenverschluss"]
["TEST","GF","Typ 2","4b","Frei","Frei","Frei","SPD","Frei"]
["TEST","GF","Typ 2","4b","Frei","Frei","Frei","SPD","Stangenverschluss"]
["TEST","GF","Typ 2","Frei","3","Fahrbar","Frei","Frei","Frei"]
["TEST","GF","Typ 2","Frei","3","Fahrbar","Frei","Frei","Stangenverschluss"]
["TEST","GF","Typ 2","Frei","3","Fahrbar","Frei","SPD","Frei"]
["TEST","GF","Typ 2","Frei","3","Fahrbar","Frei","SPD","Stangenverschluss"]
["TEST","GF","Typ 2","Frei","3","Fest","Frei","Frei","Frei"]
["TEST","GF","Typ 2","Frei","3","Fest","Frei","Frei","Stangenverschluss"]
["TEST","GF","Typ 2","Frei","3","Fest","Frei","SPD","Frei"]
["TEST","GF","Typ 2","Frei","3","Fest","Frei","SPD","Stangenverschluss"]
["TEST","GF","Typ 2","Frei","3","Frei","Frei","Frei","Frei"]
["TEST","GF","Typ 2","Frei","3","Frei","Frei","Frei","Stangenverschluss"]
["TEST","GF","Typ 2","Frei","3","Frei","Frei","SPD","Frei"]
["TEST","GF","Typ 2","Frei","3","Frei","Frei","SPD","Stangenverschluss"]
["TEST","GF","Typ 2","Frei","4","Fahrbar","Frei","Frei","Frei"]
["TEST","GF","Typ 2","Frei","4","Fahrbar","Frei","Frei","Stangenverschluss"]
["TEST","GF","Typ 2","Frei","4","Fahrbar","Frei","SPD","Frei"]
["TEST","GF","Typ 2","Frei","4","Fahrbar","Frei","SPD","Stangenverschluss"]
["TEST","GF","Typ 2","Frei","4","Fest","Frei","Frei","Frei"]
["TEST","GF","Typ 2","Frei","4","Fest","Frei","Frei","Stangenverschluss"]
["TEST","GF","Typ 2","Frei","4","Fest","Frei","SPD","Frei"]
["TEST","GF","Typ 2","Frei","4","Fest","Frei","SPD","Stangenverschluss"]
["TEST","GF","Typ 2","Frei","4","Frei","Frei","Frei","Frei"]
["TEST","GF","Typ 2","Frei","4","Frei","Frei","Frei","Stangenverschluss"]
["TEST","GF","Typ 2","Frei","4","Frei","Frei","SPD","Frei"]
["TEST","GF","Typ 2","Frei","4","Frei","Frei","SPD","Stangenverschluss"]
["TEST","GF","Typ 2","Frei","Frei","Fahrbar","Frei","Frei","Frei"]
["TEST","GF","Typ 2","Frei","Frei","Fahrbar","Frei","Frei","Stangenverschluss"]
["TEST","GF","Typ 2","Frei","Frei","Fahrbar","Frei","SPD","Frei"]
["TEST","GF","Typ 2","Frei","Frei","Fahrbar","Frei","SPD","Stangenverschluss"]
["TEST","GF","Typ 2","Frei","Frei","Fest","Frei","Frei","Frei"]
["TEST","GF","Typ 2","Frei","Frei","Fest","Frei","Frei","Stangenverschluss"]
["TEST","GF","Typ 2","Frei","Frei","Fest","Frei","SPD","Frei"]
["TEST","GF","Typ 2","Frei","Frei","Fest","Frei","SPD","Stangenverschluss"]
["TEST","GF","Typ 2","Frei","Frei","Frei","Frei","Frei","Frei"]
["TEST","GF","Typ 2","Frei","Frei","Frei","Frei","Frei","Stangenverschluss"]
["TEST","GF","Typ 2","Frei","Frei","Frei","Frei","SPD","Frei"]
["TEST","GF","Typ 2","Frei","Frei","Frei","Frei","SPD","Stangenverschluss"]
["TEST","GF","Typ 2","2","3","Fahrbar","Frei","Frei","Frei"]
["TEST","GF","Typ 2","2","3","Fahrbar","Frei","Frei","Stangenverschluss"]
["TEST","GF","Typ 2","2","3","Fahrbar","Frei","SPD","Frei"]
["TEST","GF","Typ 2","2","3","Fahrbar","Frei","SPD","Stangenverschluss"]
["TEST","GF","Typ 2","2","3","Fest","Frei","Frei","Frei"]
["TEST","GF","Typ 2","2","3","Fest","Frei","Frei","Stangenverschluss"]
["TEST","GF","Typ 2","2","3","Fest","Frei","SPD","Frei"]
["TEST","GF","Typ 2","2","3","Fest","Frei","SPD","Stangenverschluss"]
["TEST","GF","Typ 2","2","3","Frei","Frei","Frei","Frei"]
["TEST","GF","Typ 2","2","3","Frei","Frei","Frei","Stangenverschluss"]
["TEST","GF","Typ 2","2","3","Frei","Frei","SPD","Frei"]
["TEST","GF","Typ 2","2","3","Frei","Frei","SPD","Stangenverschluss"]
["TEST","GF","Typ 2","2","4","Fahrbar","Frei","Frei","Frei"]
["TEST","GF","Typ 2","2","4","Fahrbar","Frei","Frei","Stangenverschluss"]
["TEST","GF","Typ 2","2","4","Fahrbar","Frei","SPD","Frei"]
["TEST","GF","Typ 2","2","4","Fahrbar","Frei","SPD","Stangenverschluss"]
["TEST","GF","Typ 2","2","4","Fest","Frei","Frei","Frei"]
["TEST","GF","Typ 2","2","4","Fest","Frei","Frei","Stangenverschluss"]
["TEST","GF","Typ 2","2","4","Fest","Frei","SPD","Frei"]
["TEST","GF","Typ 2","2","4","Fest","Frei","SPD","Stangenverschluss"]
["TEST","GF","Typ 2","2","4","Frei","Frei","Frei","Frei"]
["TEST","GF","Typ 2","2","4","Frei","Frei","Frei","Stangenverschluss"]
["TEST","GF","Typ 2","2","4","Frei","Frei","SPD","Frei"]
["TEST","GF","Typ 2","2","4","Frei","Frei","SPD","Stangenverschluss"]
["TEST","GF","Typ 2","2","Frei","Fahrbar","Frei","Frei","Frei"]
["TEST","GF","Typ 2","2","Frei","Fahrbar","Frei","Frei","Stangenverschluss"]
["TEST","GF","Typ 2","2","Frei","Fahrbar","Frei","SPD","Frei"]
["TEST","GF","Typ 2","2","Frei","Fahrbar","Frei","SPD","Stangenverschluss"]
["TEST","GF","Typ 2","2","Frei","Fest","Frei","Frei","Frei"]
["TEST","GF","Typ 2","2","Frei","Fest","Frei","Frei","Stangenverschluss"]
["TEST","GF","Typ 2","2","Frei","Fest","Frei","SPD","Frei"]
["TEST","GF","Typ 2","2","Frei","Fest","Frei","SPD","Stangenverschluss"]
["TEST","GF","Typ 2","2","Frei","Frei","Frei","Frei","Frei"]
["TEST","GF","Typ 2","2","Frei","Frei","Frei","Frei","Stangenverschluss"]
["TEST","GF","Typ 2","2","Frei","Frei","Frei","SPD","Frei"]
["TEST","GF","Typ 2","2","Frei","Frei","Frei","SPD","Stangenverschluss"]
["TEST","FOP","Frei","4a","3","Fahrbar","Frei","Frei","Frei"]
["TEST","FOP","Frei","4a","3","Fahrbar","Frei","Frei","Stangenverschluss"]
["TEST","FOP","Frei","4a","3","Fahrbar","Frei","SPD","Frei"]
["TEST","FOP","Frei","4a","3","Fahrbar","Frei","SPD","Stangenverschluss"]
["TEST","FOP","Frei","4a","3","Fest","Frei","Frei","Frei"]
["TEST","FOP","Frei","4a","3","Fest","Frei","Frei","Stangenverschluss"]
["TEST","FOP","Frei","4a","3","Fest","Frei","SPD","Frei"]
["TEST","FOP","Frei","4a","3","Fest","Frei","SPD","Stangenverschluss"]
["TEST","FOP","Frei","4a","3","Frei","Frei","Frei","Frei"]
["TEST","FOP","Frei","4a","3","Frei","Frei","Frei","Stangenverschluss"]
["TEST","FOP","Frei","4a","3","Frei","Frei","SPD","Frei"]
["TEST","FOP","Frei","4a","3","Frei","Frei","SPD","Stangenverschluss"]
["TEST","FOP","Frei","4a","4","Fahrbar","Frei","Frei","Frei"]
["TEST","FOP","Frei","4a","4","Fahrbar","Frei","Frei","Stangenverschluss"]
["TEST","FOP","Frei","4a","4","Fahrbar","Frei","SPD","Frei"]
["TEST","FOP","Frei","4a","4","Fahrbar","Frei","SPD","Stangenverschluss"]
["TEST","FOP","Frei","4a","4","Fest","Frei","Frei","Frei"]
["TEST","FOP","Frei","4a","4","Fest","Frei","Frei","Stangenverschluss"]
["TEST","FOP","Frei","4a","4","Fest","Frei","SPD","Frei"]
["TEST","FOP","Frei","4a","4","Fest","Frei","SPD","Stangenverschluss"]
["TEST","FOP","Frei","4a","4","Frei","Frei","Frei","Frei"]
["TEST","FOP","Frei","4a","4","Frei","Frei","Frei","Stangenverschluss"]
["TEST","FOP","Frei","4a","4","Frei","Frei","SPD","Frei"]
["TEST","FOP","Frei","4a","4","Frei","Frei","SPD","Stangenverschluss"]
["TEST","FOP","Frei","4a","Frei","Fahrbar","Frei","Frei","Frei"]
["TEST","FOP","Frei","4a","Frei","Fahrbar","Frei","Frei","Stangenverschluss"]
["TEST","FOP","Frei","4a","Frei","Fahrbar","Frei","SPD","Frei"]
["TEST","FOP","Frei","4a","Frei","Fahrbar","Frei","SPD","Stangenverschluss"]
["TEST","FOP","Frei","4a","Frei","Fest","Frei","Frei","Frei"]
["TEST","FOP","Frei","4a","Frei","Fest","Frei","Frei","Stangenverschluss"]
["TEST","FOP","Frei","4a","Frei","Fest","Frei","SPD","Frei"]
["TEST","FOP","Frei","4a","Frei","Fest","Frei","SPD","Stangenverschluss"]
["TEST","FOP","Frei","4a","Frei","Frei","Frei","Frei","Frei"]
["TEST","FOP","Frei","4a","Frei","Frei","Frei","Frei","Stangenverschluss"]
["TEST","FOP","Frei","4a","Frei","Frei","Frei","SPD","Frei"]
["TEST","FOP","Frei","4a","Frei","Frei","Frei","SPD","Stangenverschluss"]
["TEST","FOP","Frei","4b","3","Fahrbar","Frei","Frei","Frei"]
["TEST","FOP","Frei","4b","3","Fahrbar","Frei","Frei","Stangenverschluss"]
["TEST","FOP","Frei","4b","3","Fahrbar","Frei","SPD","Frei"]
["TEST","FOP","Frei","4b","3","Fahrbar","Frei","SPD","Stangenverschluss"]
["TEST","FOP","Frei","4b","3","Fest","Frei","Frei","Frei"]
["TEST","FOP","Frei","4b","3","Fest","Frei","Frei","Stangenverschluss"]
["TEST","FOP","Frei","4b","3","Fest","Frei","SPD","Frei"]
["TEST","FOP","Frei","4b","3","Fest","Frei","SPD","Stangenverschluss"]
["TEST","FOP","Frei","4b","3","Frei","Frei","Frei","Frei"]
["TEST","FOP","Frei","4b","3","Frei","Frei","Frei","Stangenverschluss"]
["TEST","FOP","Frei","4b","3","Frei","Frei","SPD","Frei"]
["TEST","FOP","Frei","4b","3","Frei","Frei","SPD","Stangenverschluss"]
["TEST","FOP","Frei","4b","4","Fahrbar","Frei","Frei","Frei"]
["TEST","FOP","Frei","4b","4","Fahrbar","Frei","Frei","Stangenverschluss"]
["TEST","FOP","Frei","4b","4","Fahrbar","Frei","SPD","Frei"]
["TEST","FOP","Frei","4b","4","Fahrbar","Frei","SPD","Stangenverschluss"]
["TEST","FOP","Frei","4b","4","Fest","Frei","Frei","Frei"]
["TEST","FOP","Frei","4b","4","Fest","Frei","Frei","Stangenverschluss"]
["TEST","FOP","Frei","4b","4","Fest","Frei","SPD","Frei"]
["TEST","FOP","Frei","4b","4","Fest","Frei","SPD","Stangenverschluss"]
["TEST","FOP","Frei","4b","4","Frei","Frei","Frei","Frei"]
["TEST","FOP","Frei","4b","4","Frei","Frei","Frei","Stangenverschluss"]
["TEST","FOP","Frei","4b","4","Frei","Frei","SPD","Frei"]
["TEST","FOP","Frei","4b","4","Frei","Frei","SPD","Stangenverschluss"]
["TEST","FOP","Frei","4b","Frei","Fahrbar","Frei","Frei","Frei"]
["TEST","FOP","Frei","4b","Frei","Fahrbar","Frei","Frei","Stangenverschluss"]
["TEST","FOP","Frei","4b","Frei","Fahrbar","Frei","SPD","Frei"]
["TEST","FOP","Frei","4b","Frei","Fahrbar","Frei","SPD","Stangenverschluss"]
["TEST","FOP","Frei","4b","Frei","Fest","Frei","Frei","Frei"]
["TEST","FOP","Frei","4b","Frei","Fest","Frei","Frei","Stangenverschluss"]
["TEST","FOP","Frei","4b","Frei","Fest","Frei","SPD","Frei"]
["TEST","FOP","Frei","4b","Frei","Fest","Frei","SPD","Stangenverschluss"]
["TEST","FOP","Frei","4b","Frei","Frei","Frei","Frei","Frei"]
["TEST","FOP","Frei","4b","Frei","Frei","Frei","Frei","Stangenverschluss"]
["TEST","FOP","Frei","4b","Frei","Frei","Frei","SPD","Frei"]
["TEST","FOP","Frei","4b","Frei","Frei","Frei","SPD","Stangenverschluss"]
["TEST","FOP","Frei","Frei","3","Fahrbar","Frei","Frei","Frei"]
["TEST","FOP","Frei","Frei","3","Fahrbar","Frei","Frei","Stangenverschluss"]
["TEST","FOP","Frei","Frei","3","Fahrbar","Frei","SPD","Frei"]
["TEST","FOP","Frei","Frei","3","Fahrbar","Frei","SPD","Stangenverschluss"]
["TEST","FOP","Frei","Frei","3","Fest","Frei","Frei","Frei"]
["TEST","FOP","Frei","Frei","3","Fest","Frei","Frei","Stangenverschluss"]
["TEST","FOP","Frei","Frei","3","Fest","Frei","SPD","Frei"]
["TEST","FOP","Frei","Frei","3","Fest","Frei","SPD","Stangenverschluss"]
["TEST","FOP","Frei","Frei","3","Frei","Frei","Frei","Frei"]
["TEST","FOP","Frei","Frei","3","Frei","Frei","Frei","Stangenverschluss"]
["TEST","FOP","Frei","Frei","3","Frei","Frei","SPD","Frei"]
["TEST","FOP","Frei","Frei","3","Frei","Frei","SPD","Stangenverschluss"]
["TEST","FOP","Frei","Frei","4","Fahrbar","Frei","Frei","Frei"]
["TEST","FOP","Frei","Frei","4","Fahrbar","Frei","Frei","Stangenverschluss"]
["TEST","FOP","Frei","Frei","4","Fahrbar","Frei","SPD","Frei"]
["TEST","FOP","Frei","Frei","4","Fahrbar","Frei","SPD","Stangenverschluss"]
["TEST","FOP","Frei","Frei","4","Fest","Frei","Frei","Frei"]
["TEST","FOP","Frei","Frei","4","Fest","Frei","Frei","Stangenverschluss"]
["TEST","FOP","Frei","Frei","4","Fest","Frei","SPD","Frei"]
["TEST","FOP","Frei","Frei","4","Fest","Frei","SPD","Stangenverschluss"]
["TEST","FOP","Frei","Frei","4","Frei","Frei","Frei","Frei"]
["TEST","FOP","Frei","Frei","4","Frei","Frei","Frei","Stangenverschluss"]
["TEST","FOP","Frei","Frei","4","Frei","Frei","SPD","Frei"]
["TEST","FOP","Frei","Frei","4","Frei","Frei","SPD","Stangenverschluss"]
["TEST","FOP","Frei","Frei","Frei","Fahrbar","Frei","Frei","Frei"]
["TEST","FOP","Frei","Frei","Frei","Fahrbar","Frei","Frei","Stangenverschluss"]
["TEST","FOP","Frei","Frei","Frei","Fahrbar","Frei","SPD","Frei"]
["TEST","FOP","Frei","Frei","Frei","Fahrbar","Frei","SPD","Stangenverschluss"]
["TEST","FOP","Frei","Frei","Frei","Fest","Frei","Frei","Frei"]
["TEST","FOP","Frei","Frei","Frei","Fest","Frei","Frei","Stangenverschluss"]
["TEST","FOP","Frei","Frei","Frei","Fest","Frei","SPD","Frei"]
["TEST","FOP","Frei","Frei","Frei","Fest","Frei","SPD","Stangenverschluss"]
["TEST","FOP","Frei","Frei","Frei","Frei","Frei","Frei","Frei"]
["TEST","FOP","Frei","Frei","Frei","Frei","Frei","Frei","Stangenverschluss"]
["TEST","FOP","Frei","Frei","Frei","Frei","Frei","SPD","Frei"]
["TEST","FOP","Frei","Frei","Frei","Frei","Frei","SPD","Stangenverschluss"]
["TEST","FOP","Frei","2","3","Fahrbar","Frei","Frei","Frei"]
["TEST","FOP","Frei","2","3","Fahrbar","Frei","Frei","Stangenverschluss"]
["TEST","FOP","Frei","2","3","Fahrbar","Frei","SPD","Frei"]
["TEST","FOP","Frei","2","3","Fahrbar","Frei","SPD","Stangenverschluss"]
["TEST","FOP","Frei","2","3","Fest","Frei","Frei","Frei"]
["TEST","FOP","Frei","2","3","Fest","Frei","Frei","Stangenverschluss"]
["TEST","FOP","Frei","2","3","Fest","Frei","SPD","Frei"]
["TEST","FOP","Frei","2","3","Fest","Frei","SPD","Stangenverschluss"]
["TEST","FOP","Frei","2","3","Frei","Frei","Frei","Frei"]
["TEST","FOP","Frei","2","3","Frei","Frei","Frei","Stangenverschluss"]
["TEST","FOP","Frei","2","3","Frei","Frei","SPD","Frei"]
["TEST","FOP","Frei","2","3","Frei","Frei","SPD","Stangenverschluss"]
["TEST","FOP","Frei","2","4","Fahrbar","Frei","Frei","Frei"]
["TEST","FOP","Frei","2","4","Fahrbar","Frei","Frei","Stangenverschluss"]
["TEST","FOP","Frei","2","4","Fahrbar","Frei","SPD","Frei"]
["TEST","FOP","Frei","2","4","Fahrbar","Frei","SPD","Stangenverschluss"]
["TEST","FOP","Frei","2","4","Fest","Frei","Frei","Frei"]
["TEST","FOP","Frei","2","4","Fest","Frei","Frei","Stangenverschluss"]
["TEST","FOP","Frei","2","4","Fest","Frei","SPD","Frei"]
["TEST","FOP","Frei","2","4","Fest","Frei","SPD","Stangenverschluss"]
["TEST","FOP","Frei","2","4","Frei","Frei","Frei","Frei"]
["TEST","FOP","Frei","2","4","Frei","Frei","Frei","Stangenverschluss"]
["TEST","FOP","Frei","2","4","Frei","Frei","SPD","Frei"]
["TEST","FOP","Frei","2","4","Frei","Frei","SPD","Stangenverschluss"]
["TEST","FOP","Frei","2","Frei","Fahrbar","Frei","Frei","Frei"]
["TEST","FOP","Frei","2","Frei","Fahrbar","Frei","Frei","Stangenverschluss"]
["TEST","FOP","Frei","2","Frei","Fahrbar","Frei","SPD","Frei"]
["TEST","FOP","Frei","2","Frei","Fahrbar","Frei","SPD","Stangenverschluss"]
["TEST","FOP","Frei","2","Frei","Fest","Frei","Frei","Frei"]
["TEST","FOP","Frei","2","Frei","Fest","Frei","Frei","Stangenverschluss"]
["TEST","FOP","Frei","2","Frei","Fest","Frei","SPD","Frei"]
["TEST","FOP","Frei","2","Frei","Fest","Frei","SPD","Stangenverschluss"]
["TEST","FOP","Frei","2","Frei","Frei","Frei","Frei","Frei"]
["TEST","FOP","Frei","2","Frei","Frei","Frei","Frei","Stangenverschluss"]
["TEST","FOP","Frei","2","Frei","Frei","Frei","SPD","Frei"]
["TEST","FOP","Frei","2","Frei","Frei","Frei","SPD","Stangenverschluss"]
["TEST","FOP","Typ 1","4a","3","Fahrbar","Frei","Frei","Frei"]
["TEST","FOP","Typ 1","4a","3","Fahrbar","Frei","Frei","Stangenverschluss"]
["TEST","FOP","Typ 1","4a","3","Fahrbar","Frei","SPD","Frei"]
["TEST","FOP","Typ 1","4a","3","Fahrbar","Frei","SPD","Stangenverschluss"]
["TEST","FOP","Typ 1","4a","3","Fest","Frei","Frei","Frei"]
["TEST","FOP","Typ 1","4a","3","Fest","Frei","Frei","Stangenverschluss"]
["TEST","FOP","Typ 1","4a","3","Fest","Frei","SPD","Frei"]
["TEST","FOP","Typ 1","4a","3","Fest","Frei","SPD","Stangenverschluss"]
["TEST","FOP","Typ 1","4a","3","Frei","Frei","Frei","Frei"]
["TEST","FOP","Typ 1","4a","3","Frei","Frei","Frei","Stangenverschluss"]
["TEST","FOP","Typ 1","4a","3","Frei","Frei","SPD","Frei"]
["TEST","FOP","Typ 1","4a","3","Frei","Frei","SPD","Stangenverschluss"]
["TEST","FOP","Typ 1","4a","4","Fahrbar","Frei","Frei","Frei"]
["TEST","FOP","Typ 1","4a","4","Fahrbar","Frei","Frei","Stangenverschluss"]
["TEST","FOP","Typ 1","4a","4","Fahrbar","Frei","SPD","Frei"]
["TEST","FOP","Typ 1","4a","4","Fahrbar","Frei","SPD","Stangenverschluss"]
["TEST","FOP","Typ 1","4a","4","Fest","Frei","Frei","Frei"]
["TEST","FOP","Typ 1","4a","4","Fest","Frei","Frei","Stangenverschluss"]
["TEST","FOP","Typ 1","4a","4","Fest","Frei","SPD","Frei"]
["TEST","FOP","Typ 1","4a","4","Fest","Frei","SPD","Stangenverschluss"]
["TEST","FOP","Typ 1","4a","4","Frei","Frei","Frei","Frei"]
["TEST","FOP","Typ 1","4a","4","Frei","Frei","Frei","Stangenverschluss"]
["TEST","FOP","Typ 1","4a","4","Frei","Frei","SPD","Frei"]
["TEST","FOP","Typ 1","4a","4","Frei","Frei","SPD","Stangenverschluss"]
["TEST","FOP","Typ 1","4a","Frei","Fahrbar","Frei","Frei","Frei"]
["TEST","FOP","Typ 1","4a","Frei","Fahrbar","Frei","Frei","Stangenverschluss"]
["TEST","FOP","Typ 1","4a","Frei","Fahrbar","Frei","SPD","Frei"]
["TEST","FOP","Typ 1","4a","Frei","Fahrbar","Frei","SPD","Stangenverschluss"]
["TEST","FOP","Typ 1","4a","Frei","Fest","Frei","Frei","Frei"]
["TEST","FOP","Typ 1","4a","Frei","Fest","Frei","Frei","Stangenverschluss"]
["TEST","FOP","Typ 1","4a","Frei","Fest","Frei","SPD","Frei"]
["TEST","FOP","Typ 1","4a","Frei","Fest","Frei","SPD","Stangenverschluss"]
["TEST","FOP","Typ 1","4a","Frei","Frei","Frei","Frei","Frei"]
["TEST","FOP","Typ 1","4a","Frei","Frei","Frei","Frei","Stangenverschluss"]
["TEST","FOP","Typ 1","4a","Frei","Frei","Frei","SPD","Frei"]
["TEST","FOP","Typ 1","4a","Frei","Frei","Frei","SPD","Stangenverschluss"]
["TEST","FOP","Typ 1","4b","3","Fahrbar","Frei","Frei","Frei"]
["TEST","FOP","Typ 1","4b","3","Fahrbar","Frei","Frei","Stangenverschluss"]
["TEST","FOP","Typ 1","4b","3","Fahrbar","Frei","SPD","Frei"]
["TEST","FOP","Typ 1","4b","3","Fahrbar","Frei","SPD","Stangenverschluss"]
["TEST","FOP","Typ 1","4b","3","Fest","Frei","Frei","Frei"]
["TEST","FOP","Typ 1","4b","3","Fest","Frei","Frei","Stangenverschluss"]
["TEST","FOP","Typ 1","4b","3","Fest","Frei","SPD","Frei"]
["TEST","FOP","Typ 1","4b","3","Fest","Frei","SPD","Stangenverschluss"]
["TEST","FOP","Typ 1","4b","3","Frei","Frei","Frei","Frei"]
["TEST","FOP","Typ 1","4b","3","Frei","Frei","Frei","Stangenverschluss"]
["TEST","FOP","Typ 1","4b","3","Frei","Frei","SPD","Frei"]
["TEST","FOP","Typ 1","4b","3","Frei","Frei","SPD","Stangenverschluss"]
["TEST","FOP","Typ 1","4b","4","Fahrbar","Frei","Frei","Frei"]
["TEST","FOP","Typ 1","4b","4","Fahrbar","Frei","Frei","Stangenverschluss"]
["TEST","FOP","Typ 1","4b","4","Fahrbar","Frei","SPD","Frei"]
["TEST","FOP","Typ 1","4b","4","Fahrbar","Frei","SPD","Stangenverschluss"]
["TEST","FOP","Typ 1","4b","4","Fest","Frei","Frei","Frei"]
["TEST","FOP","Typ 1","4b","4","Fest","Frei","Frei","Stangenverschluss"]
["TEST","FOP","Typ 1","4b","4","Fest","Frei","SPD","Frei"]
["TEST","FOP","Typ 1","4b","4","Fest","Frei","SPD","Stangenverschluss"]
["TEST","FOP","Typ 1","4b","4","Frei","Frei","Frei","Frei"]
["TEST","FOP","Typ 1","4b","4","Frei","Frei","Frei","Stangenverschluss"]
["TEST","FOP","Typ 1","4b","4","Frei","Frei","SPD","Frei"]
["TEST","FOP","Typ 1","4b","4","Frei","Frei","SPD","Stangenverschluss"]
["TEST","FOP","Typ 1","4b","Frei","Fahrbar","Frei","Frei","Frei"]
["TEST","FOP","Typ 1","4b","Frei","Fahrbar","Frei","Frei","Stangenverschluss"]
["TEST","FOP","Typ 1","4b","Frei","Fahrbar","Frei","SPD","Frei"]
["TEST","FOP","Typ 1","4b","Frei","Fahrbar","Frei","SPD","Stangenverschluss"]
["TEST","FOP","Typ 1","4b","Frei","Fest","Frei","Frei","Frei"]
["TEST","FOP","Typ 1","4b","Frei","Fest","Frei","Frei","Stangenverschluss"]
["TEST","FOP","Typ 1","4b","Frei","Fest","Frei","SPD","Frei"]
["TEST","FOP","Typ 1","4b","Frei","Fest","Frei","SPD","Stangenverschluss"]
["TEST","FOP","Typ 1","4b","Frei","Frei","Frei","Frei","Frei"]
["TEST","FOP","Typ 1","4b","Frei","Frei","Frei","Frei","Stangenverschluss"]
["TEST","FOP","Typ 1","4b","Frei","Frei","Frei","SPD","Frei"]
["TEST","FOP","Typ 1","4b","Frei","Frei","Frei","SPD","Stangenverschluss"]
["TEST","FOP","Typ 1","Frei","3","Fahrbar","Frei","Frei","Frei"]
["TEST","FOP","Typ 1","Frei","3","Fahrbar","Frei","Frei","Stangenverschluss"]
["TEST","FOP","Typ 1","Frei","3","Fahrbar","Frei","SPD","Frei"]
["TEST","FOP","Typ 1","Frei","3","Fahrbar","Frei","SPD","Stangenverschluss"]
["TEST","FOP","Typ 1","Frei","3","Fest","Frei","Frei","Frei"]
["TEST","FOP","Typ 1","Frei","3","Fest","Frei","Frei","Stangenverschluss"]
["TEST","FOP","Typ 1","Frei","3","Fest","Frei","SPD","Frei"]
["TEST","FOP","Typ 1","Frei","3","Fest","Frei","SPD","Stangenverschluss"]
["TEST","FOP","Typ 1","Frei","3","Frei","Frei","Frei","Frei"]
["TEST","FOP","Typ 1","Frei","3","Frei","Frei","Frei","Stangenverschluss"]
["TEST","FOP","Typ 1","Frei","3","Frei","Frei","SPD","Frei"]
["TEST","FOP","Typ 1","Frei","3","Frei","Frei","SPD","Stangenverschluss"]
["TEST","FOP","Typ 1","Frei","4","Fahrbar","Frei","Frei","Frei"]
["TEST","FOP","Typ 1","Frei","4","Fahrbar","Frei","Frei","Stangenverschluss"]
["TEST","FOP","Typ 1","Frei","4","Fahrbar","Frei","SPD","Frei"]
["TEST","FOP","Typ 1","Frei","4","Fahrbar","Frei","SPD","Stangenverschluss"]
["TEST","FOP","Typ 1","Frei","4","Fest","Frei","Frei","Frei"]
["TEST","FOP","Typ 1","Frei","4","Fest","Frei","Frei","Stangenverschluss"]
["TEST","FOP","Typ 1","Frei","4","Fest","Frei","SPD","Frei"]
["TEST","FOP","Typ 1","Frei","4","Fest","Frei","SPD","Stangenverschluss"]
["TEST","FOP","Typ 1","Frei","4","Frei","Frei","Frei","Frei"]
["TEST","FOP","Typ 1","Frei","4","Frei","Frei","Frei","Stangenverschluss"]
["TEST","FOP","Typ 1","Frei","4","Frei","Frei","SPD","Frei"]
["TEST","FOP","Typ 1","Frei","4","Frei","Frei","SPD","Stangenverschluss"]
["TEST","FOP","Typ 1","Frei","Frei","Fahrbar","Frei","Frei","Frei"]
["TEST","FOP","Typ 1","Frei","Frei","Fahrbar","Frei","Frei","Stangenverschluss"]
["TEST","FOP","Typ 1","Frei","Frei","Fahrbar","Frei","SPD","Frei"]
["TEST","FOP","Typ 1","Frei","Frei","Fahrbar","Frei","SPD","Stangenverschluss"]
["TEST","FOP","Typ 1","Frei","Frei","Fest","Frei","Frei","Frei"]
["TEST","FOP","Typ 1","Frei","Frei","Fest","Frei","Frei","Stangenverschluss"]
["TEST","FOP","Typ 1","Frei","Frei","Fest","Frei","SPD","Frei"]
["TEST","FOP","Typ 1","Frei","Frei","Fest","Frei","SPD","Stangenverschluss"]
["TEST","FOP","Typ 1","Frei","Frei","Frei","Frei","Frei","Frei"]
["TEST","FOP","Typ 1","Frei","Frei","Frei","Frei","Frei","Stangenverschluss"]
["TEST","FOP","Typ 1","Frei","Frei","Frei","Frei","SPD","Frei"]
["TEST","FOP","Typ 1","Frei","Frei","Frei","Frei","SPD","Stangenverschluss"]
["TEST","FOP","Typ 1","2","3","Fahrbar","Frei","Frei","Frei"]
["TEST","FOP","Typ 1","2","3","Fahrbar","Frei","Frei","Stangenverschluss"]
["TEST","FOP","Typ 1","2","3","Fahrbar","Frei","SPD","Frei"]
["TEST","FOP","Typ 1","2","3","Fahrbar","Frei","SPD","Stangenverschluss"]
["TEST","FOP","Typ 1","2","3","Fest","Frei","Frei","Frei"]
["TEST","FOP","Typ 1","2","3","Fest","Frei","Frei","Stangenverschluss"]
["TEST","FOP","Typ 1","2","3","Fest","Frei","SPD","Frei"]
["TEST","FOP","Typ 1","2","3","Fest","Frei","SPD","Stangenverschluss"]
["TEST","FOP","Typ 1","2","3","Frei","Frei","Frei","Frei"]
["TEST","FOP","Typ 1","2","3","Frei","Frei","Frei","Stangenverschluss"]
["TEST","FOP","Typ 1","2","3","Frei","Frei","SPD","Frei"]
["TEST","FOP","Typ 1","2","3","Frei","Frei","SPD","Stangenverschluss"]
["TEST","FOP","Typ 1","2","4","Fahrbar","Frei","Frei","Frei"]
["TEST","FOP","Typ 1","2","4","Fahrbar","Frei","Frei","Stangenverschluss"]
["TEST","FOP","Typ 1","2","4","Fahrbar","Frei","SPD","Frei"]
["TEST","FOP","Typ 1","2","4","Fahrbar","Frei","SPD","Stangenverschluss"]
["TEST","FOP","Typ 1","2","4","Fest","Frei","Frei","Frei"]
["TEST","FOP","Typ 1","2","4","Fest","Frei","Frei","Stangenverschluss"]
["TEST","FOP","Typ 1","2","4","Fest","Frei","SPD","Frei"]
["TEST","FOP","Typ 1","2","4","Fest","Frei","SPD","Stangenverschluss"]
["TEST","FOP","Typ 1","2","4","Frei","Frei","Frei","Frei"]
["TEST","FOP","Typ 1","2","4","Frei","Frei","Frei","Stangenverschluss"]
["TEST","FOP","Typ 1","2","4","Frei","Frei","SPD","Frei"]
["TEST","FOP","Typ 1","2","4","Frei","Frei","SPD","Stangenverschluss"]
["TEST","FOP","Typ 1","2","Frei","Fahrbar","Frei","Frei","Frei"]
["TEST","FOP","Typ 1","2","Frei","Fahrbar","Frei","Frei","Stangenverschluss"]
["TEST","FOP","Typ 1","2","Frei","Fahrbar","Frei","SPD","Frei"]
["TEST","FOP","Typ 1","2","Frei","Fahrbar","Frei","SPD","Stangenverschluss"]
["TEST","FOP","Typ 1","2","Frei","Fest","Frei","Frei","Frei"]
["TEST","FOP","Typ 1","2","Frei","Fest","Frei","Frei","Stangenverschluss"]
["TEST","FOP","Typ 1","2","Frei","Fest","Frei","SPD","Frei"]
["TEST","FOP","Typ 1","2","Frei","Fest","Frei","SPD","Stangenverschluss"]
["TEST","FOP","Typ 1","2","Frei","Frei","Frei","Frei","Frei"]
["TEST","FOP","Typ 1","2","Frei","Frei","Frei","Frei","Stangenverschluss"]
["TEST","FOP","Typ 1","2","Frei","Frei","Frei","SPD","Frei"]
["TEST","FOP","Typ 1","2","Frei","Frei","Frei","SPD","Stangenverschluss"]
["TEST","FOP","Typ 3","4a","3","Fahrbar","Frei","Frei","Frei"]
["TEST","FOP","Typ 3","4a","3","Fahrbar","Frei","Frei","Stangenverschluss"]
["TEST","FOP","Typ 3","4a","3","Fahrbar","Frei","SPD","Frei"]
["TEST","FOP","Typ 3","4a","3","Fahrbar","Frei","SPD","Stangenverschluss"]
["TEST","FOP","Typ 3","4a","3","Fest","Frei","Frei","Frei"]
["TEST","FOP","Typ 3","4a","3","Fest","Frei","Frei","Stangenverschluss"]
["TEST","FOP","Typ 3","4a","3","Fest","Frei","SPD","Frei"]
["TEST","FOP","Typ 3","4a","3","Fest","Frei","SPD","Stangenverschluss"]
["TEST","FOP","Typ 3","4a","3","Frei","Frei","Frei","Frei"]
["TEST","FOP","Typ 3","4a","3","Frei","Frei","Frei","Stangenverschluss"]
["TEST","FOP","Typ 3","4a","3","Frei","Frei","SPD","Frei"]
["TEST","FOP","Typ 3","4a","3","Frei","Frei","SPD","Stangenverschluss"]
["TEST","FOP","Typ 3","4a","4","Fahrbar","Frei","Frei","Frei"]
["TEST","FOP","Typ 3","4a","4","Fahrbar","Frei","Frei","Stangenverschluss"]
["TEST","FOP","Typ 3","4a","4","Fahrbar","Frei","SPD","Frei"]
["TEST","FOP","Typ 3","4a","4","Fahrbar","Frei","SPD","Stangenverschluss"]
["TEST","FOP","Typ 3","4a","4","Fest","Frei","Frei","Frei"]
["TEST","FOP","Typ 3","4a","4","Fest","Frei","Frei","Stangenverschluss"]
["TEST","FOP","Typ 3","4a","4","Fest","Frei","SPD","Frei"]
["TEST","FOP","Typ 3","4a","4","Fest","Frei","SPD","Stangenverschluss"]
["TEST","FOP","Typ 3","4a","4","Frei","Frei","Frei","Frei"]
["TEST","FOP","Typ 3","4a","4","Frei","Frei","Frei","Stangenverschluss"]
["TEST","FOP","Typ 3","4a","4","Frei","Frei","SPD","Frei"]
["TEST","FOP","Typ 3","4a","4","Frei","Frei","SPD","Stangenverschluss"]
["TEST","FOP","Typ 3","4a","Frei","Fahrbar","Frei","Frei","Frei"]
["TEST","FOP","Typ 3","4a","Frei","Fahrbar","Frei","Frei","Stangenverschluss"]
["TEST","FOP","Typ 3","4a","Frei","Fahrbar","Frei","SPD","Frei"]
["TEST","FOP","Typ 3","4a","Frei","Fahrbar","Frei","SPD","Stangenverschluss"]
["TEST","FOP","Typ 3","4a","Frei","Fest","Frei","Frei","Frei"]
["TEST","FOP","Typ 3","4a","Frei","Fest","Frei","Frei","Stangenverschluss"]
["TEST","FOP","Typ 3","4a","Frei","Fest","Frei","SPD","Frei"]
["TEST","FOP","Typ 3","4a","Frei","Fest","Frei","SPD","Stangenverschluss"]
["TEST","FOP","Typ 3","4a","Frei","Frei","Frei","Frei","Frei"]
["TEST","FOP","Typ 3","4a","Frei","Frei","Frei","Frei","Stangenverschluss"]
["TEST","FOP","Typ 3","4a","Frei","Frei","Frei","SPD","Frei"]
["TEST","FOP","Typ 3","4a","Frei","Frei","Frei","SPD","Stangenverschluss"]
["TEST","FOP","Typ 3","4b","3","Fahrbar","Frei","Frei","Frei"]
["TEST","FOP","Typ 3","4b","3","Fahrbar","Frei","Frei","Stangenverschluss"]
["TEST","FOP","Typ 3","4b","3","Fahrbar","Frei","SPD","Frei"]
["TEST","FOP","Typ 3","4b","3","Fahrbar","Frei","SPD","Stangenverschluss"]
["TEST","FOP","Typ 3","4b","3","Fest","Frei","Frei","Frei"]
["TEST","FOP","Typ 3","4b","3","Fest","Frei","Frei","Stangenverschluss"]
["TEST","FOP","Typ 3","4b","3","Fest","Frei","SPD","Frei"]
["TEST","FOP","Typ 3","4b","3","Fest","Frei","SPD","Stangenverschluss"]
["TEST","FOP","Typ 3","4b","3","Frei","Frei","Frei","Frei"]
["TEST","FOP","Typ 3","4b","3","Frei","Frei","Frei","Stangenverschluss"]
["TEST","FOP","Typ 3","4b","3","Frei","Frei","SPD","Frei"]
["TEST","FOP","Typ 3","4b","3","Frei","Frei","SPD","Stangenverschluss"]
["TEST","FOP","Typ 3","4b","4","Fahrbar","Frei","Frei","Frei"]
["TEST","FOP","Typ 3","4b","4","Fahrbar","Frei","Frei","Stangenverschluss"]
["TEST","FOP","Typ 3","4b","4","Fahrbar","Frei","SPD","Frei"]
["TEST","FOP","Typ 3","4b","4","Fahrbar","Frei","SPD","Stangenverschluss"]
["TEST","FOP","Typ 3","4b","4","Fest","Frei","Frei","Frei"]
["TEST","FOP","Typ 3","4b","4","Fest","Frei","Frei","Stangenverschluss"]
["TEST","FOP","Typ 3","4b","4","Fest","Frei","SPD","Frei"]
["TEST","FOP","Typ 3","4b","4","Fest","Frei","SPD","Stangenverschluss"]
["TEST","FOP","Typ 3","4b","4","Frei","Frei","Frei","Frei"]
["TEST","FOP","Typ 3","4b","4","Frei","Frei","Frei","Stangenverschluss"]
["TEST","FOP","Typ 3","4b","4","Frei","Frei","SPD","Frei"]
["TEST","FOP","Typ 3","4b","4","Frei","Frei","SPD","Stangenverschluss"]
["TEST","FOP","Typ 3","4b","Frei","Fahrbar","Frei","Frei","Frei"]
["TEST","FOP","Typ 3","4b","Frei","Fahrbar","Frei","Frei","Stangenverschluss"]
["TEST","FOP","Typ 3","4b","Frei","Fahrbar","Frei","SPD","Frei"]
["TEST","FOP","Typ 3","4b","Frei","Fahrbar","Frei","SPD","Stangenverschluss"]
["TEST","FOP","Typ 3","4b","Frei","Fest","Frei","Frei","Frei"]
["TEST","FOP","Typ 3","4b","Frei","Fest","Frei","Frei","Stangenverschluss"]
["TEST","FOP","Typ 3","4b","Frei","Fest","Frei","SPD","Frei"]
["TEST","FOP","Typ 3","4b","Frei","Fest","Frei","SPD","Stangenverschluss"]
["TEST","FOP","Typ 3","4b","Frei","Frei","Frei","Frei","Frei"]
["TEST","FOP","Typ 3","4b","Frei","Frei","Frei","Frei","Stangenverschluss"]
["TEST","FOP","Typ 3","4b","Frei","Frei","Frei","SPD","Frei"]
["TEST","FOP","Typ 3","4b","Frei","Frei","Frei","SPD","Stangenverschluss"]
["TEST","FOP","Typ 3","Frei","3","Fahrbar","Frei","Frei","Frei"]
["TEST","FOP","Typ 3","Frei","3","Fahrbar","Frei","Frei","Stangenverschluss"]
["TEST","FOP","Typ 3","Frei","3","Fahrbar","Frei","SPD","Frei"]
["TEST","FOP","Typ 3","Frei","3","Fahrbar","Frei","SPD","Stangenverschluss"]
["TEST","FOP","Typ 3","Frei","3","Fest","Frei","Frei","Frei"]
["TEST","FOP","Typ 3","Frei","3","Fest","Frei","Frei","Stangenverschluss"]
["TEST","FOP","Typ 3","Frei","3","Fest","Frei","SPD","Frei"]
["TEST","FOP","Typ 3","Frei","3","Fest","Frei","SPD","Stangenverschluss"]
["TEST","FOP","Typ 3","Frei","3","Frei","Frei","Frei","Frei"]
["TEST","FOP","Typ 3","Frei","3","Frei","Frei","Frei","Stangenverschluss"]
["TEST","FOP","Typ 3","Frei","3","Frei","Frei","SPD","Frei"]
["TEST","FOP","Typ 3","Frei","3","Frei","Frei","SPD","Stangenverschluss"]
["TEST","FOP","Typ 3","Frei","4","Fahrbar","Frei","Frei","Frei"]
["TEST","FOP","Typ 3","Frei","4","Fahrbar","Frei","Frei","Stangenverschluss"]
["TEST","FOP","Typ 3","Frei","4","Fahrbar","Frei","SPD","Frei"]
["TEST","FOP","Typ 3","Frei","4","Fahrbar","Frei","SPD","Stangenverschluss"]
["TEST","FOP","Typ 3","Frei","4","Fest","Frei","Frei","Frei"]
["TEST","FOP","Typ 3","Frei","4","Fest","Frei","Frei","Stangenverschluss"]
["TEST","FOP","Typ 3","Frei","4","Fest","Frei","SPD","Frei"]
["TEST","FOP","Typ 3","Frei","4","Fest","Frei","SPD","Stangenverschluss"]
["TEST","FOP","Typ 3","Frei","4","Frei","Frei","Frei","Frei"]
["TEST","FOP","Typ 3","Frei","4","Frei","Frei","Frei","Stangenverschluss"]
["TEST","FOP","Typ 3","Frei","4","Frei","Frei","SPD","Frei"]
["TEST","FOP","Typ 3","Frei","4","Frei","Frei","SPD","Stangenverschluss"]
["TEST","FOP","Typ 3","Frei","Frei","Fahrbar","Frei","Frei","Frei"]
["TEST","FOP","Typ 3","Frei","Frei","Fahrbar","Frei","Frei","Stangenverschluss"]
["TEST","FOP","Typ 3","Frei","Frei","Fahrbar","Frei","SPD","Frei"]
["TEST","FOP","Typ 3","Frei","Frei","Fahrbar","Frei","SPD","Stangenverschluss"]
["TEST","FOP","Typ 3","Frei","Frei","Fest","Frei","Frei","Frei"]
["TEST","FOP","Typ 3","Frei","Frei","Fest","Frei","Frei","Stangenverschluss"]
["TEST","FOP","Typ 3","Frei","Frei","Fest","Frei","SPD","Frei"]
["TEST","FOP","Typ 3","Frei","Frei","Fest","Frei","SPD","Stangenverschluss"]
["TEST","FOP","Typ 3","Frei","Frei","Frei","Frei","Frei","Frei"]
["TEST","FOP","Typ 3","Frei","Frei","Frei","Frei","Frei","Stangenverschluss"]
["TEST","FOP","Typ 3","Frei","Frei","Frei","Frei","SPD","Frei"]
["TEST","FOP","Typ 3","Frei","Frei","Frei","Frei","SPD","Stangenverschluss"]
["TEST","FOP","Typ 3","2","3","Fahrbar","Frei","Frei","Frei"]
["TEST","FOP","Typ 3","2","3","Fahrbar","Frei","Frei","Stangenverschluss"]
["TEST","FOP","Typ 3","2","3","Fahrbar","Frei","SPD","Frei"]
["TEST","FOP","Typ 3","2","3","Fahrbar","Frei","SPD","Stangenverschluss"]
["TEST","FOP","Typ 3","2","3","Fest","Frei","Frei","Frei"]
["TEST","FOP","Typ 3","2","3","Fest","Frei","Frei","Stangenverschluss"]
["TEST","FOP","Typ 3","2","3","Fest","Frei","SPD","Frei"]
["TEST","FOP","Typ 3","2","3","Fest","Frei","SPD","Stangenverschluss"]
["TEST","FOP","Typ 3","2","3","Frei","Frei","Frei","Frei"]
["TEST","FOP","Typ 3","2","3","Frei","Frei","Frei","Stangenverschluss"]
["TEST","FOP","Typ 3","2","3","Frei","Frei","SPD","Frei"]
["TEST","FOP","Typ 3","2","3","Frei","Frei","SPD","Stangenverschluss"]
["TEST","FOP","Typ 3","2","4","Fahrbar","Frei","Frei","Frei"]
["TEST","FOP","Typ 3","2","4","Fahrbar","Frei","Frei","Stangenverschluss"]
["TEST","FOP","Typ 3","2","4","Fahrbar","Frei","SPD","Frei"]
["TEST","FOP","Typ 3","2","4","Fahrbar","Frei","SPD","Stangenverschluss"]
["TEST","FOP","Typ 3","2","4","Fest","Frei","Frei","Frei"]
["TEST","FOP","Typ 3","2","4","Fest","Frei","Frei","Stangenverschluss"]
["TEST","FOP","Typ 3","2","4","Fest","Frei","SPD","Frei"]
["TEST","FOP","Typ 3","2","4","Fest","Frei","SPD","Stangenverschluss"]
["TEST","FOP","Typ 3","2","4","Frei","Frei","Frei","Frei"]
["TEST","FOP","Typ 3","2","4","Frei","Frei","Frei","Stangenverschluss"]
["TEST","FOP","Typ 3","2","4","Frei","Frei","SPD","Frei"]
["TEST","FOP","Typ 3","2","4","Frei","Frei","SPD","Stangenverschluss"]
["TEST","FOP","Typ 3","2","Frei","Fahrbar","Frei","Frei","Frei"]
["TEST","FOP","Typ 3","2","Frei","Fahrbar","Frei","Frei","Stangenverschluss"]
["TEST","FOP","Typ 3","2","Frei","Fahrbar","Frei","SPD","Frei"]
["TEST","FOP","Typ 3","2","Frei","Fahrbar","Frei","SPD","Stangenverschluss"]
["TEST","FOP","Typ 3","2","Frei","Fest","Frei","Frei","Frei"]
["TEST","FOP","Typ 3","2","Frei","Fest","Frei","Frei","Stangenverschluss"]
["TEST","FOP","Typ 3","2","Frei","Fest","Frei","SPD","Frei"]
["TEST","FOP","Typ 3","2","Frei","Fest","Frei","SPD","Stangenverschluss"]
["TEST","FOP","Typ 3","2","Frei","Frei","Frei","Frei","Frei"]
["TEST","FOP","Typ 3","2","Frei","Frei","Frei","Frei","Stangenverschluss"]
["TEST","FOP","Typ 3","2","Frei","Frei","Frei","SPD","Frei"]
["TEST","FOP","Typ 3","2","Frei","Frei","Frei","SPD","Stangenverschluss"]
["TEST","FOP","Typ 4","4a","3","Fahrbar","Frei","Frei","Frei"]
["TEST","FOP","Typ 4","4a","3","Fahrbar","Frei","Frei","Stangenverschluss"]
["TEST","FOP","Typ 4","4a","3","Fahrbar","Frei","SPD","Frei"]
["TEST","FOP","Typ 4","4a","3","Fahrbar","Frei","SPD","Stangenverschluss"]
["TEST","FOP","Typ 4","4a","3","Fest","Frei","Frei","Frei"]
["TEST","FOP","Typ 4","4a","3","Fest","Frei","Frei","Stangenverschluss"]
["TEST","FOP","Typ 4","4a","3","Fest","Frei","SPD","Frei"]
["TEST","FOP","Typ 4","4a","3","Fest","Frei","SPD","Stangenverschluss"]
["TEST","FOP","Typ 4","4a","3","Frei","Frei","Frei","Frei"]
["TEST","FOP","Typ 4","4a","3","Frei","Frei","Frei","Stangenverschluss"]
["TEST","FOP","Typ 4","4a","3","Frei","Frei","SPD","Frei"]
["TEST","FOP","Typ 4","4a","3","Frei","Frei","SPD","Stangenverschluss"]
["TEST","FOP","Typ 4","4a","4","Fahrbar","Frei","Frei","Frei"]
["TEST","FOP","Typ 4","4a","4","Fahrbar","Frei","Frei","Stangenverschluss"]
["TEST","FOP","Typ 4","4a","4","Fahrbar","Frei","SPD","Frei"]
["TEST","FOP","Typ 4","4a","4","Fahrbar","Frei","SPD","Stangenverschluss"]
["TEST","FOP","Typ 4","4a","4","Fest","Frei","Frei","Frei"]
["TEST","FOP","Typ 4","4a","4","Fest","Frei","Frei","Stangenverschluss"]
["TEST","FOP","Typ 4","4a","4","Fest","Frei","SPD","Frei"]
["TEST","FOP","Typ 4","4a","4","Fest","Frei","SPD","Stangenverschluss"]
["TEST","FOP","Typ 4","4a","4","Frei","Frei","Frei","Frei"]
["TEST","FOP","Typ 4","4a","4","Frei","Frei","Frei","Stangenverschluss"]
["TEST","FOP","Typ 4","4a","4","Frei","Frei","SPD","Frei"]
["TEST","FOP","Typ 4","4a","4","Frei","Frei","SPD","Stangenverschluss"]
["TEST","FOP","Typ 4","4a","Frei","Fahrbar","Frei","Frei","Frei"]
["TEST","FOP","Typ 4","4a","Frei","Fahrbar","Frei","Frei","Stangenverschluss"]
["TEST","FOP","Typ 4","4a","Frei","Fahrbar","Frei","SPD","Frei"]
["TEST","FOP","Typ 4","4a","Frei","Fahrbar","Frei","SPD","Stangenverschluss"]
["TEST","FOP","Typ 4","4a","Frei","Fest","Frei","Frei","Frei"]
["TEST","FOP","Typ 4","4a","Frei","Fest","Frei","Frei","Stangenverschluss"]
["TEST","FOP","Typ 4","4a","Frei","Fest","Frei","SPD","Frei"]
["TEST","FOP","Typ 4","4a","Frei","Fest","Frei","SPD","Stangenverschluss"]
["TEST","FOP","Typ 4","4a","Frei","Frei","Frei","Frei","Frei"]
["TEST","FOP","Typ 4","4a","Frei","Frei","Frei","Frei","Stangenverschluss"]
["TEST","FOP","Typ 4","4a","Frei","Frei","Frei","SPD","Frei"]
["TEST","FOP","Typ 4","4a","Frei","Frei","Frei","SPD","Stangenverschluss"]
["TEST","FOP","Typ 4","4b","3","Fahrbar","Frei","Frei","Frei"]
["TEST","FOP","Typ 4","4b","3","Fahrbar","Frei","Frei","Stangenverschluss"]
["TEST","FOP","Typ 4","4b","3","Fahrbar","Frei","SPD","Frei"]
["TEST","FOP","Typ 4","4b","3","Fahrbar","Frei","SPD","Stangenverschluss"]
["TEST","FOP","Typ 4","4b","3","Fest","Frei","Frei","Frei"]
["TEST","FOP","Typ 4","4b","3","Fest","Frei","Frei","Stangenverschluss"]
["TEST","FOP","Typ 4","4b","3","Fest","Frei","SPD","Frei"]
["TEST","FOP","Typ 4","4b","3","Fest","Frei","SPD","Stangenverschluss"]
["TEST","FOP","Typ 4","4b","3","Frei","Frei","Frei","Frei"]
["TEST","FOP","Typ 4","4b","3","Frei","Frei","Frei","Stangenverschluss"]
["TEST","FOP","Typ 4","4b","3","Frei","Frei","SPD","Frei"]
["TEST","FOP","Typ 4","4b","3","Frei","Frei","SPD","Stangenverschluss"]
["TEST","FOP","Typ 4","4b","4","Fahrbar","Frei","Frei","Frei"]
["TEST","FOP","Typ 4","4b","4","Fahrbar","Frei","Frei","Stangenverschluss"]
["TEST","FOP","Typ 4","4b","4","Fahrbar","Frei","SPD","Frei"]
["TEST","FOP","Typ 4","4b","4","Fahrbar","Frei","SPD","Stangenverschluss"]
["TEST","FOP","Typ 4","4b","4","Fest","Frei","Frei","Frei"]
["TEST","FOP","Typ 4","4b","4","Fest","Frei","Frei","Stangenverschluss"]
["TEST","FOP","Typ 4","4b","4","Fest","Frei","SPD","Frei"]
["TEST","FOP","Typ 4","4b","4","Fest","Frei","SPD","Stangenverschluss"]
["TEST","FOP","Typ 4","4b","4","Frei","Frei","Frei","Frei"]
["TEST","FOP","Typ 4","4b","4","Frei","Frei","Frei","Stangenverschluss"]
["TEST","FOP","Typ 4","4b","4","Frei","Frei","SPD","Frei"]
["TEST","FOP","Typ 4","4b","4","Frei","Frei","SPD","Stangenverschluss"]
["TEST","FOP","Typ 4","4b","Frei","Fahrbar","Frei","Frei","Frei"]
["TEST","FOP","Typ 4","4b","Frei","Fahrbar","Frei","Frei","Stangenverschluss"]
["TEST","FOP","Typ 4","4b","Frei","Fahrbar","Frei","SPD","Frei"]
["TEST","FOP","Typ 4","4b","Frei","Fahrbar","Frei","SPD","Stangenverschluss"]
["TEST","FOP","Typ 4","4b","Frei","Fest","Frei","Frei","Frei"]
["TEST","FOP","Typ 4","4b","Frei","Fest","Frei","Frei","Stangenverschluss"]
["TEST","FOP","Typ 4","4b","Frei","Fest","Frei","SPD","Frei"]
["TEST","FOP","Typ 4","4b","Frei","Fest","Frei","SPD","Stangenverschluss"]
["TEST","FOP","Typ 4","4b","Frei","Frei","Frei","Frei","Frei"]
["TEST","FOP","Typ 4","4b","Frei","Frei","Frei","Frei","Stangenverschluss"]
["TEST","FOP","Typ 4","4b","Frei","Frei","Frei","SPD","Frei"]
["TEST","FOP","Typ 4","4b","Frei","Frei","Frei","SPD","Stangenverschluss"]
["TEST","FOP","Typ 4","Frei","3","Fahrbar","Frei","Frei","Frei"]
["TEST","FOP","Typ 4","Frei","3","Fahrbar","Frei","Frei","Stangenverschluss"]
["TEST","FOP","Typ 4","Frei","3","Fahrbar","Frei","SPD","Frei"]
["TEST","FOP","Typ 4","Frei","3","Fahrbar","Frei","SPD","Stangenverschluss"]
["TEST","FOP","Typ 4","Frei","3","Fest","Frei","Frei","Frei"]
["TEST","FOP","Typ 4","Frei","3","Fest","Frei","Frei","Stangenverschluss"]
["TEST","FOP","Typ 4","Frei","3","Fest","Frei","SPD","Frei"]
["TEST","FOP","Typ 4","Frei","3","Fest","Frei","SPD","Stangenverschluss"]
["TEST","FOP","Typ 4","Frei","3","Frei","Frei","Frei","Frei"]
["TEST","FOP","Typ 4","Frei","3","Frei","Frei","Frei","Stangenverschluss"]
["TEST","FOP","Typ 4","Frei","3","Frei","Frei","SPD","Frei"]
["TEST","FOP","Typ 4","Frei","3","Frei","Frei","SPD","Stangenverschluss"]
["TEST","FOP","Typ 4","Frei","4","Fahrbar","Frei","Frei","Frei"]
["TEST","FOP","Typ 4","Frei","4","Fahrbar","Frei","Frei","Stangenverschluss"]
["TEST","FOP","Typ 4","Frei","4","Fahrbar","Frei","SPD","Frei"]
["TEST","FOP","Typ 4","Frei","4","Fahrbar","Frei","SPD","Stangenverschluss"]
["TEST","FOP","Typ 4","Frei","4","Fest","Frei","Frei","Frei"]
["TEST","FOP","Typ 4","Frei","4","Fest","Frei","Frei","Stangenverschluss"]
["TEST","FOP","Typ 4","Frei","4","Fest","Frei","SPD","Frei"]
["TEST","FOP","Typ 4","Frei","4","Fest","Frei","SPD","Stangenverschluss"]
["TEST","FOP","Typ 4","Frei","4","Frei","Frei","Frei","Frei"]
["TEST","FOP","Typ 4","Frei","4","Frei","Frei","Frei","Stangenverschluss"]
["TEST","FOP","Typ 4","Frei","4","Frei","Frei","SPD","Frei"]
["TEST","FOP","Typ 4","Frei","4","Frei","Frei","SPD","Stangenverschluss"]
["TEST","FOP","Typ 4","Frei","Frei","Fahrbar","Frei","Frei","Frei"]
["TEST","FOP","Typ 4","Frei","Frei","Fahrbar","Frei","Frei","Stangenverschluss"]
["TEST","FOP","Typ 4","Frei","Frei","Fahrbar","Frei","SPD","Frei"]
["TEST","FOP","Typ 4","Frei","Frei","Fahrbar","Frei","SPD","Stangenverschluss"]
["TEST","FOP","Typ 4","Frei","Frei","Fest","Frei","Frei","Frei"]
["TEST","FOP","Typ 4","Frei","Frei","Fest","Frei","Frei","Stangenverschluss"]
["TEST","FOP","Typ 4","Frei","Frei","Fest","Frei","SPD","Frei"]
["TEST","FOP","Typ 4","Frei","Frei","Fest","Frei","SPD","Stangenverschluss"]
["TEST","FOP","Typ 4","Frei","Frei","Frei","Frei","Frei","Frei"]
["TEST","FOP","Typ 4","Frei","Frei","Frei","Frei","Frei","Stangenverschluss"]
["TEST","FOP","Typ 4","Frei","Frei","Frei","Frei","SPD","Frei"]
["TEST","FOP","Typ 4","Frei","Frei","Frei","Frei","SPD","Stangenverschluss"]
["TEST","FOP","Typ 4","2","3","Fahrbar","Frei","Frei","Frei"]
["TEST","FOP","Typ 4","2","3","Fahrbar","Frei","Frei","Stangenverschluss"]
["TEST","FOP","Typ 4","2","3","Fahrbar","Frei","SPD","Frei"]
["TEST","FOP","Typ 4","2","3","Fahrbar","Frei","SPD","Stangenverschluss"]
["TEST","FOP","Typ 4","2","3","Fest","Frei","Frei","Frei"]
["TEST","FOP","Typ 4","2","3","Fest","Frei","Frei","Stangenverschluss"]
["TEST","FOP","Typ 4","2","3","Fest","Frei","SPD","Frei"]
["TEST","FOP","Typ 4","2","3","Fest","Frei","SPD","Stangenverschluss"]
["TEST","FOP","Typ 4","2","3","Frei","Frei","Frei","Frei"]
["TEST","FOP","Typ 4","2","3","Frei","Frei","Frei","Stangenverschluss"]
["TEST","FOP","Typ 4","2","3","Frei","Frei","SPD","Frei"]
["TEST","FOP","Typ 4","2","3","Frei","Frei","SPD","Stangenverschluss"]
["TEST","FOP","Typ 4","2","4","Fahrbar","Frei","Frei","Frei"]
["TEST","FOP","Typ 4","2","4","Fahrbar","Frei","Frei","Stangenverschluss"]
["TEST","FOP","Typ 4","2","4","Fahrbar","Frei","SPD","Frei"]
["TEST","FOP","Typ 4","2","4","Fahrbar","Frei","SPD","Stangenverschluss"]
["TEST","FOP","Typ 4","2","4","Fest","Frei","Frei","Frei"]
["TEST","FOP","Typ 4","2","4","Fest","Frei","Frei","Stangenverschluss"]
["TEST","FOP","Typ 4","2","4","Fest","Frei","SPD","Frei"]
["TEST","FOP","Typ 4","2","4","Fest","Frei","SPD","Stangenverschluss"]
["TEST","FOP","Typ 4","2","4","Frei","Frei","Frei","Frei"]
["TEST","FOP","Typ 4","2","4","Frei","Frei","Frei","Stangenverschluss"]
["TEST","FOP","Typ 4","2","4","Frei","Frei","SPD","Frei"]
["TEST","FOP","Typ 4","2","4","Frei","Frei","SPD","Stangenverschluss"]
["TEST","FOP","Typ 4","2","Frei","Fahrbar","Frei","Frei","Frei"]
["TEST","FOP","Typ 4","2","Frei","Fahrbar","Frei","Frei","Stangenverschluss"]
["TEST","FOP","Typ 4","2","Frei","Fahrbar","Frei","SPD","Frei"]
["TEST","FOP","Typ 4","2","Frei","Fahrbar","Frei","SPD","Stangenverschluss"]
["TEST","FOP","Typ 4","2","Frei","Fest","Frei","Frei","Frei"]
["TEST","FOP","Typ 4","2","Frei","Fest","Frei","Frei","Stangenverschluss"]
["TEST","FOP","Typ 4","2","Frei","Fest","Frei","SPD","Frei"]
["TEST","FOP","Typ 4","2","Frei","Fest","Frei","SPD","Stangenverschluss"]
["TEST","FOP","Typ 4","2","Frei","Frei","Frei","Frei","Frei"]
["TEST","FOP","Typ 4","2","Frei","Frei","Frei","Frei","Stangenverschluss"]
["TEST","FOP","Typ 4","2","Frei","Frei","Frei","SPD","Frei"]
["TEST","FOP","Typ 4","2","Frei","Frei","Frei","SPD","Stangenverschluss"]
["TEST","FOP","Typ 5","4a","3","Fahrbar","Frei","Frei","Frei"]
["TEST","FOP","Typ 5","4a","3","Fahrbar","Frei","Frei","Stangenverschluss"]
["TEST","FOP","Typ 5","4a","3","Fahrbar","Frei","SPD","Frei"]
["TEST","FOP","Typ 5","4a","3","Fahrbar","Frei","SPD","Stangenverschluss"]
["TEST","FOP","Typ 5","4a","3","Fest","Frei","Frei","Frei"]
["TEST","FOP","Typ 5","4a","3","Fest","Frei","Frei","Stangenverschluss"]
["TEST","FOP","Typ 5","4a","3","Fest","Frei","SPD","Frei"]
["TEST","FOP","Typ 5","4a","3","Fest","Frei","SPD","Stangenverschluss"]
["TEST","FOP","Typ 5","4a","3","Frei","Frei","Frei","Frei"]
["TEST","FOP","Typ 5","4a","3","Frei","Frei","Frei","Stangenverschluss"]
["TEST","FOP","Typ 5","4a","3","Frei","Frei","SPD","Frei"]
["TEST","FOP","Typ 5","4a","3","Frei","Frei","SPD","Stangenverschluss"]
["TEST","FOP","Typ 5","4a","4","Fahrbar","Frei","Frei","Frei"]
["TEST","FOP","Typ 5","4a","4","Fahrbar","Frei","Frei","Stangenverschluss"]
["TEST","FOP","Typ 5","4a","4","Fahrbar","Frei","SPD","Frei"]
["TEST","FOP","Typ 5","4a","4","Fahrbar","Frei","SPD","Stangenverschluss"]
["TEST","FOP","Typ 5","4a","4","Fest","Frei","Frei","Frei"]
["TEST","FOP","Typ 5","4a","4","Fest","Frei","Frei","Stangenverschluss"]
["TEST","FOP","Typ 5","4a","4","Fest","Frei","SPD","Frei"]
["TEST","FOP","Typ 5","4a","4","Fest","Frei","SPD","Stangenverschluss"]
["TEST","FOP","Typ 5","4a","4","Frei","Frei","Frei","Frei"]
["TEST","FOP","Typ 5","4a","4","Frei","Frei","Frei","Stangenverschluss"]
["TEST","FOP","Typ 5","4a","4","Frei","Frei","SPD","Frei"]
["TEST","FOP","Typ 5","4a","4","Frei","Frei","SPD","Stangenverschluss"]
["TEST","FOP","Typ 5","4a","Frei","Fahrbar","Frei","Frei","Frei"]
["TEST","FOP","Typ 5","4a","Frei","Fahrbar","Frei","Frei","Stangenverschluss"]
["TEST","FOP","Typ 5","4a","Frei","Fahrbar","Frei","SPD","Frei"]
["TEST","FOP","Typ 5","4a","Frei","Fahrbar","Frei","SPD","Stangenverschluss"]
["TEST","FOP","Typ 5","4a","Frei","Fest","Frei","Frei","Frei"]
["TEST","FOP","Typ 5","4a","Frei","Fest","Frei","Frei","Stangenverschluss"]
["TEST","FOP","Typ 5","4a","Frei","Fest","Frei","SPD","Frei"]
["TEST","FOP","Typ 5","4a","Frei","Fest","Frei","SPD","Stangenverschluss"]
["TEST","FOP","Typ 5","4a","Frei","Frei","Frei","Frei","Frei"]
["TEST","FOP","Typ 5","4a","Frei","Frei","Frei","Frei","Stangenverschluss"]
["TEST","FOP","Typ 5","4a","Frei","Frei","Frei","SPD","Frei"]
["TEST","FOP","Typ 5","4a","Frei","Frei","Frei","SPD","Stangenverschluss"]
["TEST","FOP","Typ 5","4b","3","Fahrbar","Frei","Frei","Frei"]
["TEST","FOP","Typ 5","4b","3","Fahrbar","Frei","Frei","Stangenverschluss"]
["TEST","FOP","Typ 5","4b","3","Fahrbar","Frei","SPD","Frei"]
["TEST","FOP","Typ 5","4b","3","Fahrbar","Frei","SPD","Stangenverschluss"]
["TEST","FOP","Typ 5","4b","3","Fest","Frei","Frei","Frei"]
["TEST","FOP","Typ 5","4b","3","Fest","Frei","Frei","Stangenverschluss"]
["TEST","FOP","Typ 5","4b","3","Fest","Frei","SPD","Frei"]
["TEST","FOP","Typ 5","4b","3","Fest","Frei","SPD","Stangenverschluss"]
["TEST","FOP","Typ 5","4b","3","Frei","Frei","Frei","Frei"]
["TEST","FOP","Typ 5","4b","3","Frei","Frei","Frei","Stangenverschluss"]
["TEST","FOP","Typ 5","4b","3","Frei","Frei","SPD","Frei"]
["TEST","FOP","Typ 5","4b","3","Frei","Frei","SPD","Stangenverschluss"]
["TEST","FOP","Typ 5","4b","4","Fahrbar","Frei","Frei","Frei"]
["TEST","FOP","Typ 5","4b","4","Fahrbar","Frei","Frei","Stangenverschluss"]
["TEST","FOP","Typ 5","4b","4","Fahrbar","Frei","SPD","Frei"]
["TEST","FOP","Typ 5","4b","4","Fahrbar","Frei","SPD","Stangenverschluss"]
["TEST","FOP","Typ 5","4b","4","Fest","Frei","Frei","Frei"]
["TEST","FOP","Typ 5","4b","4","Fest","Frei","Frei","Stangenverschluss"]
["TEST","FOP","Typ 5","4b","4","Fest","Frei","SPD","Frei"]
["TEST","FOP","Typ 5","4b","4","Fest","Frei","SPD","Stangenverschluss"]
["TEST","FOP","Typ 5","4b","4","Frei","Frei","Frei","Frei"]
["TEST","FOP","Typ 5","4b","4","Frei","Frei","Frei","Stangenverschluss"]
["TEST","FOP","Typ 5","4b","4","Frei","Frei","SPD","Frei"]
["TEST","FOP","Typ 5","4b","4","Frei","Frei","SPD","Stangenverschluss"]
["TEST","FOP","Typ 5","4b","Frei","Fahrbar","Frei","Frei","Frei"]
["TEST","FOP","Typ 5","4b","Frei","Fahrbar","Frei","Frei","Stangenverschluss"]
["TEST","FOP","Typ 5","4b","Frei","Fahrbar","Frei","SPD","Frei"]
["TEST","FOP","Typ 5","4b","Frei","Fahrbar","Frei","SPD","Stangenverschluss"]
["TEST","FOP","Typ 5","4b","Frei","Fest","Frei","Frei","Frei"]
["TEST","FOP","Typ 5","4b","Frei","Fest","Frei","Frei","Stangenverschluss"]
["TEST","FOP","Typ 5","4b","Frei","Fest","Frei","SPD","Frei"]
["TEST","FOP","Typ 5","4b","Frei","Fest","Frei","SPD","Stangenverschluss"]
["TEST","FOP","Typ 5","4b","Frei","Frei","Frei","Frei","Frei"]
["TEST","FOP","Typ 5","4b","Frei","Frei","Frei","Frei","Stangenverschluss"]
["TEST","FOP","Typ 5","4b","Frei","Frei","Frei","SPD","Frei"]
["TEST","FOP","Typ 5","4b","Frei","Frei","Frei","SPD","Stangenverschluss"]
["TEST","FOP","Typ 5","Frei","3","Fahrbar","Frei","Frei","Frei"]
["TEST","FOP","Typ 5","Frei","3","Fahrbar","Frei","Frei","Stangenverschluss"]
["TEST","FOP","Typ 5","Frei","3","Fahrbar","Frei","SPD","Frei"]
["TEST","FOP","Typ 5","Frei","3","Fahrbar","Frei","SPD","Stangenverschluss"]
["TEST","FOP","Typ 5","Frei","3","Fest","Frei","Frei","Frei"]
["TEST","FOP","Typ 5","Frei","3","Fest","Frei","Frei","Stangenverschluss"]
["TEST","FOP","Typ 5","Frei","3","Fest","Frei","SPD","Frei"]
["TEST","FOP","Typ 5","Frei","3","Fest","Frei","SPD","Stangenverschluss"]
["TEST","FOP","Typ 5","Frei","3","Frei","Frei","Frei","Frei"]
["TEST","FOP","Typ 5","Frei","3","Frei","Frei","Frei","Stangenverschluss"]
["TEST","FOP","Typ 5","Frei","3","Frei","Frei","SPD","Frei"]
["TEST","FOP","Typ 5","Frei","3","Frei","Frei","SPD","Stangenverschluss"]
["TEST","FOP","Typ 5","Frei","4","Fahrbar","Frei","Frei","Frei"]
["TEST","FOP","Typ 5","Frei","4","Fahrbar","Frei","Frei","Stangenverschluss"]
["TEST","FOP","Typ 5","Frei","4","Fahrbar","Frei","SPD","Frei"]
["TEST","FOP","Typ 5","Frei","4","Fahrbar","Frei","SPD","Stangenverschluss"]
["TEST","FOP","Typ 5","Frei","4","Fest","Frei","Frei","Frei"]
["TEST","FOP","Typ 5","Frei","4","Fest","Frei","Frei","Stangenverschluss"]
["TEST","FOP","Typ 5","Frei","4","Fest","Frei","SPD","Frei"]
["TEST","FOP","Typ 5","Frei","4","Fest","Frei","SPD","Stangenverschluss"]
["TEST","FOP","Typ 5","Frei","4","Frei","Frei","Frei","Frei"]
["TEST","FOP","Typ 5","Frei","4","Frei","Frei","Frei","Stangenverschluss"]
["TEST","FOP","Typ 5","Frei","4","Frei","Frei","SPD","Frei"]
["TEST","FOP","Typ 5","Frei","4","Frei","Frei","SPD","Stangenverschluss"]
["TEST","FOP","Typ 5","Frei","Frei","Fahrbar","Frei","Frei","Frei"]
["TEST","FOP","Typ 5","Frei","Frei","Fahrbar","Frei","Frei","Stangenverschluss"]
["TEST","FOP","Typ 5","Frei","Frei","Fahrbar","Frei","SPD","Frei"]
["TEST","FOP","Typ 5","Frei","Frei","Fahrbar","Frei","SPD","Stangenverschluss"]
["TEST","FOP","Typ 5","Frei","Frei","Fest","Frei","Frei","Frei"]
["TEST","FOP","Typ 5","Frei","Frei","Fest","Frei","Frei","Stangenverschluss"]
["TEST","FOP","Typ 5","Frei","Frei","Fest","Frei","SPD","Frei"]
["TEST","FOP","Typ 5","Frei","Frei","Fest","Frei","SPD","Stangenverschluss"]
["TEST","FOP","Typ 5","Frei","Frei","Frei","Frei","Frei","Frei"]
["TEST","FOP","Typ 5","Frei","Frei","Frei","Frei","Frei","Stangenverschluss"]
["TEST","FOP","Typ 5","Frei","Frei","Frei","Frei","SPD","Frei"]
["TEST","FOP","Typ 5","Frei","Frei","Frei","Frei","SPD","Stangenverschluss"]
["TEST","FOP","Typ 5","2","3","Fahrbar","Frei","Frei","Frei"]
["TEST","FOP","Typ 5","2","3","Fahrbar","Frei","Frei","Stangenverschluss"]
["TEST","FOP","Typ 5","2","3","Fahrbar","Frei","SPD","Frei"]
["TEST","FOP","Typ 5","2","3","Fahrbar","Frei","SPD","Stangenverschluss"]
["TEST","FOP","Typ 5","2","3","Fest","Frei","Frei","Frei"]
["TEST","FOP","Typ 5","2","3","Fest","Frei","Frei","Stangenverschluss"]
["TEST","FOP","Typ 5","2","3","Fest","Frei","SPD","Frei"]
["TEST","FOP","Typ 5","2","3","Fest","Frei","SPD","Stangenverschluss"]
["TEST","FOP","Typ 5","2","3","Frei","Frei","Frei","Frei"]
["TEST","FOP","Typ 5","2","3","Frei","Frei","Frei","Stangenverschluss"]
["TEST","FOP","Typ 5","2","3","Frei","Frei","SPD","Frei"]
["TEST","FOP","Typ 5","2","3","Frei","Frei","SPD","Stangenverschluss"]
["TEST","FOP","Typ 5","2","4","Fahrbar","Frei","Frei","Frei"]
["TEST","FOP","Typ 5","2","4","Fahrbar","Frei","Frei","Stangenverschluss"]
["TEST","FOP","Typ 5","2","4","Fahrbar","Frei","SPD","Frei"]
["TEST","FOP","Typ 5","2","4","Fahrbar","Frei","SPD","Stangenverschluss"]
["TEST","FOP","Typ 5","2","4","Fest","Frei","Frei","Frei"]
["TEST","FOP","Typ 5","2","4","Fest","Frei","Frei","Stangenverschluss"]
["TEST","FOP","Typ 5","2","4","Fest","Frei","SPD","Frei"]
["TEST","FOP","Typ 5","2","4","Fest","Frei","SPD","Stangenverschluss"]
["TEST","FOP","Typ 5","2","4","Frei","Frei","Frei","Frei"]
["TEST","FOP","Typ 5","2","4","Frei","Frei","Frei","Stangenverschluss"]
["TEST","FOP","Typ 5","2","4","Frei","Frei","SPD","Frei"]
["TEST","FOP","Typ 5","2","4","Frei","Frei","SPD","Stangenverschluss"]
["TEST","FOP","Typ 5","2","Frei","Fahrbar","Frei","Frei","Frei"]
["TEST","FOP","Typ 5","2","Frei","Fahrbar","Frei","Frei","Stangenverschluss"]
["TEST","FOP","Typ 5","2","Frei","Fahrbar","Frei","SPD","Frei"]
["TEST","FOP","Typ 5","2","Frei","Fahrbar","Frei","SPD","Stangenverschluss"]
["TEST","FOP","Typ 5","2","Frei","Fest","Frei","Frei","Frei"]
["TEST","FOP","Typ 5","2","Frei","Fest","Frei","Frei","Stangenverschluss"]
["TEST","FOP","Typ 5","2","Frei","Fest","Frei","SPD","Frei"]
["TEST","FOP","Typ 5","2","Frei","Fest","Frei","SPD","Stangenverschluss"]
["TEST","FOP","Typ 5","2","Frei","Frei","Frei","Frei","Frei"]
["TEST","FOP","Typ 5","2","Frei","Frei","Frei","Frei","Stangenverschluss"]
["TEST","FOP","Typ 5","2","Frei","Frei","Frei","SPD","Frei"]
["TEST","FOP","Typ 5","2","Frei","Frei","Frei","SPD","Stangenverschluss"]
["TEST","FOP","Typ 2","4a","3","Fahrbar","Frei","Frei","Frei"]
["TEST","FOP","Typ 2","4a","3","Fahrbar","Frei","Frei","Stangenverschluss"]
["TEST","FOP","Typ 2","4a","3","Fahrbar","Frei","SPD","Frei"]
["TEST","FOP","Typ 2","4a","3","Fahrbar","Frei","SPD","Stangenverschluss"]
["TEST","FOP","Typ 2","4a","3","Fest","Frei","Frei","Frei"]
["TEST","FOP","Typ 2","4a","3","Fest","Frei","Frei","Stangenverschluss"]
["TEST","FOP","Typ 2","4a","3","Fest","Frei","SPD","Frei"]
["TEST","FOP","Typ 2","4a","3","Fest","Frei","SPD","Stangenverschluss"]
["TEST","FOP","Typ 2","4a","3","Frei","Frei","Frei","Frei"]
["TEST","FOP","Typ 2","4a","3","Frei","Frei","Frei","Stangenverschluss"]
["TEST","FOP","Typ 2","4a","3","Frei","Frei","SPD","Frei"]
["TEST","FOP","Typ 2","4a","3","Frei","Frei","SPD","Stangenverschluss"]
["TEST","FOP","Typ 2","4a","4","Fahrbar","Frei","Frei","Frei"]
["TEST","FOP","Typ 2","4a","4","Fahrbar","Frei","Frei","Stangenverschluss"]
["TEST","FOP","Typ 2","4a","4","Fahrbar","Frei","SPD","Frei"]
["TEST","FOP","Typ 2","4a","4","Fahrbar","Frei","SPD","Stangenverschluss"]
["TEST","FOP","Typ 2","4a","4","Fest","Frei","Frei","Frei"]
["TEST","FOP","Typ 2","4a","4","Fest","Frei","Frei","Stangenverschluss"]
["TEST","FOP","Typ 2","4a","4","Fest","Frei","SPD","Frei"]
["TEST","FOP","Typ 2","4a","4","Fest","Frei","SPD","Stangenverschluss"]
["TEST","FOP","Typ 2","4a","4","Frei","Frei","Frei","Frei"]
["TEST","FOP","Typ 2","4a","4","Frei","Frei","Frei","Stangenverschluss"]
["TEST","FOP","Typ 2","4a","4","Frei","Frei","SPD","Frei"]
["TEST","FOP","Typ 2","4a","4","Frei","Frei","SPD","Stangenverschluss"]
["TEST","FOP","Typ 2","4a","Frei","Fahrbar","Frei","Frei","Frei"]
["TEST","FOP","Typ 2","4a","Frei","Fahrbar","Frei","Frei","Stangenverschluss"]
["TEST","FOP","Typ 2","4a","Frei","Fahrbar","Frei","SPD","Frei"]
["TEST","FOP","Typ 2","4a","Frei","Fahrbar","Frei","SPD","Stangenverschluss"]
["TEST","FOP","Typ 2","4a","Frei","Fest","Frei","Frei","Frei"]
["TEST","FOP","Typ 2","4a","Frei","Fest","Frei","Frei","Stangenverschluss"]
["TEST","FOP","Typ 2","4a","Frei","Fest","Frei","SPD","Frei"]
["TEST","FOP","Typ 2","4a","Frei","Fest","Frei","SPD","Stangenverschluss"]
["TEST","FOP","Typ 2","4a","Frei","Frei","Frei","Frei","Frei"]
["TEST","FOP","Typ 2","4a","Frei","Frei","Frei","Frei","Stangenverschluss"]
["TEST","FOP","Typ 2","4a","Frei","Frei","Frei","SPD","Frei"]
["TEST","FOP","Typ 2","4a","Frei","Frei","Frei","SPD","Stangenverschluss"]
["TEST","FOP","Typ 2","4b","3","Fahrbar","Frei","Frei","Frei"]
["TEST","FOP","Typ 2","4b","3","Fahrbar","Frei","Frei","Stangenverschluss"]
["TEST","FOP","Typ 2","4b","3","Fahrbar","Frei","SPD","Frei"]
["TEST","FOP","Typ 2","4b","3","Fahrbar","Frei","SPD","Stangenverschluss"]
["TEST","FOP","Typ 2","4b","3","Fest","Frei","Frei","Frei"]
["TEST","FOP","Typ 2","4b","3","Fest","Frei","Frei","Stangenverschluss"]
["TEST","FOP","Typ 2","4b","3","Fest","Frei","SPD","Frei"]
["TEST","FOP","Typ 2","4b","3","Fest","Frei","SPD","Stangenverschluss"]
["TEST","FOP","Typ 2","4b","3","Frei","Frei","Frei","Frei"]
["TEST","FOP","Typ 2","4b","3","Frei","Frei","Frei","Stangenverschluss"]
["TEST","FOP","Typ 2","4b","3","Frei","Frei","SPD","Frei"]
["TEST","FOP","Typ 2","4b","3","Frei","Frei","SPD","Stangenverschluss"]
["TEST","FOP","Typ 2","4b","4","Fahrbar","Frei","Frei","Frei"]
["TEST","FOP","Typ 2","4b","4","Fahrbar","Frei","Frei","Stangenverschluss"]
["TEST","FOP","Typ 2","4b","4","Fahrbar","Frei","SPD","Frei"]
["TEST","FOP","Typ 2","4b","4","Fahrbar","Frei","SPD","Stangenverschluss"]
["TEST","FOP","Typ 2","4b","4","Fest","Frei","Frei","Frei"]
["TEST","FOP","Typ 2","4b","4","Fest","Frei","Frei","Stangenverschluss"]
["TEST","FOP","Typ 2","4b","4","Fest","Frei","SPD","Frei"]
["TEST","FOP","Typ 2","4b","4","Fest","Frei","SPD","Stangenverschluss"]
["TEST","FOP","Typ 2","4b","4","Frei","Frei","Frei","Frei"]
["TEST","FOP","Typ 2","4b","4","Frei","Frei","Frei","Stangenverschluss"]
["TEST","FOP","Typ 2","4b","4","Frei","Frei","SPD","Frei"]
["TEST","FOP","Typ 2","4b","4","Frei","Frei","SPD","Stangenverschluss"]
["TEST","FOP","Typ 2","4b","Frei","Fahrbar","Frei","Frei","Frei"]
["TEST","FOP","Typ 2","4b","Frei","Fahrbar","Frei","Frei","Stangenverschluss"]
["TEST","FOP","Typ 2","4b","Frei","Fahrbar","Frei","SPD","Frei"]
["TEST","FOP","Typ 2","4b","Frei","Fahrbar","Frei","SPD","Stangenverschluss"]
["TEST","FOP","Typ 2","4b","Frei","Fest","Frei","Frei","Frei"]
["TEST","FOP","Typ 2","4b","Frei","Fest","Frei","Frei","Stangenverschluss"]
["TEST","FOP","Typ 2","4b","Frei","Fest","Frei","SPD","Frei"]
["TEST","FOP","Typ 2","4b","Frei","Fest","Frei","SPD","Stangenverschluss"]
["TEST","FOP","Typ 2","4b","Frei","Frei","Frei","Frei","Frei"]
["TEST","FOP","Typ 2","4b","Frei","Frei","Frei","Frei","Stangenverschluss"]
["TEST","FOP","Typ 2","4b","Frei","Frei","Frei","SPD","Frei"]
["TEST","FOP","Typ 2","4b","Frei","Frei","Frei","SPD","Stangenverschluss"]
["TEST","FOP","Typ 2","Frei","3","Fahrbar","Frei","Frei","Frei"]
["TEST","FOP","Typ 2","Frei","3","Fahrbar","Frei","Frei","Stangenverschluss"]
["TEST","FOP","Typ 2","Frei","3","Fahrbar","Frei","SPD","Frei"]
["TEST","FOP","Typ 2","Frei","3","Fahrbar","Frei","SPD","Stangenverschluss"]
["TEST","FOP","Typ 2","Frei","3","Fest","Frei","Frei","Frei"]
["TEST","FOP","Typ 2","Frei","3","Fest","Frei","Frei","Stangenverschluss"]
["TEST","FOP","Typ 2","Frei","3","Fest","Frei","SPD","Frei"]
["TEST","FOP","Typ 2","Frei","3","Fest","Frei","SPD","Stangenverschluss"]
["TEST","FOP","Typ 2","Frei","3","Frei","Frei","Frei","Frei"]
["TEST","FOP","Typ 2","Frei","3","Frei","Frei","Frei","Stangenverschluss"]
["TEST","FOP","Typ 2","Frei","3","Frei","Frei","SPD","Frei"]
["TEST","FOP","Typ 2","Frei","3","Frei","Frei","SPD","Stangenverschluss"]
["TEST","FOP","Typ 2","Frei","4","Fahrbar","Frei","Frei","Frei"]
["TEST","FOP","Typ 2","Frei","4","Fahrbar","Frei","Frei","Stangenverschluss"]
["TEST","FOP","Typ 2","Frei","4","Fahrbar","Frei","SPD","Frei"]
["TEST","FOP","Typ 2","Frei","4","Fahrbar","Frei","SPD","Stangenverschluss"]
["TEST","FOP","Typ 2","Frei","4","Fest","Frei","Frei","Frei"]
["TEST","FOP","Typ 2","Frei","4","Fest","Frei","Frei","Stangenverschluss"]
["TEST","FOP","Typ 2","Frei","4","Fest","Frei","SPD","Frei"]
["TEST","FOP","Typ 2","Frei","4","Fest","Frei","SPD","Stangenverschluss"]
["TEST","FOP","Typ 2","Frei","4","Frei","Frei","Frei","Frei"]
["TEST","FOP","Typ 2","Frei","4","Frei","Frei","Frei","Stangenverschluss"]
["TEST","FOP","Typ 2","Frei","4","Frei","Frei","SPD","Frei"]
["TEST","FOP","Typ 2","Frei","4","Frei","Frei","SPD","Stangenverschluss"]
["TEST","FOP","Typ 2","Frei","Frei","Fahrbar","Frei","Frei","Frei"]
["TEST","FOP","Typ 2","Frei","Frei","Fahrbar","Frei","Frei","Stangenverschluss"]
["TEST","FOP","Typ 2","Frei","Frei","Fahrbar","Frei","SPD","Frei"]
["TEST","FOP","Typ 2","Frei","Frei","Fahrbar","Frei","SPD","Stangenverschluss"]
["TEST","FOP","Typ 2","Frei","Frei","Fest","Frei","Frei","Frei"]
["TEST","FOP","Typ 2","Frei","Frei","Fest","Frei","Frei","Stangenverschluss"]
["TEST","FOP","Typ 2","Frei","Frei","Fest","Frei","SPD","Frei"]
["TEST","FOP","Typ 2","Frei","Frei","Fest","Frei","SPD","Stangenverschluss"]
["TEST","FOP","Typ 2","Frei","Frei","Frei","Frei","Frei","Frei"]
["TEST","FOP","Typ 2","Frei","Frei","Frei","Frei","Frei","Stangenverschluss"]
["TEST","FOP","Typ 2","Frei","Frei","Frei","Frei","SPD","Frei"]
["TEST","FOP","Typ 2","Frei","Frei","Frei","Frei","SPD","Stangenverschluss"]
["TEST","FOP","Typ 2","2","3","Fahrbar","Frei","Frei","Frei"]
["TEST","FOP","Typ 2","2","3","Fahrbar","Frei","Frei","Stangenverschluss"]
["TEST","FOP","Typ 2","2","3","Fahrbar","Frei","SPD","Frei"]
["TEST","FOP","Typ 2","2","3","Fahrbar","Frei","SPD","Stangenverschluss"]
["TEST","FOP","Typ 2","2","3","Fest","Frei","Frei","Frei"]
["TEST","FOP","Typ 2","2","3","Fest","Frei","Frei","Stangenverschluss"]
["TEST","FOP","Typ 2","2","3","Fest","Frei","SPD","Frei"]
["TEST","FOP","Typ 2","2","3","Fest","Frei","SPD","Stangenverschluss"]
["TEST","FOP","Typ 2","2","3","Frei","Frei","Frei","Frei"]
["TEST","FOP","Typ 2","2","3","Frei","Frei","Frei","Stangenverschluss"]
["TEST","FOP","Typ 2","2","3","Frei","Frei","SPD","Frei"]
["TEST","FOP","Typ 2","2","3","Frei","Frei","SPD","Stangenverschluss"]
["TEST","FOP","Typ 2","2","4","Fahrbar","Frei","Frei","Frei"]
["TEST","FOP","Typ 2","2","4","Fahrbar","Frei","Frei","Stangenverschluss"]
["TEST","FOP","Typ 2","2","4","Fahrbar","Frei","SPD","Frei"]
["TEST","FOP","Typ 2","2","4","Fahrbar","Frei","SPD","Stangenverschluss"]
["TEST","FOP","Typ 2","2","4","Fest","Frei","Frei","Frei"]
["TEST","FOP","Typ 2","2","4","Fest","Frei","Frei","Stangenverschluss"]
["TEST","FOP","Typ 2","2","4","Fest","Frei","SPD","Frei"]
["TEST","FOP","Typ 2","2","4","Fest","Frei","SPD","Stangenverschluss"]
["TEST","FOP","Typ 2","2","4","Frei","Frei","Frei","Frei"]
["TEST","FOP","Typ 2","2","4","Frei","Frei","Frei","Stangenverschluss"]
["TEST","FOP","Typ 2","2","4","Frei","Frei","SPD","Frei"]
["TEST","FOP","Typ 2","2","4","Frei","Frei","SPD","Stangenverschluss"]
["TEST","FOP","Typ 2","2","Frei","Fahrbar","Frei","Frei","Frei"]
["TEST","FOP","Typ 2","2","Frei","Fahrbar","Frei","Frei","Stangenverschluss"]
["TEST","FOP","Typ 2","2","Frei","Fahrbar","Frei","SPD","Frei"]
["TEST","FOP","Typ 2","2","Frei","Fahrbar","Frei","SPD","Stangenverschluss"]
["TEST","FOP","Typ 2","2","Frei","Fest","Frei","Frei","Frei"]
["TEST","FOP","Typ 2","2","Frei","Fest","Frei","Frei","Stangenverschluss"]
["TEST","FOP","Typ 2","2","Frei","Fest","Frei","SPD","Frei"]
["TEST","FOP","Typ 2","2","Frei","Fest","Frei","SPD","Stangenverschluss"]
["TEST","FOP","Typ 2","2","Frei","Frei","Frei","Frei","Frei"]
["TEST","FOP","Typ 2","2","Frei","Frei","Frei","Frei","Stangenverschluss"]
["TEST","FOP","Typ 2","2","Frei","Frei","Frei","SPD","Frei"]
["TEST","FOP","Typ 2","2","Frei","Frei","Frei","SPD","Stangenverschluss"]
["TEST","OP","Frei","4a","3","Fahrbar","Frei","Frei","Frei"]
["TEST","OP","Frei","4a","3","Fahrbar","Frei","Frei","Stangenverschluss"]
["TEST","OP","Frei","4a","3","Fahrbar","Frei","SPD","Frei"]
["TEST","OP","Frei","4a","3","Fahrbar","Frei","SPD","Stangenverschluss"]
["TEST","OP","Frei","4a","3","Fest","Frei","Frei","Frei"]
["TEST","OP","Frei","4a","3","Fest","Frei","Frei","Stangenverschluss"]
["TEST","OP","Frei","4a","3","Fest","Frei","SPD","Frei"]
["TEST","OP","Frei","4a","3","Fest","Frei","SPD","Stangenverschluss"]
["TEST","OP","Frei","4a","3","Frei","Frei","Frei","Frei"]
["TEST","OP","Frei","4a","3","Frei","Frei","Frei","Stangenverschluss"]
["TEST","OP","Frei","4a","3","Frei","Frei","SPD","Frei"]
["TEST","OP","Frei","4a","3","Frei","Frei","SPD","Stangenverschluss"]
["TEST","OP","Frei","4a","4","Fahrbar","Frei","Frei","Frei"]
["TEST","OP","Frei","4a","4","Fahrbar","Frei","Frei","Stangenverschluss"]
["TEST","OP","Frei","4a","4","Fahrbar","Frei","SPD","Frei"]
["TEST","OP","Frei","4a","4","Fahrbar","Frei","SPD","Stangenverschluss"]
["TEST","OP","Frei","4a","4","Fest","Frei","Frei","Frei"]
["TEST","OP","Frei","4a","4","Fest","Frei","Frei","Stangenverschluss"]
["TEST","OP","Frei","4a","4","Fest","Frei","SPD","Frei"]
["TEST","OP","Frei","4a","4","Fest","Frei","SPD","Stangenverschluss"]
["TEST","OP","Frei","4a","4","Frei","Frei","Frei","Frei"]
["TEST","OP","Frei","4a","4","Frei","Frei","Frei","Stangenverschluss"]
["TEST","OP","Frei","4a","4","Frei","Frei","SPD","Frei"]
["TEST","OP","Frei","4a","4","Frei","Frei","SPD","Stangenverschluss"]
["TEST","OP","Frei","4a","Frei","Fahrbar","Frei","Frei","Frei"]
["TEST","OP","Frei","4a","Frei","Fahrbar","Frei","Frei","Stangenverschluss"]
["TEST","OP","Frei","4a","Frei","Fahrbar","Frei","SPD","Frei"]
["TEST","OP","Frei","4a","Frei","Fahrbar","Frei","SPD","Stangenverschluss"]
["TEST","OP","Frei","4a","Frei","Fest","Frei","Frei","Frei"]
["TEST","OP","Frei","4a","Frei","Fest","Frei","Frei","Stangenverschluss"]
["TEST","OP","Frei","4a","Frei","Fest","Frei","SPD","Frei"]
["TEST","OP","Frei","4a","Frei","Fest","Frei","SPD","Stangenverschluss"]
["TEST","OP","Frei","4a","Frei","Frei","Frei","Frei","Frei"]
["TEST","OP","Frei","4a","Frei","Frei","Frei","Frei","Stangenverschluss"]
["TEST","OP","Frei","4a","Frei","Frei","Frei","SPD","Frei"]
["TEST","OP","Frei","4a","Frei","Frei","Frei","SPD","Stangenverschluss"]
["TEST","OP","Frei","4b","3","Fahrbar","Frei","Frei","Frei"]
["TEST","OP","Frei","4b","3","Fahrbar","Frei","Frei","Stangenverschluss"]
["TEST","OP","Frei","4b","3","Fahrbar","Frei","SPD","Frei"]
["TEST","OP","Frei","4b","3","Fahrbar","Frei","SPD","Stangenverschluss"]
["TEST","OP","Frei","4b","3","Fest","Frei","Frei","Frei"]
["TEST","OP","Frei","4b","3","Fest","Frei","Frei","Stangenverschluss"]
["TEST","OP","Frei","4b","3","Fest","Frei","SPD","Frei"]
["TEST","OP","Frei","4b","3","Fest","Frei","SPD","Stangenverschluss"]
["TEST","OP","Frei","4b","3","Frei","Frei","Frei","Frei"]
["TEST","OP","Frei","4b","3","Frei","Frei","Frei","Stangenverschluss"]
["TEST","OP","Frei","4b","3","Frei","Frei","SPD","Frei"]
["TEST","OP","Frei","4b","3","Frei","Frei","SPD","Stangenverschluss"]
["TEST","OP","Frei","4b","4","Fahrbar","Frei","Frei","Frei"]
["TEST","OP","Frei","4b","4","Fahrbar","Frei","Frei","Stangenverschluss"]
["TEST","OP","Frei","4b","4","Fahrbar","Frei","SPD","Frei"]
["TEST","OP","Frei","4b","4","Fahrbar","Frei","SPD","Stangenverschluss"]
["TEST","OP","Frei","4b","4","Fest","Frei","Frei","Frei"]
["TEST","OP","Frei","4b","4","Fest","Frei","Frei","Stangenverschluss"]
["TEST","OP","Frei","4b","4","Fest","Frei","SPD","Frei"]
["TEST","OP","Frei","4b","4","Fest","Frei","SPD","Stangenverschluss"]
["TEST","OP","Frei","4b","4","Frei","Frei","Frei","Frei"]
["TEST","OP","Frei","4b","4","Frei","Frei","Frei","Stangenverschluss"]
["TEST","OP","Frei","4b","4","Frei","Frei","SPD","Frei"]
["TEST","OP","Frei","4b","4","Frei","Frei","SPD","Stangenverschluss"]
["TEST","OP","Frei","4b","Frei","Fahrbar","Frei","Frei","Frei"]
["TEST","OP","Frei","4b","Frei","Fahrbar","Frei","Frei","Stangenverschluss"]
["TEST","OP","Frei","4b","Frei","Fahrbar","Frei","SPD","Frei"]
["TEST","OP","Frei","4b","Frei","Fahrbar","Frei","SPD","Stangenverschluss"]
["TEST","OP","Frei","4b","Frei","Fest","Frei","Frei","Frei"]
["TEST","OP","Frei","4b","Frei","Fest","Frei","Frei","Stangenverschluss"]
["TEST","OP","Frei","4b","Frei","Fest","Frei","SPD","Frei"]
["TEST","OP","Frei","4b","Frei","Fest","Frei","SPD","Stangenverschluss"]
["TEST","OP","Frei","4b","Frei","Frei","Frei","Frei","Frei"]
["TEST","OP","Frei","4b","Frei","Frei","Frei","Frei","Stangenverschluss"]
["TEST","OP","Frei","4b","Frei","Frei","Frei","SPD","Frei"]
["TEST","OP","Frei","4b","Frei","Frei","Frei","SPD","Stangenverschluss"]
["TEST","OP","Frei","Frei","3","Fahrbar","Frei","Frei","Frei"]
["TEST","OP","Frei","Frei","3","Fahrbar","Frei","Frei","Stangenverschluss"]
["TEST","OP","Frei","Frei","3","Fahrbar","Frei","SPD","Frei"]
["TEST","OP","Frei","Frei","3","Fahrbar","Frei","SPD","Stangenverschluss"]
["TEST","OP","Frei","Frei","3","Fest","Frei","Frei","Frei"]
["TEST","OP","Frei","Frei","3","Fest","Frei","Frei","Stangenverschluss"]
["TEST","OP","Frei","Frei","3","Fest","Frei","SPD","Frei"]
["TEST","OP","Frei","Frei","3","Fest","Frei","SPD","Stangenverschluss"]
["TEST","OP","Frei","Frei","3","Frei","Frei","Frei","Frei"]
["TEST","OP","Frei","Frei","3","Frei","Frei","Frei","Stangenverschluss"]
["TEST","OP","Frei","Frei","3","Frei","Frei","SPD","Frei"]
["TEST","OP","Frei","Frei","3","Frei","Frei","SPD","Stangenverschluss"]
["TEST","OP","Frei","Frei","4","Fahrbar","Frei","Frei","Frei"]
["TEST","OP","Frei","Frei","4","Fahrbar","Frei","Frei","Stangenverschluss"]
["TEST","OP","Frei","Frei","4","Fahrbar","Frei","SPD","Frei"]
["TEST","OP","Frei","Frei","4","Fahrbar","Frei","SPD","Stangenverschluss"]
["TEST","OP","Frei","Frei","4","Fest","Frei","Frei","Frei"]
["TEST","OP","Frei","Frei","4","Fest","Frei","Frei","Stangenverschluss"]
["TEST","OP","Frei","Frei","4","Fest","Frei","SPD","Frei"]
["TEST","OP","Frei","Frei","4","Fest","Frei","SPD","Stangenverschluss"]
["TEST","OP","Frei","Frei","4","Frei","Frei","Frei","Frei"]
["TEST","OP","Frei","Frei","4","Frei","Frei","Frei","Stangenverschluss"]
["TEST","OP","Frei","Frei","4","Frei","Frei","SPD","Frei"]
["TEST","OP","Frei","Frei","4","Frei","Frei","SPD","Stangenverschluss"]
["TEST","OP","Frei","Frei","Frei","Fahrbar","Frei","Frei","Frei"]
["TEST","OP","Frei","Frei","Frei","Fahrbar","Frei","Frei","Stangenverschluss"]
["TEST","OP","Frei","Frei","Frei","Fahrbar","Frei","SPD","Frei"]
["TEST","OP","Frei","Frei","Frei","Fahrbar","Frei","SPD","Stangenverschluss"]
["TEST","OP","Frei","Frei","Frei","Fest","Frei","Frei","Frei"]
["TEST","OP","Frei","Frei","Frei","Fest","Frei","Frei","Stangenverschluss"]
["TEST","OP","Frei","Frei","Frei","Fest","Frei","SPD","Frei"]
["TEST","OP","Frei","Frei","Frei","Fest","Frei","SPD","Stangenverschluss"]
["TEST","OP","Frei","Frei","Frei","Frei","Frei","Frei","Frei"]
["TEST","OP","Frei","Frei","Frei","Frei","Frei","Frei","Stangenverschluss"]
["TEST","OP","Frei","Frei","Frei","Frei","Frei","SPD","Frei"]
["TEST","OP","Frei","Frei","Frei","Frei","Frei","SPD","Stangenverschluss"]
["TEST","OP","Frei","2","3","Fahrbar","Frei","Frei","Frei"]
["TEST","OP","Frei","2","3","Fahrbar","Frei","Frei","Stangenverschluss"]
["TEST","OP","Frei","2","3","Fahrbar","Frei","SPD","Frei"]
["TEST","OP","Frei","2","3","Fahrbar","Frei","SPD","Stangenverschluss"]
["TEST","OP","Frei","2","3","Fest","Frei","Frei","Frei"]
["TEST","OP","Frei","2","3","Fest","Frei","Frei","Stangenverschluss"]
["TEST","OP","Frei","2","3","Fest","Frei","SPD","Frei"]
["TEST","OP","Frei","2","3","Fest","Frei","SPD","Stangenverschluss"]
["TEST","OP","Frei","2","3","Frei","Frei","Frei","Frei"]
["TEST","OP","Frei","2","3","Frei","Frei","Frei","Stangenverschluss"]
["TEST","OP","Frei","2","3","Frei","Frei","SPD","Frei"]
["TEST","OP","Frei","2","3","Frei","Frei","SPD","Stangenverschluss"]
["TEST","OP","Frei","2","4","Fahrbar","Frei","Frei","Frei"]
["TEST","OP","Frei","2","4","Fahrbar","Frei","Frei","Stangenverschluss"]
["TEST","OP","Frei","2","4","Fahrbar","Frei","SPD","Frei"]
["TEST","OP","Frei","2","4","Fahrbar","Frei","SPD","Stangenverschluss"]
["TEST","OP","Frei","2","4","Fest","Frei","Frei","Frei"]
["TEST","OP","Frei","2","4","Fest","Frei","Frei","Stangenverschluss"]
["TEST","OP","Frei","2","4","Fest","Frei","SPD","Frei"]
["TEST","OP","Frei","2","4","Fest","Frei","SPD","Stangenverschluss"]
["TEST","OP","Frei","2","4","Frei","Frei","Frei","Frei"]
["TEST","OP","Frei","2","4","Frei","Frei","Frei","Stangenverschluss"]
["TEST","OP","Frei","2","4","Frei","Frei","SPD","Frei"]
["TEST","OP","Frei","2","4","Frei","Frei","SPD","Stangenverschluss"]
["TEST","OP","Frei","2","Frei","Fahrbar","Frei","Frei","Frei"]
["TEST","OP","Frei","2","Frei","Fahrbar","Frei","Frei","Stangenverschluss"]
["TEST","OP","Frei","2","Frei","Fahrbar","Frei","SPD","Frei"]
["TEST","OP","Frei","2","Frei","Fahrbar","Frei","SPD","Stangenverschluss"]
["TEST","OP","Frei","2","Frei","Fest","Frei","Frei","Frei"]
["TEST","OP","Frei","2","Frei","Fest","Frei","Frei","Stangenverschluss"]
["TEST","OP","Frei","2","Frei","Fest","Frei","SPD","Frei"]
["TEST","OP","Frei","2","Frei","Fest","Frei","SPD","Stangenverschluss"]
["TEST","OP","Frei","2","Frei","Frei","Frei","Frei","Frei"]
["TEST","OP","Frei","2","Frei","Frei","Frei","Frei","Stangenverschluss"]
["TEST","OP","Frei","2","Frei","Frei","Frei","SPD","Frei"]
["TEST","OP","Frei","2","Frei","Frei","Frei","SPD","Stangenverschluss"]
["TEST","OP","Typ 1","4a","3","Fahrbar","Frei","Frei","Frei"]
["TEST","OP","Typ 1","4a","3","Fahrbar","Frei","Frei","Stangenverschluss"]
["TEST","OP","Typ 1","4a","3","Fahrbar","Frei","SPD","Frei"]
["TEST","OP","Typ 1","4a","3","Fahrbar","Frei","SPD","Stangenverschluss"]
["TEST","OP","Typ 1","4a","3","Fest","Frei","Frei","Frei"]
["TEST","OP","Typ 1","4a","3","Fest","Frei","Frei","Stangenverschluss"]
["TEST","OP","Typ 1","4a","3","Fest","Frei","SPD","Frei"]
["TEST","OP","Typ 1","4a","3","Fest","Frei","SPD","Stangenverschluss"]
["TEST","OP","Typ 1","4a","3","Frei","Frei","Frei","Frei"]
["TEST","OP","Typ 1","4a","3","Frei","Frei","Frei","Stangenverschluss"]
["TEST","OP","Typ 1","4a","3","Frei","Frei","SPD","Frei"]
["TEST","OP","Typ 1","4a","3","Frei","Frei","SPD","Stangenverschluss"]
["TEST","OP","Typ 1","4a","4","Fahrbar","Frei","Frei","Frei"]
["TEST","OP","Typ 1","4a","4","Fahrbar","Frei","Frei","Stangenverschluss"]
["TEST","OP","Typ 1","4a","4","Fahrbar","Frei","SPD","Frei"]
["TEST","OP","Typ 1","4a","4","Fahrbar","Frei","SPD","Stangenverschluss"]
["TEST","OP","Typ 1","4a","4","Fest","Frei","Frei","Frei"]
["TEST","OP","Typ 1","4a","4","Fest","Frei","Frei","Stangenverschluss"]
["TEST","OP","Typ 1","4a","4","Fest","Frei","SPD","Frei"]
["TEST","OP","Typ 1","4a","4","Fest","Frei","SPD","Stangenverschluss"]
["TEST","OP","Typ 1","4a","4","Frei","Frei","Frei","Frei"]
["TEST","OP","Typ 1","4a","4","Frei","Frei","Frei","Stangenverschluss"]
["TEST","OP","Typ 1","4a","4","Frei","Frei","SPD","Frei"]
["TEST","OP","Typ 1","4a","4","Frei","Frei","SPD","Stangenverschluss"]
["TEST","OP","Typ 1","4a","Frei","Fahrbar","Frei","Frei","Frei"]
["TEST","OP","Typ 1","4a","Frei","Fahrbar","Frei","Frei","Stangenverschluss"]
["TEST","OP","Typ 1","4a","Frei","Fahrbar","Frei","SPD","Frei"]
["TEST","OP","Typ 1","4a","Frei","Fahrbar","Frei","SPD","Stangenverschluss"]
["TEST","OP","Typ 1","4a","Frei","Fest","Frei","Frei","Frei"]
["TEST","OP","Typ 1","4a","Frei","Fest","Frei","Frei","Stangenverschluss"]
["TEST","OP","Typ 1","4a","Frei","Fest","Frei","SPD","Frei"]
["TEST","OP","Typ 1","4a","Frei","Fest","Frei","SPD","Stangenverschluss"]
["TEST","OP","Typ 1","4a","Frei","Frei","Frei","Frei","Frei"]
["TEST","OP","Typ 1","4a","Frei","Frei","Frei","Frei","Stangenverschluss"]
["TEST","OP","Typ 1","4a","Frei","Frei","Frei","SPD","Frei"]
["TEST","OP","Typ 1","4a","Frei","Frei","Frei","SPD","Stangenverschluss"]
["TEST","OP","Typ 1","4b","3","Fahrbar","Frei","Frei","Frei"]
["TEST","OP","Typ 1","4b","3","Fahrbar","Frei","Frei","Stangenverschluss"]
["TEST","OP","Typ 1","4b","3","Fahrbar","Frei","SPD","Frei"]
["TEST","OP","Typ 1","4b","3","Fahrbar","Frei","SPD","Stangenverschluss"]
["TEST","OP","Typ 1","4b","3","Fest","Frei","Frei","Frei"]
["TEST","OP","Typ 1","4b","3","Fest","Frei","Frei","Stangenverschluss"]
["TEST","OP","Typ 1","4b","3","Fest","Frei","SPD","Frei"]
["TEST","OP","Typ 1","4b","3","Fest","Frei","SPD","Stangenverschluss"]
["TEST","OP","Typ 1","4b","3","Frei","Frei","Frei","Frei"]
["TEST","OP","Typ 1","4b","3","Frei","Frei","Frei","Stangenverschluss"]
["TEST","OP","Typ 1","4b","3","Frei","Frei","SPD","Frei"]
["TEST","OP","Typ 1","4b","3","Frei","Frei","SPD","Stangenverschluss"]
["TEST","OP","Typ 1","4b","4","Fahrbar","Frei","Frei","Frei"]
["TEST","OP","Typ 1","4b","4","Fahrbar","Frei","Frei","Stangenverschluss"]
["TEST","OP","Typ 1","4b","4","Fahrbar","Frei","SPD","Frei"]
["TEST","OP","Typ 1","4b","4","Fahrbar","Frei","SPD","Stangenverschluss"]
["TEST","OP","Typ 1","4b","4","Fest","Frei","Frei","Frei"]
["TEST","OP","Typ 1","4b","4","Fest","Frei","Frei","Stangenverschluss"]
["TEST","OP","Typ 1","4b","4","Fest","Frei","SPD","Frei"]
["TEST","OP","Typ 1","4b","4","Fest","Frei","SPD","Stangenverschluss"]
["TEST","OP","Typ 1","4b","4","Frei","Frei","Frei","Frei"]
["TEST","OP","Typ 1","4b","4","Frei","Frei","Frei","Stangenverschluss"]
["TEST","OP","Typ 1","4b","4","Frei","Frei","SPD","Frei"]
["TEST","OP","Typ 1","4b","4","Frei","Frei","SPD","Stangenverschluss"]
["TEST","OP","Typ 1","4b","Frei","Fahrbar","Frei","Frei","Frei"]
["TEST","OP","Typ 1","4b","Frei","Fahrbar","Frei","Frei","Stangenverschluss"]
["TEST","OP","Typ 1","4b","Frei","Fahrbar","Frei","SPD","Frei"]
["TEST","OP","Typ 1","4b","Frei","Fahrbar","Frei","SPD","Stangenverschluss"]
["TEST","OP","Typ 1","4b","Frei","Fest","Frei","Frei","Frei"]
["TEST","OP","Typ 1","4b","Frei","Fest","Frei","Frei","Stangenverschluss"]
["TEST","OP","Typ 1","4b","Frei","Fest","Frei","SPD","Frei"]
["TEST","OP","Typ 1","4b","Frei","Fest","Frei","SPD","Stangenverschluss"]
["TEST","OP","Typ 1","4b","Frei","Frei","Frei","Frei","Frei"]
["TEST","OP","Typ 1","4b","Frei","Frei","Frei","Frei","Stangenverschluss"]
["TEST","OP","Typ 1","4b","Frei","Frei","Frei","SPD","Frei"]
["TEST","OP","Typ 1","4b","Frei","Frei","Frei","SPD","Stangenverschluss"]
["TEST","OP","Typ 1","Frei","3","Fahrbar","Frei","Frei","Frei"]
["TEST","OP","Typ 1","Frei","3","Fahrbar","Frei","Frei","Stangenverschluss"]
["TEST","OP","Typ 1","Frei","3","Fahrbar","Frei","SPD","Frei"]
["TEST","OP","Typ 1","Frei","3","Fahrbar","Frei","SPD","Stangenverschluss"]
["TEST","OP","Typ 1","Frei","3","Fest","Frei","Frei","Frei"]
["TEST","OP","Typ 1","Frei","3","Fest","Frei","Frei","Stangenverschluss"]
["TEST","OP","Typ 1","Frei","3","Fest","Frei","SPD","Frei"]
["TEST","OP","Typ 1","Frei","3","Fest","Frei","SPD","Stangenverschluss"]
["TEST","OP","Typ 1","Frei","3","Frei","Frei","Frei","Frei"]
["TEST","OP","Typ 1","Frei","3","Frei","Frei","Frei","Stangenverschluss"]
["TEST","OP","Typ 1","Frei","3","Frei","Frei","SPD","Frei"]
["TEST","OP","Typ 1","Frei","3","Frei","Frei","SPD","Stangenverschluss"]
["TEST","OP","Typ 1","Frei","4","Fahrbar","Frei","Frei","Frei"]
["TEST","OP","Typ 1","Frei","4","Fahrbar","Frei","Frei","Stangenverschluss"]
["TEST","OP","Typ 1","Frei","4","Fahrbar","Frei","SPD","Frei"]
["TEST","OP","Typ 1","Frei","4","Fahrbar","Frei","SPD","Stangenverschluss"]
["TEST","OP","Typ 1","Frei","4","Fest","Frei","Frei","Frei"]
["TEST","OP","Typ 1","Frei","4","Fest","Frei","Frei","Stangenverschluss"]
["TEST","OP","Typ 1","Frei","4","Fest","Frei","SPD","Frei"]
["TEST","OP","Typ 1","Frei","4","Fest","Frei","SPD","Stangenverschluss"]
["TEST","OP","Typ 1","Frei","4","Frei","Frei","Frei","Frei"]
["TEST","OP","Typ 1","Frei","4","Frei","Frei","Frei","Stangenverschluss"]
["TEST","OP","Typ 1","Frei","4","Frei","Frei","SPD","Frei"]
["TEST","OP","Typ 1","Frei","4","Frei","Frei","SPD","Stangenverschluss"]
["TEST","OP","Typ 1","Frei","Frei","Fahrbar","Frei","Frei","Frei"]
["TEST","OP","Typ 1","Frei","Frei","Fahrbar","Frei","Frei","Stangenverschluss"]
["TEST","OP","Typ 1","Frei","Frei","Fahrbar","Frei","SPD","Frei"]
["TEST","OP","Typ 1","Frei","Frei","Fahrbar","Frei","SPD","Stangenverschluss"]
["TEST","OP","Typ 1","Frei","Frei","Fest","Frei","Frei","Frei"]
["TEST","OP","Typ 1","Frei","Frei","Fest","Frei","Frei","Stangenverschluss"]
["TEST","OP","Typ 1","Frei","Frei","Fest","Frei","SPD","Frei"]
["TEST","OP","Typ 1","Frei","Frei","Fest","Frei","SPD","Stangenverschluss"]
["TEST","OP","Typ 1","Frei","Frei","Frei","Frei","Frei","Frei"]
["TEST","OP","Typ 1","Frei","Frei","Frei","Frei","Frei","Stangenverschluss"]
["TEST","OP","Typ 1","Frei","Frei","Frei","Frei","SPD","Frei"]
["TEST","OP","Typ 1","Frei","Frei","Frei","Frei","SPD","Stangenverschluss"]
["TEST","OP","Typ 1","2","3","Fahrbar","Frei","Frei","Frei"]
["TEST","OP","Typ 1","2","3","Fahrbar","Frei","Frei","Stangenverschluss"]
["TEST","OP","Typ 1","2","3","Fahrbar","Frei","SPD","Frei"]
["TEST","OP","Typ 1","2","3","Fahrbar","Frei","SPD","Stangenverschluss"]
["TEST","OP","Typ 1","2","3","Fest","Frei","Frei","Frei"]
["TEST","OP","Typ 1","2","3","Fest","Frei","Frei","Stangenverschluss"]
["TEST","OP","Typ 1","2","3","Fest","Frei","SPD","Frei"]
["TEST","OP","Typ 1","2","3","Fest","Frei","SPD","Stangenverschluss"]
["TEST","OP","Typ 1","2","3","Frei","Frei","Frei","Frei"]
["TEST","OP","Typ 1","2","3","Frei","Frei","Frei","Stangenverschluss"]
["TEST","OP","Typ 1","2","3","Frei","Frei","SPD","Frei"]
["TEST","OP","Typ 1","2","3","Frei","Frei","SPD","Stangenverschluss"]
["TEST","OP","Typ 1","2","4","Fahrbar","Frei","Frei","Frei"]
["TEST","OP","Typ 1","2","4","Fahrbar","Frei","Frei","Stangenverschluss"]
["TEST","OP","Typ 1","2","4","Fahrbar","Frei","SPD","Frei"]
["TEST","OP","Typ 1","2","4","Fahrbar","Frei","SPD","Stangenverschluss"]
["TEST","OP","Typ 1","2","4","Fest","Frei","Frei","Frei"]
["TEST","OP","Typ 1","2","4","Fest","Frei","Frei","Stangenverschluss"]
["TEST","OP","Typ 1","2","4","Fest","Frei","SPD","Frei"]
["TEST","OP","Typ 1","2","4","Fest","Frei","SPD","Stangenverschluss"]
["TEST","OP","Typ 1","2","4","Frei","Frei","Frei","Frei"]
["TEST","OP","Typ 1","2","4","Frei","Frei","Frei","Stangenverschluss"]
["TEST","OP","Typ 1","2","4","Frei","Frei","SPD","Frei"]
["TEST","OP","Typ 1","2","4","Frei","Frei","SPD","Stangenverschluss"]
["TEST","OP","Typ 1","2","Frei","Fahrbar","Frei","Frei","Frei"]
["TEST","OP","Typ 1","2","Frei","Fahrbar","Frei","Frei","Stangenverschluss"]
["TEST","OP","Typ 1","2","Frei","Fahrbar","Frei","SPD","Frei"]
["TEST","OP","Typ 1","2","Frei","Fahrbar","Frei","SPD","Stangenverschluss"]
["TEST","OP","Typ 1","2","Frei","Fest","Frei","Frei","Frei"]
["TEST","OP","Typ 1","2","Frei","Fest","Frei","Frei","Stangenverschluss"]
["TEST","OP","Typ 1","2","Frei","Fest","Frei","SPD","Frei"]
["TEST","OP","Typ 1","2","Frei","Fest","Frei","SPD","Stangenverschluss"]
["TEST","OP","Typ 1","2","Frei","Frei","Frei","Frei","Frei"]
["TEST","OP","Typ 1","2","Frei","Frei","Frei","Frei","Stangenverschluss"]
["TEST","OP","Typ 1","2","Frei","Frei","Frei","SPD","Frei"]
["TEST","OP","Typ 1","2","Frei","Frei","Frei","SPD","Stangenverschluss"]
["TEST","OP","Typ 3","4a","3","Fahrbar","Frei","Frei","Frei"]
["TEST","OP","Typ 3","4a","3","Fahrbar","Frei","Frei","Stangenverschluss"]
["TEST","OP","Typ 3","4a","3","Fahrbar","Frei","SPD","Frei"]
["TEST","OP","Typ 3","4a","3","Fahrbar","Frei","SPD","Stangenverschluss"]
["TEST","OP","Typ 3","4a","3","Fest","Frei","Frei","Frei"]
["TEST","OP","Typ 3","4a","3","Fest","Frei","Frei","Stangenverschluss"]
["TEST","OP","Typ 3","4a","3","Fest","Frei","SPD","Frei"]
["TEST","OP","Typ 3","4a","3","Fest","Frei","SPD","Stangenverschluss"]
["TEST","OP","Typ 3","4a","3","Frei","Frei","Frei","Frei"]
["TEST","OP","Typ 3","4a","3","Frei","Frei","Frei","Stangenverschluss"]
["TEST","OP","Typ 3","4a","3","Frei","Frei","SPD","Frei"]
["TEST","OP","Typ 3","4a","3","Frei","Frei","SPD","Stangenverschluss"]
["TEST","OP","Typ 3","4a","4","Fahrbar","Frei","Frei","Frei"]
["TEST","OP","Typ 3","4a","4","Fahrbar","Frei","Frei","Stangenverschluss"]
["TEST","OP","Typ 3","4a","4","Fahrbar","Frei","SPD","Frei"]
["TEST","OP","Typ 3","4a","4","Fahrbar","Frei","SPD","Stangenverschluss"]
["TEST","OP","Typ 3","4a","4","Fest","Frei","Frei","Frei"]
["TEST","OP","Typ 3","4a","4","Fest","Frei","Frei","Stangenverschluss"]
["TEST","OP","Typ 3","4a","4","Fest","Frei","SPD","Frei"]
["TEST","OP","Typ 3","4a","4","Fest","Frei","SPD","Stangenverschluss"]
["TEST","OP","Typ 3","4a","4","Frei","Frei","Frei","Frei"]
["TEST","OP","Typ 3","4a","4","Frei","Frei","Frei","Stangenverschluss"]
["TEST","OP","Typ 3","4a","4","Frei","Frei","SPD","Frei"]
["TEST","OP","Typ 3","4a","4","Frei","Frei","SPD","Stangenverschluss"]
["TEST","OP","Typ 3","4a","Frei","Fahrbar","Frei","Frei","Frei"]
["TEST","OP","Typ 3","4a","Frei","Fahrbar","Frei","Frei","Stangenverschluss"]
["TEST","OP","Typ 3","4a","Frei","Fahrbar","Frei","SPD","Frei"]
["TEST","OP","Typ 3","4a","Frei","Fahrbar","Frei","SPD","Stangenverschluss"]
["TEST","OP","Typ 3","4a","Frei","Fest","Frei","Frei","Frei"]
["TEST","OP","Typ 3","4a","Frei","Fest","Frei","Frei","Stangenverschluss"]
["TEST","OP","Typ 3","4a","Frei","Fest","Frei","SPD","Frei"]
["TEST","OP","Typ 3","4a","Frei","Fest","Frei","SPD","Stangenverschluss"]
["TEST","OP","Typ 3","4a","Frei","Frei","Frei","Frei","Frei"]
["TEST","OP","Typ 3","4a","Frei","Frei","Frei","Frei","Stangenverschluss"]
["TEST","OP","Typ 3","4a","Frei","Frei","Frei","SPD","Frei"]
["TEST","OP","Typ 3","4a","Frei","Frei","Frei","SPD","Stangenverschluss"]
["TEST","OP","Typ 3","4b","3","Fahrbar","Frei","Frei","Frei"]
["TEST","OP","Typ 3","4b","3","Fahrbar","Frei","Frei","Stangenverschluss"]
["TEST","OP","Typ 3","4b","3","Fahrbar","Frei","SPD","Frei"]
["TEST","OP","Typ 3","4b","3","Fahrbar","Frei","SPD","Stangenverschluss"]
["TEST","OP","Typ 3","4b","3","Fest","Frei","Frei","Frei"]
["TEST","OP","Typ 3","4b","3","Fest","Frei","Frei","Stangenverschluss"]
["TEST","OP","Typ 3","4b","3","Fest","Frei","SPD","Frei"]
["TEST","OP","Typ 3","4b","3","Fest","Frei","SPD","Stangenverschluss"]
["TEST","OP","Typ 3","4b","3","Frei","Frei","Frei","Frei"]
["TEST","OP","Typ 3","4b","3","Frei","Frei","Frei","Stangenverschluss"]
["TEST","OP","Typ 3","4b","3","Frei","Frei","SPD","Frei"]
["TEST","OP","Typ 3","4b","3","Frei","Frei","SPD","Stangenverschluss"]
["TEST","OP","Typ 3","4b","4","Fahrbar","Frei","Frei","Frei"]
["TEST","OP","Typ 3","4b","4","Fahrbar","Frei","Frei","Stangenverschluss"]
["TEST","OP","Typ 3","4b","4","Fahrbar","Frei","SPD","Frei"]
["TEST","OP","Typ 3","4b","4","Fahrbar","Frei","SPD","Stangenverschluss"]
["TEST","OP","Typ 3","4b","4","Fest","Frei","Frei","Frei"]
["TEST","OP","Typ 3","4b","4","Fest","Frei","Frei","Stangenverschluss"]
["TEST","OP","Typ 3","4b","4","Fest","Frei","SPD","Frei"]
["TEST","OP","Typ 3","4b","4","Fest","Frei","SPD","Stangenverschluss"]
["TEST","OP","Typ 3","4b","4","Frei","Frei","Frei","Frei"]
["TEST","OP","Typ 3","4b","4","Frei","Frei","Frei","Stangenverschluss"]
["TEST","OP","Typ 3","4b","4","Frei","Frei","SPD","Frei"]
["TEST","OP","Typ 3","4b","4","Frei","Frei","SPD","Stangenverschluss"]
["TEST","OP","Typ 3","4b","Frei","Fahrbar","Frei","Frei","Frei"]
["TEST","OP","Typ 3","4b","Frei","Fahrbar","Frei","Frei","Stangenverschluss"]
["TEST","OP","Typ 3","4b","Frei","Fahrbar","Frei","SPD","Frei"]
["TEST","OP","Typ 3","4b","Frei","Fahrbar","Frei","SPD","Stangenverschluss"]
["TEST","OP","Typ 3","4b","Frei","Fest","Frei","Frei","Frei"]
["TEST","OP","Typ 3","4b","Frei","Fest","Frei","Frei","Stangenverschluss"]
["TEST","OP","Typ 3","4b","Frei","Fest","Frei","SPD","Frei"]
["TEST","OP","Typ 3","4b","Frei","Fest","Frei","SPD","Stangenverschluss"]
["TEST","OP","Typ 3","4b","Frei","Frei","Frei","Frei","Frei"]
["TEST","OP","Typ 3","4b","Frei","Frei","Frei","Frei","Stangenverschluss"]
["TEST","OP","Typ 3","4b","Frei","Frei","Frei","SPD","Frei"]
["TEST","OP","Typ 3","4b","Frei","Frei","Frei","SPD","Stangenverschluss"]
["TEST","OP","Typ 3","Frei","3","Fahrbar","Frei","Frei","Frei"]
["TEST","OP","Typ 3","Frei","3","Fahrbar","Frei","Frei","Stangenverschluss"]
["TEST","OP","Typ 3","Frei","3","Fahrbar","Frei","SPD","Frei"]
["TEST","OP","Typ 3","Frei","3","Fahrbar","Frei","SPD","Stangenverschluss"]
["TEST","OP","Typ 3","Frei","3","Fest","Frei","Frei","Frei"]
["TEST","OP","Typ 3","Frei","3","Fest","Frei","Frei","Stangenverschluss"]
["TEST","OP","Typ 3","Frei","3","Fest","Frei","SPD","Frei"]
["TEST","OP","Typ 3","Frei","3","Fest","Frei","SPD","Stangenverschluss"]
["TEST","OP","Typ 3","Frei","3","Frei","Frei","Frei","Frei"]
["TEST","OP","Typ 3","Frei","3","Frei","Frei","Frei","Stangenverschluss"]
["TEST","OP","Typ 3","Frei","3","Frei","Frei","SPD","Frei"]
["TEST","OP","Typ 3","Frei","3","Frei","Frei","SPD","Stangenverschluss"]
["TEST","OP","Typ 3","Frei","4","Fahrbar","Frei","Frei","Frei"]
["TEST","OP","Typ 3","Frei","4","Fahrbar","Frei","Frei","Stangenverschluss"]
["TEST","OP","Typ 3","Frei","4","Fahrbar","Frei","SPD","Frei"]
["TEST","OP","Typ 3","Frei","4","Fahrbar","Frei","SPD","Stangenverschluss"]
["TEST","OP","Typ 3","Frei","4","Fest","Frei","Frei","Frei"]
["TEST","OP","Typ 3","Frei","4","Fest","Frei","Frei","Stangenverschluss"]
["TEST","OP","Typ 3","Frei","4","Fest","Frei","SPD","Frei"]
["TEST","OP","Typ 3","Frei","4","Fest","Frei","SPD","Stangenverschluss"]
["TEST","OP","Typ 3","Frei","4","Frei","Frei","Frei","Frei"]
["TEST","OP","Typ 3","Frei","4","Frei","Frei","Frei","Stangenverschluss"]
["TEST","OP","Typ 3","Frei","4","Frei","Frei","SPD","Frei"]
["TEST","OP","Typ 3","Frei","4","Frei","Frei","SPD","Stangenverschluss"]
["TEST","OP","Typ 3","Frei","Frei","Fahrbar","Frei","Frei","Frei"]
["TEST","OP","Typ 3","Frei","Frei","Fahrbar","Frei","Frei","Stangenverschluss"]
["TEST","OP","Typ 3","Frei","Frei","Fahrbar","Frei","SPD","Frei"]
["TEST","OP","Typ 3","Frei","Frei","Fahrbar","Frei","SPD","Stangenverschluss"]
["TEST","OP","Typ 3","Frei","Frei","Fest","Frei","Frei","Frei"]
["TEST","OP","Typ 3","Frei","Frei","Fest","Frei","Frei","Stangenverschluss"]
["TEST","OP","Typ 3","Frei","Frei","Fest","Frei","SPD","Frei"]
["TEST","OP","Typ 3","Frei","Frei","Fest","Frei","SPD","Stangenverschluss"]
["TEST","OP","Typ 3","Frei","Frei","Frei","Frei","Frei","Frei"]
["TEST","OP","Typ 3","Frei","Frei","Frei","Frei","Frei","Stangenverschluss"]
["TEST","OP","Typ 3","Frei","Frei","Frei","Frei","SPD","Frei"]
["TEST","OP","Typ 3","Frei","Frei","Frei","Frei","SPD","Stangenverschluss"]
["TEST","OP","Typ 3","2","3","Fahrbar","Frei","Frei","Frei"]
["TEST","OP","Typ 3","2","3","Fahrbar","Frei","Frei","Stangenverschluss"]
["TEST","OP","Typ 3","2","3","Fahrbar","Frei","SPD","Frei"]
["TEST","OP","Typ 3","2","3","Fahrbar","Frei","SPD","Stangenverschluss"]
["TEST","OP","Typ 3","2","3","Fest","Frei","Frei","Frei"]
["TEST","OP","Typ 3","2","3","Fest","Frei","Frei","Stangenverschluss"]
["TEST","OP","Typ 3","2","3","Fest","Frei","SPD","Frei"]
["TEST","OP","Typ 3","2","3","Fest","Frei","SPD","Stangenverschluss"]
["TEST","OP","Typ 3","2","3","Frei","Frei","Frei","Frei"]
["TEST","OP","Typ 3","2","3","Frei","Frei","Frei","Stangenverschluss"]
["TEST","OP","Typ 3","2","3","Frei","Frei","SPD","Frei"]
["TEST","OP","Typ 3","2","3","Frei","Frei","SPD","Stangenverschluss"]
["TEST","OP","Typ 3","2","4","Fahrbar","Frei","Frei","Frei"]
["TEST","OP","Typ 3","2","4","Fahrbar","Frei","Frei","Stangenverschluss"]
["TEST","OP","Typ 3","2","4","Fahrbar","Frei","SPD","Frei"]
["TEST","OP","Typ 3","2","4","Fahrbar","Frei","SPD","Stangenverschluss"]
["TEST","OP","Typ 3","2","4","Fest","Frei","Frei","Frei"]
["TEST","OP","Typ 3","2","4","Fest","Frei","Frei","Stangenverschluss"]
["TEST","OP","Typ 3","2","4","Fest","Frei","SPD","Frei"]
["TEST","OP","Typ 3","2","4","Fest","Frei","SPD","Stangenverschluss"]
["TEST","OP","Typ 3","2","4","Frei","Frei","Frei","Frei"]
["TEST","OP","Typ 3","2","4","Frei","Frei","Frei","Stangenverschluss"]
["TEST","OP","Typ 3","2","4","Frei","Frei","SPD","Frei"]
["TEST","OP","Typ 3","2","4","Frei","Frei","SPD","Stangenverschluss"]
["TEST","OP","Typ 3","2","Frei","Fahrbar","Frei","Frei","Frei"]
["TEST","OP","Typ 3","2","Frei","Fahrbar","Frei","Frei","Stangenverschluss"]
["TEST","OP","Typ 3","2","Frei","Fahrbar","Frei","SPD","Frei"]
["TEST","OP","Typ 3","2","Frei","Fahrbar","Frei","SPD","Stangenverschluss"]
["TEST","OP","Typ 3","2","Frei","Fest","Frei","Frei","Frei"]
["TEST","OP","Typ 3","2","Frei","Fest","Frei","Frei","Stangenverschluss"]
["TEST","OP","Typ 3","2","Frei","Fest","Frei","SPD","Frei"]
["TEST","OP","Typ 3","2","Frei","Fest","Frei","SPD","Stangenverschluss"]
["TEST","OP","Typ 3","2","Frei","Frei","Frei","Frei","Frei"]
["TEST","OP","Typ 3","2","Frei","Frei","Frei","Frei","Stangenverschluss"]
["TEST","OP","Typ 3","2","Frei","Frei","Frei","SPD","Frei"]
["TEST","OP","Typ 3","2","Frei","Frei","Frei","SPD","Stangenverschluss"]
["TEST","OP","Typ 4","4a","3","Fahrbar","Frei","Frei","Frei"]
["TEST","OP","Typ 4","4a","3","Fahrbar","Frei","Frei","Stangenverschluss"]
["TEST","OP","Typ 4","4a","3","Fahrbar","Frei","SPD","Frei"]
["TEST","OP","Typ 4","4a","3","Fahrbar","Frei","SPD","Stangenverschluss"]
["TEST","OP","Typ 4","4a","3","Fest","Frei","Frei","Frei"]
["TEST","OP","Typ 4","4a","3","Fest","Frei","Frei","Stangenverschluss"]
["TEST","OP","Typ 4","4a","3","Fest","Frei","SPD","Frei"]
["TEST","OP","Typ 4","4a","3","Fest","Frei","SPD","Stangenverschluss"]
["TEST","OP","Typ 4","4a","3","Frei","Frei","Frei","Frei"]
["TEST","OP","Typ 4","4a","3","Frei","Frei","Frei","Stangenverschluss"]
["TEST","OP","Typ 4","4a","3","Frei","Frei","SPD","Frei"]
["TEST","OP","Typ 4","4a","3","Frei","Frei","SPD","Stangenverschluss"]
["TEST","OP","Typ 4","4a","4","Fahrbar","Frei","Frei","Frei"]
["TEST","OP","Typ 4","4a","4","Fahrbar","Frei","Frei","Stangenverschluss"]
["TEST","OP","Typ 4","4a","4","Fahrbar","Frei","SPD","Frei"]
["TEST","OP","Typ 4","4a","4","Fahrbar","Frei","SPD","Stangenverschluss"]
["TEST","OP","Typ 4","4a","4","Fest","Frei","Frei","Frei"]
["TEST","OP","Typ 4","4a","4","Fest","Frei","Frei","Stangenverschluss"]
["TEST","OP","Typ 4","4a","4","Fest","Frei","SPD","Frei"]
["TEST","OP","Typ 4","4a","4","Fest","Frei","SPD","Stangenverschluss"]
["TEST","OP","Typ 4","4a","4","Frei","Frei","Frei","Frei"]
["TEST","OP","Typ 4","4a","4","Frei","Frei","Frei","Stangenverschluss"]
["TEST","OP","Typ 4","4a","4","Frei","Frei","SPD","Frei"]
["TEST","OP","Typ 4","4a","4","Frei","Frei","SPD","Stangenverschluss"]
["TEST","OP","Typ 4","4a","Frei","Fahrbar","Frei","Frei","Frei"]
["TEST","OP","Typ 4","4a","Frei","Fahrbar","Frei","Frei","Stangenverschluss"]
["TEST","OP","Typ 4","4a","Frei","Fahrbar","Frei","SPD","Frei"]
["TEST","OP","Typ 4","4a","Frei","Fahrbar","Frei","SPD","Stangenverschluss"]
["TEST","OP","Typ 4","4a","Frei","Fest","Frei","Frei","Frei"]
["TEST","OP","Typ 4","4a","Frei","Fest","Frei","Frei","Stangenverschluss"]
["TEST","OP","Typ 4","4a","Frei","Fest","Frei","SPD","Frei"]
["TEST","OP","Typ 4","4a","Frei","Fest","Frei","SPD","Stangenverschluss"]
["TEST","OP","Typ 4","4a","Frei","Frei","Frei","Frei","Frei"]
["TEST","OP","Typ 4","4a","Frei","Frei","Frei","Frei","Stangenverschluss"]
["TEST","OP","Typ 4","4a","Frei","Frei","Frei","SPD","Frei"]
["TEST","OP","Typ 4","4a","Frei","Frei","Frei","SPD","Stangenverschluss"]
["TEST","OP","Typ 4","4b","3","Fahrbar","Frei","Frei","Frei"]
["TEST","OP","Typ 4","4b","3","Fahrbar","Frei","Frei","Stangenverschluss"]
["TEST","OP","Typ 4","4b","3","Fahrbar","Frei","SPD","Frei"]
["TEST","OP","Typ 4","4b","3","Fahrbar","Frei","SPD","Stangenverschluss"]
["TEST","OP","Typ 4","4b","3","Fest","Frei","Frei","Frei"]
["TEST","OP","Typ 4","4b","3","Fest","Frei","Frei","Stangenverschluss"]
["TEST","OP","Typ 4","4b","3","Fest","Frei","SPD","Frei"]
["TEST","OP","Typ 4","4b","3","Fest","Frei","SPD","Stangenverschluss"]
["TEST","OP","Typ 4","4b","3","Frei","Frei","Frei","Frei"]
["TEST","OP","Typ 4","4b","3","Frei","Frei","Frei","Stangenverschluss"]
["TEST","OP","Typ 4","4b","3","Frei","Frei","SPD","Frei"]
["TEST","OP","Typ 4","4b","3","Frei","Frei","SPD","Stangenverschluss"]
["TEST","OP","Typ 4","4b","4","Fahrbar","Frei","Frei","Frei"]
["TEST","OP","Typ 4","4b","4","Fahrbar","Frei","Frei","Stangenverschluss"]
["TEST","OP","Typ 4","4b","4","Fahrbar","Frei","SPD","Frei"]
["TEST","OP","Typ 4","4b","4","Fahrbar","Frei","SPD","Stangenverschluss"]
["TEST","OP","Typ 4","4b","4","Fest","Frei","Frei","Frei"]
["TEST","OP","Typ 4","4b","4","Fest","Frei","Frei","Stangenverschluss"]
["TEST","OP","Typ 4","4b","4","Fest","Frei","SPD","Frei"]
["TEST","OP","Typ 4","4b","4","Fest","Frei","SPD","Stangenverschluss"]
["TEST","OP","Typ 4","4b","4","Frei","Frei","Frei","Frei"]
["TEST","OP","Typ 4","4b","4","Frei","Frei","Frei","Stangenverschluss"]
["TEST","OP","Typ 4","4b","4","Frei","Frei","SPD","Frei"]
["TEST","OP","Typ 4","4b","4","Frei","Frei","SPD","Stangenverschluss"]
["TEST","OP","Typ 4","4b","Frei","Fahrbar","Frei","Frei","Frei"]
["TEST","OP","Typ 4","4b","Frei","Fahrbar","Frei","Frei","Stangenverschluss"]
["TEST","OP","Typ 4","4b","Frei","Fahrbar","Frei","SPD","Frei"]
["TEST","OP","Typ 4","4b","Frei","Fahrbar","Frei","SPD","Stangenverschluss"]
["TEST","OP","Typ 4","4b","Frei","Fest","Frei","Frei","Frei"]
["TEST","OP","Typ 4","4b","Frei","Fest","Frei","Frei","Stangenverschluss"]
["TEST","OP","Typ 4","4b","Frei","Fest","Frei","SPD","Frei"]
["TEST","OP","Typ 4","4b","Frei","Fest","Frei","SPD","Stangenverschluss"]
["TEST","OP","Typ 4","4b","Frei","Frei","Frei","Frei","Frei"]
["TEST","OP","Typ 4","4b","Frei","Frei","Frei","Frei","Stangenverschluss"]
["TEST","OP","Typ 4","4b","Frei","Frei","Frei","SPD","Frei"]
["TEST","OP","Typ 4","4b","Frei","Frei","Frei","SPD","Stangenverschluss"]
["TEST","OP","Typ 4","Frei","3","Fahrbar","Frei","Frei","Frei"]
["TEST","OP","Typ 4","Frei","3","Fahrbar","Frei","Frei","Stangenverschluss"]
["TEST","OP","Typ 4","Frei","3","Fahrbar","Frei","SPD","Frei"]
["TEST","OP","Typ 4","Frei","3","Fahrbar","Frei","SPD","Stangenverschluss"]
["TEST","OP","Typ 4","Frei","3","Fest","Frei","Frei","Frei"]
["TEST","OP","Typ 4","Frei","3","Fest","Frei","Frei","Stangenverschluss"]
["TEST","OP","Typ 4","Frei","3","Fest","Frei","SPD","Frei"]
["TEST","OP","Typ 4","Frei","3","Fest","Frei","SPD","Stangenverschluss"]
["TEST","OP","Typ 4","Frei","3","Frei","Frei","Frei","Frei"]
["TEST","OP","Typ 4","Frei","3","Frei","Frei","Frei","Stangenverschluss"]
["TEST","OP","Typ 4","Frei","3","Frei","Frei","SPD","Frei"]
["TEST","OP","Typ 4","Frei","3","Frei","Frei","SPD","Stangenverschluss"]
["TEST","OP","Typ 4","Frei","4","Fahrbar","Frei","Frei","Frei"]
["TEST","OP","Typ 4","Frei","4","Fahrbar","Frei","Frei","Stangenverschluss"]
["TEST","OP","Typ 4","Frei","4","Fahrbar","Frei","SPD","Frei"]
["TEST","OP","Typ 4","Frei","4","Fahrbar","Frei","SPD","Stangenverschluss"]
["TEST","OP","Typ 4","Frei","4","Fest","Frei","Frei","Frei"]
["TEST","OP","Typ 4","Frei","4","Fest","Frei","Frei","Stangenverschluss"]
["TEST","OP","Typ 4","Frei","4","Fest","Frei","SPD","Frei"]
["TEST","OP","Typ 4","Frei","4","Fest","Frei","SPD","Stangenverschluss"]
["TEST","OP","Typ 4","Frei","4","Frei","Frei","Frei","Frei"]
["TEST","OP","Typ 4","Frei","4","Frei","Frei","Frei","Stangenverschluss"]
["TEST","OP","Typ 4","Frei","4","Frei","Frei","SPD","Frei"]
["TEST","OP","Typ 4","Frei","4","Frei","Frei","SPD","Stangenverschluss"]
["TEST","OP","Typ 4","Frei","Frei","Fahrbar","Frei","Frei","Frei"]
["TEST","OP","Typ 4","Frei","Frei","Fahrbar","Frei","Frei","Stangenverschluss"]
["TEST","OP","Typ 4","Frei","Frei","Fahrbar","Frei","SPD","Frei"]
["TEST","OP","Typ 4","Frei","Frei","Fahrbar","Frei","SPD","Stangenverschluss"]
["TEST","OP","Typ 4","Frei","Frei","Fest","Frei","Frei","Frei"]
["TEST","OP","Typ 4","Frei","Frei","Fest","Frei","Frei","Stangenverschluss"]
["TEST","OP","Typ 4","Frei","Frei","Fest","Frei","SPD","Frei"]
["TEST","OP","Typ 4","Frei","Frei","Fest","Frei","SPD","Stangenverschluss"]
["TEST","OP","Typ 4","Frei","Frei","Frei","Frei","Frei","Frei"]
["TEST","OP","Typ 4","Frei","Frei","Frei","Frei","Frei","Stangenverschluss"]
["TEST","OP","Typ 4","Frei","Frei","Frei","Frei","SPD","Frei"]
["TEST","OP","Typ 4","Frei","Frei","Frei","Frei","SPD","Stangenverschluss"]
["TEST","OP","Typ 4","2","3","Fahrbar","Frei","Frei","Frei"]
["TEST","OP","Typ 4","2","3","Fahrbar","Frei","Frei","Stangenverschluss"]
["TEST","OP","Typ 4","2","3","Fahrbar","Frei","SPD","Frei"]
["TEST","OP","Typ 4","2","3","Fahrbar","Frei","SPD","Stangenverschluss"]
["TEST","OP","Typ 4","2","3","Fest","Frei","Frei","Frei"]
["TEST","OP","Typ 4","2","3","Fest","Frei","Frei","Stangenverschluss"]
["TEST","OP","Typ 4","2","3","Fest","Frei","SPD","Frei"]
["TEST","OP","Typ 4","2","3","Fest","Frei","SPD","Stangenverschluss"]
["TEST","OP","Typ 4","2","3","Frei","Frei","Frei","Frei"]
["TEST","OP","Typ 4","2","3","Frei","Frei","Frei","Stangenverschluss"]
["TEST","OP","Typ 4","2","3","Frei","Frei","SPD","Frei"]
["TEST","OP","Typ 4","2","3","Frei","Frei","SPD","Stangenverschluss"]
["TEST","OP","Typ 4","2","4","Fahrbar","Frei","Frei","Frei"]
["TEST","OP","Typ 4","2","4","Fahrbar","Frei","Frei","Stangenverschluss"]
["TEST","OP","Typ 4","2","4","Fahrbar","Frei","SPD","Frei"]
["TEST","OP","Typ 4","2","4","Fahrbar","Frei","SPD","Stangenverschluss"]
["TEST","OP","Typ 4","2","4","Fest","Frei","Frei","Frei"]
["TEST","OP","Typ 4","2","4","Fest","Frei","Frei","Stangenverschluss"]
["TEST","OP","Typ 4","2","4","Fest","Frei","SPD","Frei"]
["TEST","OP","Typ 4","2","4","Fest","Frei","SPD","Stangenverschluss"]
["TEST","OP","Typ 4","2","4","Frei","Frei","Frei","Frei"]
["TEST","OP","Typ 4","2","4","Frei","Frei","Frei","Stangenverschluss"]
["TEST","OP","Typ 4","2","4","Frei","Frei","SPD","Frei"]
["TEST","OP","Typ 4","2","4","Frei","Frei","SPD","Stangenverschluss"]
["TEST","OP","Typ 4","2","Frei","Fahrbar","Frei","Frei","Frei"]
["TEST","OP","Typ 4","2","Frei","Fahrbar","Frei","Frei","Stangenverschluss"]
["TEST","OP","Typ 4","2","Frei","Fahrbar","Frei","SPD","Frei"]
["TEST","OP","Typ 4","2","Frei","Fahrbar","Frei","SPD","Stangenverschluss"]
["TEST","OP","Typ 4","2","Frei","Fest","Frei","Frei","Frei"]
["TEST","OP","Typ 4","2","Frei","Fest","Frei","Frei","Stangenverschluss"]
["TEST","OP","Typ 4","2","Frei","Fest","Frei","SPD","Frei"]
["TEST","OP","Typ 4","2","Frei","Fest","Frei","SPD","Stangenverschluss"]
["TEST","OP","Typ 4","2","Frei","Frei","Frei","Frei","Frei"]
["TEST","OP","Typ 4","2","Frei","Frei","Frei","Frei","Stangenverschluss"]
["TEST","OP","Typ 4","2","Frei","Frei","Frei","SPD","Frei"]
["TEST","OP","Typ 4","2","Frei","Frei","Frei","SPD","Stangenverschluss"]
["TEST","OP","Typ 5","4a","3","Fahrbar","Frei","Frei","Frei"]
["TEST","OP","Typ 5","4a","3","Fahrbar","Frei","Frei","Stangenverschluss"]
["TEST","OP","Typ 5","4a","3","Fahrbar","Frei","SPD","Frei"]
["TEST","OP","Typ 5","4a","3","Fahrbar","Frei","SPD","Stangenverschluss"]
["TEST","OP","Typ 5","4a","3","Fest","Frei","Frei","Frei"]
["TEST","OP","Typ 5","4a","3","Fest","Frei","Frei","Stangenverschluss"]
["TEST","OP","Typ 5","4a","3","Fest","Frei","SPD","Frei"]
["TEST","OP","Typ 5","4a","3","Fest","Frei","SPD","Stangenverschluss"]
["TEST","OP","Typ 5","4a","3","Frei","Frei","Frei","Frei"]
["TEST","OP","Typ 5","4a","3","Frei","Frei","Frei","Stangenverschluss"]
["TEST","OP","Typ 5","4a","3","Frei","Frei","SPD","Frei"]
["TEST","OP","Typ 5","4a","3","Frei","Frei","SPD","Stangenverschluss"]
["TEST","OP","Typ 5","4a","4","Fahrbar","Frei","Frei","Frei"]
["TEST","OP","Typ 5","4a","4","Fahrbar","Frei","Frei","Stangenverschluss"]
["TEST","OP","Typ 5","4a","4","Fahrbar","Frei","SPD","Frei"]
["TEST","OP","Typ 5","4a","4","Fahrbar","Frei","SPD","Stangenverschluss"]
["TEST","OP","Typ 5","4a","4","Fest","Frei","Frei","Frei"]
["TEST","OP","Typ 5","4a","4","Fest","Frei","Frei","Stangenverschluss"]
["TEST","OP","Typ 5","4a","4","Fest","Frei","SPD","Frei"]
["TEST","OP","Typ 5","4a","4","Fest","Frei","SPD","Stangenverschluss"]
["TEST","OP","Typ 5","4a","4","Frei","Frei","Frei","Frei"]
["TEST","OP","Typ 5","4a","4","Frei","Frei","Frei","Stangenverschluss"]
["TEST","OP","Typ 5","4a","4","Frei","Frei","SPD","Frei"]
["TEST","OP","Typ 5","4a","4","Frei","Frei","SPD","Stangenverschluss"]
["TEST","OP","Typ 5","4a","Frei","Fahrbar","Frei","Frei","Frei"]
["TEST","OP","Typ 5","4a","Frei","Fahrbar","Frei","Frei","Stangenverschluss"]
["TEST","OP","Typ 5","4a","Frei","Fahrbar","Frei","SPD","Frei"]
["TEST","OP","Typ 5","4a","Frei","Fahrbar","Frei","SPD","Stangenverschluss"]
["TEST","OP","Typ 5","4a","Frei","Fest","Frei","Frei","Frei"]
["TEST","OP","Typ 5","4a","Frei","Fest","Frei","Frei","Stangenverschluss"]
["TEST","OP","Typ 5","4a","Frei","Fest","Frei","SPD","Frei"]
["TEST","OP","Typ 5","4a","Frei","Fest","Frei","SPD","Stangenverschluss"]
["TEST","OP","Typ 5","4a","Frei","Frei","Frei","Frei","Frei"]
["TEST","OP","Typ 5","4a","Frei","Frei","Frei","Frei","Stangenverschluss"]
["TEST","OP","Typ 5","4a","Frei","Frei","Frei","SPD","Frei"]
["TEST","OP","Typ 5","4a","Frei","Frei","Frei","SPD","Stangenverschluss"]
["TEST","OP","Typ 5","4b","3","Fahrbar","Frei","Frei","Frei"]
["TEST","OP","Typ 5","4b","3","Fahrbar","Frei","Frei","Stangenverschluss"]
["TEST","OP","Typ 5","4b","3","Fahrbar","Frei","SPD","Frei"]
["TEST","OP","Typ 5","4b","3","Fahrbar","Frei","SPD","Stangenverschluss"]
["TEST","OP","Typ 5","4b","3","Fest","Frei","Frei","Frei"]
["TEST","OP","Typ 5","4b","3","Fest","Frei","Frei","Stangenverschluss"]
["TEST","OP","Typ 5","4b","3","Fest","Frei","SPD","Frei"]
["TEST","OP","Typ 5","4b","3","Fest","Frei","SPD","Stangenverschluss"]
["TEST","OP","Typ 5","4b","3","Frei","Frei","Frei","Frei"]
["TEST","OP","Typ 5","4b","3","Frei","Frei","Frei","Stangenverschluss"]
["TEST","OP","Typ 5","4b","3","Frei","Frei","SPD","Frei"]
["TEST","OP","Typ 5","4b","3","Frei","Frei","SPD","Stangenverschluss"]
["TEST","OP","Typ 5","4b","4","Fahrbar","Frei","Frei","Frei"]
["TEST","OP","Typ 5","4b","4","Fahrbar","Frei","Frei","Stangenverschluss"]
["TEST","OP","Typ 5","4b","4","Fahrbar","Frei","SPD","Frei"]
["TEST","OP","Typ 5","4b","4","Fahrbar","Frei","SPD","Stangenverschluss"]
["TEST","OP","Typ 5","4b","4","Fest","Frei","Frei","Frei"]
["TEST","OP","Typ 5","4b","4","Fest","Frei","Frei","Stangenverschluss"]
["TEST","OP","Typ 5","4b","4","Fest","Frei","SPD","Frei"]
["TEST","OP","Typ 5","4b","4","Fest","Frei","SPD","Stangenverschluss"]
["TEST","OP","Typ 5","4b","4","Frei","Frei","Frei","Frei"]
["TEST","OP","Typ 5","4b","4","Frei","Frei","Frei","Stangenverschluss"]
["TEST","OP","Typ 5","4b","4","Frei","Frei","SPD","Frei"]
["TEST","OP","Typ 5","4b","4","Frei","Frei","SPD","Stangenverschluss"]
["TEST","OP","Typ 5","4b","Frei","Fahrbar","Frei","Frei","Frei"]
["TEST","OP","Typ 5","4b","Frei","Fahrbar","Frei","Frei","Stangenverschluss"]
["TEST","OP","Typ 5","4b","Frei","Fahrbar","Frei","SPD","Frei"]
["TEST","OP","Typ 5","4b","Frei","Fahrbar","Frei","SPD","Stangenverschluss"]
["TEST","OP","Typ 5","4b","Frei","Fest","Frei","Frei","Frei"]
["TEST","OP","Typ 5","4b","Frei","Fest","Frei","Frei","Stangenverschluss"]
["TEST","OP","Typ 5","4b","Frei","Fest","Frei","SPD","Frei"]
["TEST","OP","Typ 5","4b","Frei","Fest","Frei","SPD","Stangenverschluss"]
["TEST","OP","Typ 5","4b","Frei","Frei","Frei","Frei","Frei"]
["TEST","OP","Typ 5","4b","Frei","Frei","Frei","Frei","Stangenverschluss"]
["TEST","OP","Typ 5","4b","Frei","Frei","Frei","SPD","Frei"]
["TEST","OP","Typ 5","4b","Frei","Frei","Frei","SPD","Stangenverschluss"]
["TEST","OP","Typ 5","Frei","3","Fahrbar","Frei","Frei","Frei"]
["TEST","OP","Typ 5","Frei","3","Fahrbar","Frei","Frei","Stangenverschluss"]
["TEST","OP","Typ 5","Frei","3","Fahrbar","Frei","SPD","Frei"]
["TEST","OP","Typ 5","Frei","3","Fahrbar","Frei","SPD","Stangenverschluss"]
["TEST","OP","Typ 5","Frei","3","Fest","Frei","Frei","Frei"]
["TEST","OP","Typ 5","Frei","3","Fest","Frei","Frei","Stangenverschluss"]
["TEST","OP","Typ 5","Frei","3","Fest","Frei","SPD","Frei"]
["TEST","OP","Typ 5","Frei","3","Fest","Frei","SPD","Stangenverschluss"]
["TEST","OP","Typ 5","Frei","3","Frei","Frei","Frei","Frei"]
["TEST","OP","Typ 5","Frei","3","Frei","Frei","Frei","Stangenverschluss"]
["TEST","OP","Typ 5","Frei","3","Frei","Frei","SPD","Frei"]
["TEST","OP","Typ 5","Frei","3","Frei","Frei","SPD","Stangenverschluss"]
["TEST","OP","Typ 5","Frei","4","Fahrbar","Frei","Frei","Frei"]
["TEST","OP","Typ 5","Frei","4","Fahrbar","Frei","Frei","Stangenverschluss"]
["TEST","OP","Typ 5","Frei","4","Fahrbar","Frei","SPD","Frei"]
["TEST","OP","Typ 5","Frei","4","Fahrbar","Frei","SPD","Stangenverschluss"]
["TEST","OP","Typ 5","Frei","4","Fest","Frei","Frei","Frei"]
["TEST","OP","Typ 5","Frei","4","Fest","Frei","Frei","Stangenverschluss"]
["TEST","OP","Typ 5","Frei","4","Fest","Frei","SPD","Frei"]
["TEST","OP","Typ 5","Frei","4","Fest","Frei","SPD","Stangenverschluss"]
["TEST","OP","Typ 5","Frei","4","Frei","Frei","Frei","Frei"]
["TEST","OP","Typ 5","Frei","4","Frei","Frei","Frei","Stangenverschluss"]
["TEST","OP","Typ 5","Frei","4","Frei","Frei","SPD","Frei"]
["TEST","OP","Typ 5","Frei","4","Frei","Frei","SPD","Stangenverschluss"]
["TEST","OP","Typ 5","Frei","Frei","Fahrbar","Frei","Frei","Frei"]
["TEST","OP","Typ 5","Frei","Frei","Fahrbar","Frei","Frei","Stangenverschluss"]
["TEST","OP","Typ 5","Frei","Frei","Fahrbar","Frei","SPD","Frei"]
["TEST","OP","Typ 5","Frei","Frei","Fahrbar","Frei","SPD","Stangenverschluss"]
["TEST","OP","Typ 5","Frei","Frei","Fest","Frei","Frei","Frei"]
["TEST","OP","Typ 5","Frei","Frei","Fest","Frei","Frei","Stangenverschluss"]
["TEST","OP","Typ 5","Frei","Frei","Fest","Frei","SPD","Frei"]
["TEST","OP","Typ 5","Frei","Frei","Fest","Frei","SPD","Stangenverschluss"]
["TEST","OP","Typ 5","Frei","Frei","Frei","Frei","Frei","Frei"]
["TEST","OP","Typ 5","Frei","Frei","Frei","Frei","Frei","Stangenverschluss"]
["TEST","OP","Typ 5","Frei","Frei","Frei","Frei","SPD","Frei"]
["TEST","OP","Typ 5","Frei","Frei","Frei","Frei","SPD","Stangenverschluss"]
["TEST","OP","Typ 5","2","3","Fahrbar","Frei","Frei","Frei"]
["TEST","OP","Typ 5","2","3","Fahrbar","Frei","Frei","Stangenverschluss"]
["TEST","OP","Typ 5","2","3","Fahrbar","Frei","SPD","Frei"]
["TEST","OP","Typ 5","2","3","Fahrbar","Frei","SPD","Stangenverschluss"]
["TEST","OP","Typ 5","2","3","Fest","Frei","Frei","Frei"]
["TEST","OP","Typ 5","2","3","Fest","Frei","Frei","Stangenverschluss"]
["TEST","OP","Typ 5","2","3","Fest","Frei","SPD","Frei"]
["TEST","OP","Typ 5","2","3","Fest","Frei","SPD","Stangenverschluss"]
["TEST","OP","Typ 5","2","3","Frei","Frei","Frei","Frei"]
["TEST","OP","Typ 5","2","3","Frei","Frei","Frei","Stangenverschluss"]
["TEST","OP","Typ 5","2","3","Frei","Frei","SPD","Frei"]
["TEST","OP","Typ 5","2","3","Frei","Frei","SPD","Stangenverschluss"]
["TEST","OP","Typ 5","2","4","Fahrbar","Frei","Frei","Frei"]
["TEST","OP","Typ 5","2","4","Fahrbar","Frei","Frei","Stangenverschluss"]
["TEST","OP","Typ 5","2","4","Fahrbar","Frei","SPD","Frei"]
["TEST","OP","Typ 5","2","4","Fahrbar","Frei","SPD","Stangenverschluss"]
["TEST","OP","Typ 5","2","4","Fest","Frei","Frei","Frei"]
["TEST","OP","Typ 5","2","4","Fest","Frei","Frei","Stangenverschluss"]
["TEST","OP","Typ 5","2","4","Fest","Frei","SPD","Frei"]
["TEST","OP","Typ 5","2","4","Fest","Frei","SPD","Stangenverschluss"]
["TEST","OP","Typ 5","2","4","Frei","Frei","Frei","Frei"]
["TEST","OP","Typ 5","2","4","Frei","Frei","Frei","Stangenverschluss"]
["TEST","OP","Typ 5","2","4","Frei","Frei","SPD","Frei"]
["TEST","OP","Typ 5","2","4","Frei","Frei","SPD","Stangenverschluss"]
["TEST","OP","Typ 5","2","Frei","Fahrbar","Frei","Frei","Frei"]
["TEST","OP","Typ 5","2","Frei","Fahrbar","Frei","Frei","Stangenverschluss"]
["TEST","OP","Typ 5","2","Frei","Fahrbar","Frei","SPD","Frei"]
["TEST","OP","Typ 5","2","Frei","Fahrbar","Frei","SPD","Stangenverschluss"]
["TEST","OP","Typ 5","2","Frei","Fest","Frei","Frei","Frei"]
["TEST","OP","Typ 5","2","Frei","Fest","Frei","Frei","Stangenverschluss"]
["TEST","OP","Typ 5","2","Frei","Fest","Frei","SPD","Frei"]
["TEST","OP","Typ 5","2","Frei","Fest","Frei","SPD","Stangenverschluss"]
["TEST","OP","Typ 5","2","Frei","Frei","Frei","Frei","Frei"]
["TEST","OP","Typ 5","2","Frei","Frei","Frei","Frei","Stangenverschluss"]
["TEST","OP","Typ 5","2","Frei","Frei","Frei","SPD","Frei"]
["TEST","OP","Typ 5","2","Frei","Frei","Frei","SPD","Stangenverschluss"]
["TEST","OP","Typ 2","4a","3","Fahrbar","Frei","Frei","Frei"]
["TEST","OP","Typ 2","4a","3","Fahrbar","Frei","Frei","Stangenverschluss"]
["TEST","OP","Typ 2","4a","3","Fahrbar","Frei","SPD","Frei"]
["TEST","OP","Typ 2","4a","3","Fahrbar","Frei","SPD","Stangenverschluss"]
["TEST","OP","Typ 2","4a","3","Fest","Frei","Frei","Frei"]
["TEST","OP","Typ 2","4a","3","Fest","Frei","Frei","Stangenverschluss"]
["TEST","OP","Typ 2","4a","3","Fest","Frei","SPD","Frei"]
["TEST","OP","Typ 2","4a","3","Fest","Frei","SPD","Stangenverschluss"]
["TEST","OP","Typ 2","4a","3","Frei","Frei","Frei","Frei"]
["TEST","OP","Typ 2","4a","3","Frei","Frei","Frei","Stangenverschluss"]
["TEST","OP","Typ 2","4a","3","Frei","Frei","SPD","Frei"]
["TEST","OP","Typ 2","4a","3","Frei","Frei","SPD","Stangenverschluss"]
["TEST","OP","Typ 2","4a","4","Fahrbar","Frei","Frei","Frei"]
["TEST","OP","Typ 2","4a","4","Fahrbar","Frei","Frei","Stangenverschluss"]
["TEST","OP","Typ 2","4a","4","Fahrbar","Frei","SPD","Frei"]
["TEST","OP","Typ 2","4a","4","Fahrbar","Frei","SPD","Stangenverschluss"]
["TEST","OP","Typ 2","4a","4","Fest","Frei","Frei","Frei"]
["TEST","OP","Typ 2","4a","4","Fest","Frei","Frei","Stangenverschluss"]
["TEST","OP","Typ 2","4a","4","Fest","Frei","SPD","Frei"]
["TEST","OP","Typ 2","4a","4","Fest","Frei","SPD","Stangenverschluss"]
["TEST","OP","Typ 2","4a","4","Frei","Frei","Frei","Frei"]
["TEST","OP","Typ 2","4a","4","Frei","Frei","Frei","Stangenverschluss"]
["TEST","OP","Typ 2","4a","4","Frei","Frei","SPD","Frei"]
["TEST","OP","Typ 2","4a","4","Frei","Frei","SPD","Stangenverschluss"]
["TEST","OP","Typ 2","4a","Frei","Fahrbar","Frei","Frei","Frei"]
["TEST","OP","Typ 2","4a","Frei","Fahrbar","Frei","Frei","Stangenverschluss"]
["TEST","OP","Typ 2","4a","Frei","Fahrbar","Frei","SPD","Frei"]
["TEST","OP","Typ 2","4a","Frei","Fahrbar","Frei","SPD","Stangenverschluss"]
["TEST","OP","Typ 2","4a","Frei","Fest","Frei","Frei","Frei"]
["TEST","OP","Typ 2","4a","Frei","Fest","Frei","Frei","Stangenverschluss"]
["TEST","OP","Typ 2","4a","Frei","Fest","Frei","SPD","Frei"]
["TEST","OP","Typ 2","4a","Frei","Fest","Frei","SPD","Stangenverschluss"]
["TEST","OP","Typ 2","4a","Frei","Frei","Frei","Frei","Frei"]
["TEST","OP","Typ 2","4a","Frei","Frei","Frei","Frei","Stangenverschluss"]
["TEST","OP","Typ 2","4a","Frei","Frei","Frei","SPD","Frei"]
["TEST","OP","Typ 2","4a","Frei","Frei","Frei","SPD","Stangenverschluss"]
["TEST","OP","Typ 2","4b","3","Fahrbar","Frei","Frei","Frei"]
["TEST","OP","Typ 2","4b","3","Fahrbar","Frei","Frei","Stangenverschluss"]
["TEST","OP","Typ 2","4b","3","Fahrbar","Frei","SPD","Frei"]
["TEST","OP","Typ 2","4b","3","Fahrbar","Frei","SPD","Stangenverschluss"]
["TEST","OP","Typ 2","4b","3","Fest","Frei","Frei","Frei"]
["TEST","OP","Typ 2","4b","3","Fest","Frei","Frei","Stangenverschluss"]
["TEST","OP","Typ 2","4b","3","Fest","Frei","SPD","Frei"]
["TEST","OP","Typ 2","4b","3","Fest","Frei","SPD","Stangenverschluss"]
["TEST","OP","Typ 2","4b","3","Frei","Frei","Frei","Frei"]
["TEST","OP","Typ 2","4b","3","Frei","Frei","Frei","Stangenverschluss"]
["TEST","OP","Typ 2","4b","3","Frei","Frei","SPD","Frei"]
["TEST","OP","Typ 2","4b","3","Frei","Frei","SPD","Stangenverschluss"]
["TEST","OP","Typ 2","4b","4","Fahrbar","Frei","Frei","Frei"]
["TEST","OP","Typ 2","4b","4","Fahrbar","Frei","Frei","Stangenverschluss"]
["TEST","OP","Typ 2","4b","4","Fahrbar","Frei","SPD","Frei"]
["TEST","OP","Typ 2","4b","4","Fahrbar","Frei","SPD","Stangenverschluss"]
["TEST","OP","Typ 2","4b","4","Fest","Frei","Frei","Frei"]
["TEST","OP","Typ 2","4b","4","Fest","Frei","Frei","Stangenverschluss"]
["TEST","OP","Typ 2","4b","4","Fest","Frei","SPD","Frei"]
["TEST","OP","Typ 2","4b","4","Fest","Frei","SPD","Stangenverschluss"]
["TEST","OP","Typ 2","4b","4","Frei","Frei","Frei","Frei"]
["TEST","OP","Typ 2","4b","4","Frei","Frei","Frei","Stangenverschluss"]
["TEST","OP","Typ 2","4b","4","Frei","Frei","SPD","Frei"]
["TEST","OP","Typ 2","4b","4","Frei","Frei","SPD","Stangenverschluss"]
["TEST","OP","Typ 2","4b","Frei","Fahrbar","Frei","Frei","Frei"]
["TEST","OP","Typ 2","4b","Frei","Fahrbar","Frei","Frei","Stangenverschluss"]
["TEST","OP","Typ 2","4b","Frei","Fahrbar","Frei","SPD","Frei"]
["TEST","OP","Typ 2","4b","Frei","Fahrbar","Frei","SPD","Stangenverschluss"]
["TEST","OP","Typ 2","4b","Frei","Fest","Frei","Frei","Frei"]
["TEST","OP","Typ 2","4b","Frei","Fest","Frei","Frei","Stangenverschluss"]
["TEST","OP","Typ 2","4b","Frei","Fest","Frei","SPD","Frei"]
["TEST","OP","Typ 2","4b","Frei","Fest","Frei","SPD","Stangenverschluss"]
["TEST","OP","Typ 2","4b","Frei","Frei","Frei","Frei","Frei"]
["TEST","OP","Typ 2","4b","Frei","Frei","Frei","Frei","Stangenverschluss"]
["TEST","OP","Typ 2","4b","Frei","Frei","Frei","SPD","Frei"]
["TEST","OP","Typ 2","4b","Frei","Frei","Frei","SPD","Stangenverschluss"]
["TEST","OP","Typ 2","Frei","3","Fahrbar","Frei","Frei","Frei"]
["TEST","OP","Typ 2","Frei","3","Fahrbar","Frei","Frei","Stangenverschluss"]
["TEST","OP","Typ 2","Frei","3","Fahrbar","Frei","SPD","Frei"]
["TEST","OP","Typ 2","Frei","3","Fahrbar","Frei","SPD","Stangenverschluss"]
["TEST","OP","Typ 2","Frei","3","Fest","Frei","Frei","Frei"]
["TEST","OP","Typ 2","Frei","3","Fest","Frei","Frei","Stangenverschluss"]
["TEST","OP","Typ 2","Frei","3","Fest","Frei","SPD","Frei"]
["TEST","OP","Typ 2","Frei","3","Fest","Frei","SPD","Stangenverschluss"]
["TEST","OP","Typ 2","Frei","3","Frei","Frei","Frei","Frei"]
["TEST","OP","Typ 2","Frei","3","Frei","Frei","Frei","Stangenverschluss"]
["TEST","OP","Typ 2","Frei","3","Frei","Frei","SPD","Frei"]
["TEST","OP","Typ 2","Frei","3","Frei","Frei","SPD","Stangenverschluss"]
["TEST","OP","Typ 2","Frei","4","Fahrbar","Frei","Frei","Frei"]
["TEST","OP","Typ 2","Frei","4","Fahrbar","Frei","Frei","Stangenverschluss"]
["TEST","OP","Typ 2","Frei","4","Fahrbar","Frei","SPD","Frei"]
["TEST","OP","Typ 2","Frei","4","Fahrbar","Frei","SPD","Stangenverschluss"]
["TEST","OP","Typ 2","Frei","4","Fest","Frei","Frei","Frei"]
["TEST","OP","Typ 2","Frei","4","Fest","Frei","Frei","Stangenverschluss"]
["TEST","OP","Typ 2","Frei","4","Fest","Frei","SPD","Frei"]
["TEST","OP","Typ 2","Frei","4","Fest","Frei","SPD","Stangenverschluss"]
["TEST","OP","Typ 2","Frei","4","Frei","Frei","Frei","Frei"]
["TEST","OP","Typ 2","Frei","4","Frei","Frei","Frei","Stangenverschluss"]
["TEST","OP","Typ 2","Frei","4","Frei","Frei","SPD","Frei"]
["TEST","OP","Typ 2","Frei","4","Frei","Frei","SPD","Stangenverschluss"]
["TEST","OP","Typ 2","Frei","Frei","Fahrbar","Frei","Frei","Frei"]
["TEST","OP","Typ 2","Frei","Frei","Fahrbar","Frei","Frei","Stangenverschluss"]
["TEST","OP","Typ 2","Frei","Frei","Fahrbar","Frei","SPD","Frei"]
["TEST","OP","Typ 2","Frei","Frei","Fahrbar","Frei","SPD","Stangenverschluss"]
["TEST","OP","Typ 2","Frei","Frei","Fest","Frei","Frei","Frei"]
["TEST","OP","Typ 2","Frei","Frei","Fest","Frei","Frei","Stangenverschluss"]
["TEST","OP","Typ 2","Frei","Frei","Fest","Frei","SPD","Frei"]
["TEST","OP","Typ 2","Frei","Frei","Fest","Frei","SPD","Stangenverschluss"]
["TEST","OP","Typ 2","Frei","Frei","Frei","Frei","Frei","Frei"]
["TEST","OP","Typ 2","Frei","Frei","Frei","Frei","Frei","Stangenverschluss"]
["TEST","OP","Typ 2","Frei","Frei","Frei","Frei","SPD","Frei"]
["TEST","OP","Typ 2","Frei","Frei","Frei","Frei","SPD","Stangenverschluss"]
["TEST","OP","Typ 2","2","3","Fahrbar","Frei","Frei","Frei"]
["TEST","OP","Typ 2","2","3","Fahrbar","Frei","Frei","Stangenverschluss"]
["TEST","OP","Typ 2","2","3","Fahrbar","Frei","SPD","Frei"]
["TEST","OP","Typ 2","2","3","Fahrbar","Frei","SPD","Stangenverschluss"]
["TEST","OP","Typ 2","2","3","Fest","Frei","Frei","Frei"]
["TEST","OP","Typ 2","2","3","Fest","Frei","Frei","Stangenverschluss"]
["TEST","OP","Typ 2","2","3","Fest","Frei","SPD","Frei"]
["TEST","OP","Typ 2","2","3","Fest","Frei","SPD","Stangenverschluss"]
["TEST","OP","Typ 2","2","3","Frei","Frei","Frei","Frei"]
["TEST","OP","Typ 2","2","3","Frei","Frei","Frei","Stangenverschluss"]
["TEST","OP","Typ 2","2","3","Frei","Frei","SPD","Frei"]
["TEST","OP","Typ 2","2","3","Frei","Frei","SPD","Stangenverschluss"]
["TEST","OP","Typ 2","2","4","Fahrbar","Frei","Frei","Frei"]
["TEST","OP","Typ 2","2","4","Fahrbar","Frei","Frei","Stangenverschluss"]
["TEST","OP","Typ 2","2","4","Fahrbar","Frei","SPD","Frei"]
["TEST","OP","Typ 2","2","4","Fahrbar","Frei","SPD","Stangenverschluss"]
["TEST","OP","Typ 2","2","4","Fest","Frei","Frei","Frei"]
["TEST","OP","Typ 2","2","4","Fest","Frei","Frei","Stangenverschluss"]
["TEST","OP","Typ 2","2","4","Fest","Frei","SPD","Frei"]
["TEST","OP","Typ 2","2","4","Fest","Frei","SPD","Stangenverschluss"]
["TEST","OP","Typ 2","2","4","Frei","Frei","Frei","Frei"]
["TEST","OP","Typ 2","2","4","Frei","Frei","Frei","Stangenverschluss"]
["TEST","OP","Typ 2","2","4","Frei","Frei","SPD","Frei"]
["TEST","OP","Typ 2","2","4","Frei","Frei","SPD","Stangenverschluss"]
["TEST","OP","Typ 2","2","Frei","Fahrbar","Frei","Frei","Frei"]
["TEST","OP","Typ 2","2","Frei","Fahrbar","Frei","Frei","Stangenverschluss"]
["TEST","OP","Typ 2","2","Frei","Fahrbar","Frei","SPD","Frei"]
["TEST","OP","Typ 2","2","Frei","Fahrbar","Frei","SPD","Stangenverschluss"]
["TEST","OP","Typ 2","2","Frei","Fest","Frei","Frei","Frei"]
["TEST","OP","Typ 2","2","Frei","Fest","Frei","Frei","Stangenverschluss"]
["TEST","OP","Typ 2","2","Frei","Fest","Frei","SPD","Frei"]
["TEST","OP","Typ 2","2","Frei","Fest","Frei","SPD","Stangenverschluss"]
["TEST","OP","Typ 2","2","Frei","Frei","Frei","Frei","Frei"]
["TEST","OP","Typ 2","2","Frei","Frei","Frei","Frei","Stangenverschluss"]
["TEST","OP","Typ 2","2","Frei","Frei","Frei","SPD","Frei"]
["TEST","OP","Typ 2","2","Frei","Frei","Frei","SPD","Stangenverschluss"]
["TEST","Frei","Frei","4a","3","Fahrbar","Frei","Frei","Frei"]
["TEST","Frei","Frei","4a","3","Fahrbar","Frei","Frei","Stangenverschluss"]
["TEST","Frei","Frei","4a","3","Fahrbar","Frei","SPD","Frei"]
["TEST","Frei","Frei","4a","3","Fahrbar","Frei","SPD","Stangenverschluss"]
["TEST","Frei","Frei","4a","3","Fest","Frei","Frei","Frei"]
["TEST","Frei","Frei","4a","3","Fest","Frei","Frei","Stangenverschluss"]
["TEST","Frei","Frei","4a","3","Fest","Frei","SPD","Frei"]
["TEST","Frei","Frei","4a","3","Fest","Frei","SPD","Stangenverschluss"]
["TEST","Frei","Frei","4a","3","Frei","Frei","Frei","Frei"]
["TEST","Frei","Frei","4a","3","Frei","Frei","Frei","Stangenverschluss"]
["TEST","Frei","Frei","4a","3","Frei","Frei","SPD","Frei"]
["TEST","Frei","Frei","4a","3","Frei","Frei","SPD","Stangenverschluss"]
["TEST","Frei","Frei","4a","4","Fahrbar","Frei","Frei","Frei"]
["TEST","Frei","Frei","4a","4","Fahrbar","Frei","Frei","Stangenverschluss"]
["TEST","Frei","Frei","4a","4","Fahrbar","Frei","SPD","Frei"]
["TEST","Frei","Frei","4a","4","Fahrbar","Frei","SPD","Stangenverschluss"]
["TEST","Frei","Frei","4a","4","Fest","Frei","Frei","Frei"]
["TEST","Frei","Frei","4a","4","Fest","Frei","Frei","Stangenverschluss"]
["TEST","Frei","Frei","4a","4","Fest","Frei","SPD","Frei"]
["TEST","Frei","Frei","4a","4","Fest","Frei","SPD","Stangenverschluss"]
["TEST","Frei","Frei","4a","4","Frei","Frei","Frei","Frei"]
["TEST","Frei","Frei","4a","4","Frei","Frei","Frei","Stangenverschluss"]
["TEST","Frei","Frei","4a","4","Frei","Frei","SPD","Frei"]
["TEST","Frei","Frei","4a","4","Frei","Frei","SPD","Stangenverschluss"]
["TEST","Frei","Frei","4a","Frei","Fahrbar","Frei","Frei","Frei"]
["TEST","Frei","Frei","4a","Frei","Fahrbar","Frei","Frei","Stangenverschluss"]
["TEST","Frei","Frei","4a","Frei","Fahrbar","Frei","SPD","Frei"]
["TEST","Frei","Frei","4a","Frei","Fahrbar","Frei","SPD","Stangenverschluss"]
["TEST","Frei","Frei","4a","Frei","Fest","Frei","Frei","Frei"]
["TEST","Frei","Frei","4a","Frei","Fest","Frei","Frei","Stangenverschluss"]
["TEST","Frei","Frei","4a","Frei","Fest","Frei","SPD","Frei"]
["TEST","Frei","Frei","4a","Frei","Fest","Frei","SPD","Stangenverschluss"]
["TEST","Frei","Frei","4a","Frei","Frei","Frei","Frei","Frei"]
["TEST","Frei","Frei","4a","Frei","Frei","Frei","Frei","Stangenverschluss"]
["TEST","Frei","Frei","4a","Frei","Frei","Frei","SPD","Frei"]
["TEST","Frei","Frei","4a","Frei","Frei","Frei","SPD","Stangenverschluss"]
["TEST","Frei","Frei","4b","3","Fahrbar","Frei","Frei","Frei"]
["TEST","Frei","Frei","4b","3","Fahrbar","Frei","Frei","Stangenverschluss"]
["TEST","Frei","Frei","4b","3","Fahrbar","Frei","SPD","Frei"]
["TEST","Frei","Frei","4b","3","Fahrbar","Frei","SPD","Stangenverschluss"]
["TEST","Frei","Frei","4b","3","Fest","Frei","Frei","Frei"]
["TEST","Frei","Frei","4b","3","Fest","Frei","Frei","Stangenverschluss"]
["TEST","Frei","Frei","4b","3","Fest","Frei","SPD","Frei"]
["TEST","Frei","Frei","4b","3","Fest","Frei","SPD","Stangenverschluss"]
["TEST","Frei","Frei","4b","3","Frei","Frei","Frei","Frei"]
["TEST","Frei","Frei","4b","3","Frei","Frei","Frei","Stangenverschluss"]
["TEST","Frei","Frei","4b","3","Frei","Frei","SPD","Frei"]
["TEST","Frei","Frei","4b","3","Frei","Frei","SPD","Stangenverschluss"]
["TEST","Frei","Frei","4b","4","Fahrbar","Frei","Frei","Frei"]
["TEST","Frei","Frei","4b","4","Fahrbar","Frei","Frei","Stangenverschluss"]
["TEST","Frei","Frei","4b","4","Fahrbar","Frei","SPD","Frei"]
["TEST","Frei","Frei","4b","4","Fahrbar","Frei","SPD","Stangenverschluss"]
["TEST","Frei","Frei","4b","4","Fest","Frei","Frei","Frei"]
["TEST","Frei","Frei","4b","4","Fest","Frei","Frei","Stangenverschluss"]
["TEST","Frei","Frei","4b","4","Fest","Frei","SPD","Frei"]
["TEST","Frei","Frei","4b","4","Fest","Frei","SPD","Stangenverschluss"]
["TEST","Frei","Frei","4b","4","Frei","Frei","Frei","Frei"]
["TEST","Frei","Frei","4b","4","Frei","Frei","Frei","Stangenverschluss"]
["TEST","Frei","Frei","4b","4","Frei","Frei","SPD","Frei"]
["TEST","Frei","Frei","4b","4","Frei","Frei","SPD","Stangenverschluss"]
["TEST","Frei","Frei","4b","Frei","Fahrbar","Frei","Frei","Frei"]
["TEST","Frei","Frei","4b","Frei","Fahrbar","Frei","Frei","Stangenverschluss"]
["TEST","Frei","Frei","4b","Frei","Fahrbar","Frei","SPD","Frei"]
["TEST","Frei","Frei","4b","Frei","Fahrbar","Frei","SPD","Stangenverschluss"]
["TEST","Frei","Frei","4b","Frei","Fest","Frei","Frei","Frei"]
["TEST","Frei","Frei","4b","Frei","Fest","Frei","Frei","Stangenverschluss"]
["TEST","Frei","Frei","4b","Frei","Fest","Frei","SPD","Frei"]
["TEST","Frei","Frei","4b","Frei","Fest","Frei","SPD","Stangenverschluss"]
["TEST","Frei","Frei","4b","Frei","Frei","Frei","Frei","Frei"]
["TEST","Frei","Frei","4b","Frei","Frei","Frei","Frei","Stangenverschluss"]
["TEST","Frei","Frei","4b","Frei","Frei","Frei","SPD","Frei"]
["TEST","Frei","Frei","4b","Frei","Frei","Frei","SPD","Stangenverschluss"]
["TEST","Frei","Frei","Frei","3","Fahrbar","Frei","Frei","Frei"]
["TEST","Frei","Frei","Frei","3","Fahrbar","Frei","Frei","Stangenverschluss"]
["TEST","Frei","Frei","Frei","3","Fahrbar","Frei","SPD","Frei"]
["TEST","Frei","Frei","Frei","3","Fahrbar","Frei","SPD","Stangenverschluss"]
["TEST","Frei","Frei","Frei","3","Fest","Frei","Frei","Frei"]
["TEST","Frei","Frei","Frei","3","Fest","Frei","Frei","Stangenverschluss"]
["TEST","Frei","Frei","Frei","3","Fest","Frei","SPD","Frei"]
["TEST","Frei","Frei","Frei","3","Fest","Frei","SPD","Stangenverschluss"]
["TEST","Frei","Frei","Frei","3","Frei","Frei","Frei","Frei"]
["TEST","Frei","Frei","Frei","3","Frei","Frei","Frei","Stangenverschluss"]
["TEST","Frei","Frei","Frei","3","Frei","Frei","SPD","Frei"]
["TEST","Frei","Frei","Frei","3","Frei","Frei","SPD","Stangenverschluss"]
["TEST","Frei","Frei","Frei","4","Fahrbar","Frei","Frei","Frei"]
["TEST","Frei","Frei","Frei","4","Fahrbar","Frei","Frei","Stangenverschluss"]
["TEST","Frei","Frei","Frei","4","Fahrbar","Frei","SPD","Frei"]
["TEST","Frei","Frei","Frei","4","Fahrbar","Frei","SPD","Stangenverschluss"]
["TEST","Frei","Frei","Frei","4","Fest","Frei","Frei","Frei"]
["TEST","Frei","Frei","Frei","4","Fest","Frei","Frei","Stangenverschluss"]
["TEST","Frei","Frei","Frei","4","Fest","Frei","SPD","Frei"]
["TEST","Frei","Frei","Frei","4","Fest","Frei","SPD","Stangenverschluss"]
["TEST","Frei","Frei","Frei","4","Frei","Frei","Frei","Frei"]
["TEST","Frei","Frei","Frei","4","Frei","Frei","Frei","Stangenverschluss"]
["TEST","Frei","Frei","Frei","4","Frei","Frei","SPD","Frei"]
["TEST","Frei","Frei","Frei","4","Frei","Frei","SPD","Stangenverschluss"]
["TEST","Frei","Frei","Frei","Frei","Fahrbar","Frei","Frei","Frei"]
["TEST","Frei","Frei","Frei","Frei","Fahrbar","Frei","Frei","Stangenverschluss"]
["TEST","Frei","Frei","Frei","Frei","Fahrbar","Frei","SPD","Frei"]
["TEST","Frei","Frei","Frei","Frei","Fahrbar","Frei","SPD","Stangenverschluss"]
["TEST","Frei","Frei","Frei","Frei","Fest","Frei","Frei","Frei"]
["TEST","Frei","Frei","Frei","Frei","Fest","Frei","Frei","Stangenverschluss"]
["TEST","Frei","Frei","Frei","Frei","Fest","Frei","SPD","Frei"]
["TEST","Frei","Frei","Frei","Frei","Fest","Frei","SPD","Stangenverschluss"]
["TEST","Frei","Frei","Frei","Frei","Frei","Frei","Frei","Frei"]
["TEST","Frei","Frei","Frei","Frei","Frei","Frei","Frei","Stangenverschluss"]
["TEST","Frei","Frei","Frei","Frei","Frei","Frei","SPD","Frei"]
["TEST","Frei","Frei","Frei","Frei","Frei","Frei","SPD","Stangenverschluss"]
["TEST","Frei","Frei","2","3","Fahrbar","Frei","Frei","Frei"]
["TEST","Frei","Frei","2","3","Fahrbar","Frei","Frei","Stangenverschluss"]
["TEST","Frei","Frei","2","3","Fahrbar","Frei","SPD","Frei"]
["TEST","Frei","Frei","2","3","Fahrbar","Frei","SPD","Stangenverschluss"]
["TEST","Frei","Frei","2","3","Fest","Frei","Frei","Frei"]
["TEST","Frei","Frei","2","3","Fest","Frei","Frei","Stangenverschluss"]
["TEST","Frei","Frei","2","3","Fest","Frei","SPD","Frei"]
["TEST","Frei","Frei","2","3","Fest","Frei","SPD","Stangenverschluss"]
["TEST","Frei","Frei","2","3","Frei","Frei","Frei","Frei"]
["TEST","Frei","Frei","2","3","Frei","Frei","Frei","Stangenverschluss"]
["TEST","Frei","Frei","2","3","Frei","Frei","SPD","Frei"]
["TEST","Frei","Frei","2","3","Frei","Frei","SPD","Stangenverschluss"]
["TEST","Frei","Frei","2","4","Fahrbar","Frei","Frei","Frei"]
["TEST","Frei","Frei","2","4","Fahrbar","Frei","Frei","Stangenverschluss"]
["TEST","Frei","Frei","2","4","Fahrbar","Frei","SPD","Frei"]
["TEST","Frei","Frei","2","4","Fahrbar","Frei","SPD","Stangenverschluss"]
["TEST","Frei","Frei","2","4","Fest","Frei","Frei","Frei"]
["TEST","Frei","Frei","2","4","Fest","Frei","Frei","Stangenverschluss"]
["TEST","Frei","Frei","2","4","Fest","Frei","SPD","Frei"]
["TEST","Frei","Frei","2","4","Fest","Frei","SPD","Stangenverschluss"]
["TEST","Frei","Frei","2","4","Frei","Frei","Frei","Frei"]
["TEST","Frei","Frei","2","4","Frei","Frei","Frei","Stangenverschluss"]
["TEST","Frei","Frei","2","4","Frei","Frei","SPD","Frei"]
["TEST","Frei","Frei","2","4","Frei","Frei","SPD","Stangenverschluss"]
["TEST","Frei","Frei","2","Frei","Fahrbar","Frei","Frei","Frei"]
["TEST","Frei","Frei","2","Frei","Fahrbar","Frei","Frei","Stangenverschluss"]
["TEST","Frei","Frei","2","Frei","Fahrbar","Frei","SPD","Frei"]
["TEST","Frei","Frei","2","Frei","Fahrbar","Frei","SPD","Stangenverschluss"]
["TEST","Frei","Frei","2","Frei","Fest","Frei","Frei","Frei"]
["TEST","Frei","Frei","2","Frei","Fest","Frei","Frei","Stangenverschluss"]
["TEST","Frei","Frei","2","Frei","Fest","Frei","SPD","Frei"]
["TEST","Frei","Frei","2","Frei","Fest","Frei","SPD","Stangenverschluss"]
["TEST","Frei","Frei","2","Frei","Frei","Frei","Frei","Frei"]
["TEST","Frei","Frei","2","Frei","Frei","Frei","Frei","Stangenverschluss"]
["TEST","Frei","Frei","2","Frei","Frei","Frei","SPD","Frei"]
["TEST","Frei","Frei","2","Frei","Frei","Frei","SPD","Stangenverschluss"]
["TEST","Frei","Typ 1","4a","3","Fahrbar","Frei","Frei","Frei"]
["TEST","Frei","Typ 1","4a","3","Fahrbar","Frei","Frei","Stangenverschluss"]
["TEST","Frei","Typ 1","4a","3","Fahrbar","Frei","SPD","Frei"]
["TEST","Frei","Typ 1","4a","3","Fahrbar","Frei","SPD","Stangenverschluss"]
["TEST","Frei","Typ 1","4a","3","Fest","Frei","Frei","Frei"]
["TEST","Frei","Typ 1","4a","3","Fest","Frei","Frei","Stangenverschluss"]
["TEST","Frei","Typ 1","4a","3","Fest","Frei","SPD","Frei"]
["TEST","Frei","Typ 1","4a","3","Fest","Frei","SPD","Stangenverschluss"]
["TEST","Frei","Typ 1","4a","3","Frei","Frei","Frei","Frei"]
["TEST","Frei","Typ 1","4a","3","Frei","Frei","Frei","Stangenverschluss"]
["TEST","Frei","Typ 1","4a","3","Frei","Frei","SPD","Frei"]
["TEST","Frei","Typ 1","4a","3","Frei","Frei","SPD","Stangenverschluss"]
["TEST","Frei","Typ 1","4a","4","Fahrbar","Frei","Frei","Frei"]
["TEST","Frei","Typ 1","4a","4","Fahrbar","Frei","Frei","Stangenverschluss"]
["TEST","Frei","Typ 1","4a","4","Fahrbar","Frei","SPD","Frei"]
["TEST","Frei","Typ 1","4a","4","Fahrbar","Frei","SPD","Stangenverschluss"]
["TEST","Frei","Typ 1","4a","4","Fest","Frei","Frei","Frei"]
["TEST","Frei","Typ 1","4a","4","Fest","Frei","Frei","Stangenverschluss"]
["TEST","Frei","Typ 1","4a","4","Fest","Frei","SPD","Frei"]
["TEST","Frei","Typ 1","4a","4","Fest","Frei","SPD","Stangenverschluss"]
["TEST","Frei","Typ 1","4a","4","Frei","Frei","Frei","Frei"]
["TEST","Frei","Typ 1","4a","4","Frei","Frei","Frei","Stangenverschluss"]
["TEST","Frei","Typ 1","4a","4","Frei","Frei","SPD","Frei"]
["TEST","Frei","Typ 1","4a","4","Frei","Frei","SPD","Stangenverschluss"]
["TEST","Frei","Typ 1","4a","Frei","Fahrbar","Frei","Frei","Frei"]
["TEST","Frei","Typ 1","4a","Frei","Fahrbar","Frei","Frei","Stangenverschluss"]
["TEST","Frei","Typ 1","4a","Frei","Fahrbar","Frei","SPD","Frei"]
["TEST","Frei","Typ 1","4a","Frei","Fahrbar","Frei","SPD","Stangenverschluss"]
["TEST","Frei","Typ 1","4a","Frei","Fest","Frei","Frei","Frei"]
["TEST","Frei","Typ 1","4a","Frei","Fest","Frei","Frei","Stangenverschluss"]
["TEST","Frei","Typ 1","4a","Frei","Fest","Frei","SPD","Frei"]
["TEST","Frei","Typ 1","4a","Frei","Fest","Frei","SPD","Stangenverschluss"]
["TEST","Frei","Typ 1","4a","Frei","Frei","Frei","Frei","Frei"]
["TEST","Frei","Typ 1","4a","Frei","Frei","Frei","Frei","Stangenverschluss"]
["TEST","Frei","Typ 1","4a","Frei","Frei","Frei","SPD","Frei"]
["TEST","Frei","Typ 1","4a","Frei","Frei","Frei","SPD","Stangenverschluss"]
["TEST","Frei","Typ 1","4b","3","Fahrbar","Frei","Frei","Frei"]
["TEST","Frei","Typ 1","4b","3","Fahrbar","Frei","Frei","Stangenverschluss"]
["TEST","Frei","Typ 1","4b","3","Fahrbar","Frei","SPD","Frei"]
["TEST","Frei","Typ 1","4b","3","Fahrbar","Frei","SPD","Stangenverschluss"]
["TEST","Frei","Typ 1","4b","3","Fest","Frei","Frei","Frei"]
["TEST","Frei","Typ 1","4b","3","Fest","Frei","Frei","Stangenverschluss"]
["TEST","Frei","Typ 1","4b","3","Fest","Frei","SPD","Frei"]
["TEST","Frei","Typ 1","4b","3","Fest","Frei","SPD","Stangenverschluss"]
["TEST","Frei","Typ 1","4b","3","Frei","Frei","Frei","Frei"]
["TEST","Frei","Typ 1","4b","3","Frei","Frei","Frei","Stangenverschluss"]
["TEST","Frei","Typ 1","4b","3","Frei","Frei","SPD","Frei"]
["TEST","Frei","Typ 1","4b","3","Frei","Frei","SPD","Stangenverschluss"]
["TEST","Frei","Typ 1","4b","4","Fahrbar","Frei","Frei","Frei"]
["TEST","Frei","Typ 1","4b","4","Fahrbar","Frei","Frei","Stangenverschluss"]
["TEST","Frei","Typ 1","4b","4","Fahrbar","Frei","SPD","Frei"]
["TEST","Frei","Typ 1","4b","4","Fahrbar","Frei","SPD","Stangenverschluss"]
["TEST","Frei","Typ 1","4b","4","Fest","Frei","Frei","Frei"]
["TEST","Frei","Typ 1","4b","4","Fest","Frei","Frei","Stangenverschluss"]
["TEST","Frei","Typ 1","4b","4","Fest","Frei","SPD","Frei"]
["TEST","Frei","Typ 1","4b","4","Fest","Frei","SPD","Stangenverschluss"]
["TEST","Frei","Typ 1","4b","4","Frei","Frei","Frei","Frei"]
["TEST","Frei","Typ 1","4b","4","Frei","Frei","Frei","Stangenverschluss"]
["TEST","Frei","Typ 1","4b","4","Frei","Frei","SPD","Frei"]
["TEST","Frei","Typ 1","4b","4","Frei","Frei","SPD","Stangenverschluss"]
["TEST","Frei","Typ 1","4b","Frei","Fahrbar","Frei","Frei","Frei"]
["TEST","Frei","Typ 1","4b","Frei","Fahrbar","Frei","Frei","Stangenverschluss"]
["TEST","Frei","Typ 1","4b","Frei","Fahrbar","Frei","SPD","Frei"]
["TEST","Frei","Typ 1","4b","Frei","Fahrbar","Frei","SPD","Stangenverschluss"]
["TEST","Frei","Typ 1","4b","Frei","Fest","Frei","Frei","Frei"]
["TEST","Frei","Typ 1","4b","Frei","Fest","Frei","Frei","Stangenverschluss"]
["TEST","Frei","Typ 1","4b","Frei","Fest","Frei","SPD","Frei"]
["TEST","Frei","Typ 1","4b","Frei","Fest","Frei","SPD","Stangenverschluss"]
["TEST","Frei","Typ 1","4b","Frei","Frei","Frei","Frei","Frei"]
["TEST","Frei","Typ 1","4b","Frei","Frei","Frei","Frei","Stangenverschluss"]
["TEST","Frei","Typ 1","4b","Frei","Frei","Frei","SPD","Frei"]
["TEST","Frei","Typ 1","4b","Frei","Frei","Frei","SPD","Stangenverschluss"]
["TEST","Frei","Typ 1","Frei","3","Fahrbar","Frei","Frei","Frei"]
["TEST","Frei","Typ 1","Frei","3","Fahrbar","Frei","Frei","Stangenverschluss"]
["TEST","Frei","Typ 1","Frei","3","Fahrbar","Frei","SPD","Frei"]
["TEST","Frei","Typ 1","Frei","3","Fahrbar","Frei","SPD","Stangenverschluss"]
["TEST","Frei","Typ 1","Frei","3","Fest","Frei","Frei","Frei"]
["TEST","Frei","Typ 1","Frei","3","Fest","Frei","Frei","Stangenverschluss"]
["TEST","Frei","Typ 1","Frei","3","Fest","Frei","SPD","Frei"]
["TEST","Frei","Typ 1","Frei","3","Fest","Frei","SPD","Stangenverschluss"]
["TEST","Frei","Typ 1","Frei","3","Frei","Frei","Frei","Frei"]
["TEST","Frei","Typ 1","Frei","3","Frei","Frei","Frei","Stangenverschluss"]
["TEST","Frei","Typ 1","Frei","3","Frei","Frei","SPD","Frei"]
["TEST","Frei","Typ 1","Frei","3","Frei","Frei","SPD","Stangenverschluss"]
["TEST","Frei","Typ 1","Frei","4","Fahrbar","Frei","Frei","Frei"]
["TEST","Frei","Typ 1","Frei","4","Fahrbar","Frei","Frei","Stangenverschluss"]
["TEST","Frei","Typ 1","Frei","4","Fahrbar","Frei","SPD","Frei"]
["TEST","Frei","Typ 1","Frei","4","Fahrbar","Frei","SPD","Stangenverschluss"]
["TEST","Frei","Typ 1","Frei","4","Fest","Frei","Frei","Frei"]
["TEST","Frei","Typ 1","Frei","4","Fest","Frei","Frei","Stangenverschluss"]
["TEST","Frei","Typ 1","Frei","4","Fest","Frei","SPD","Frei"]
["TEST","Frei","Typ 1","Frei","4","Fest","Frei","SPD","Stangenverschluss"]
["TEST","Frei","Typ 1","Frei","4","Frei","Frei","Frei","Frei"]
["TEST","Frei","Typ 1","Frei","4","Frei","Frei","Frei","Stangenverschluss"]
["TEST","Frei","Typ 1","Frei","4","Frei","Frei","SPD","Frei"]
["TEST","Frei","Typ 1","Frei","4","Frei","Frei","SPD","Stangenverschluss"]
["TEST","Frei","Typ 1","Frei","Frei","Fahrbar","Frei","Frei","Frei"]
["TEST","Frei","Typ 1","Frei","Frei","Fahrbar","Frei","Frei","Stangenverschluss"]
["TEST","Frei","Typ 1","Frei","Frei","Fahrbar","Frei","SPD","Frei"]
["TEST","Frei","Typ 1","Frei","Frei","Fahrbar","Frei","SPD","Stangenverschluss"]
["TEST","Frei","Typ 1","Frei","Frei","Fest","Frei","Frei","Frei"]
["TEST","Frei","Typ 1","Frei","Frei","Fest","Frei","Frei","Stangenverschluss"]
["TEST","Frei","Typ 1","Frei","Frei","Fest","Frei","SPD","Frei"]
["TEST","Frei","Typ 1","Frei","Frei","Fest","Frei","SPD","Stangenverschluss"]
["TEST","Frei","Typ 1","Frei","Frei","Frei","Frei","Frei","Frei"]
["TEST","Frei","Typ 1","Frei","Frei","Frei","Frei","Frei","Stangenverschluss"]
["TEST","Frei","Typ 1","Frei","Frei","Frei","Frei","SPD","Frei"]
["TEST","Frei","Typ 1","Frei","Frei","Frei","Frei","SPD","Stangenverschluss"]
["TEST","Frei","Typ 1","2","3","Fahrbar","Frei","Frei","Frei"]
["TEST","Frei","Typ 1","2","3","Fahrbar","Frei","Frei","Stangenverschluss"]
["TEST","Frei","Typ 1","2","3","Fahrbar","Frei","SPD","Frei"]
["TEST","Frei","Typ 1","2","3","Fahrbar","Frei","SPD","Stangenverschluss"]
["TEST","Frei","Typ 1","2","3","Fest","Frei","Frei","Frei"]
["TEST","Frei","Typ 1","2","3","Fest","Frei","Frei","Stangenverschluss"]
["TEST","Frei","Typ 1","2","3","Fest","Frei","SPD","Frei"]
["TEST","Frei","Typ 1","2","3","Fest","Frei","SPD","Stangenverschluss"]
["TEST","Frei","Typ 1","2","3","Frei","Frei","Frei","Frei"]
["TEST","Frei","Typ 1","2","3","Frei","Frei","Frei","Stangenverschluss"]
["TEST","Frei","Typ 1","2","3","Frei","Frei","SPD","Frei"]
["TEST","Frei","Typ 1","2","3","Frei","Frei","SPD","Stangenverschluss"]
["TEST","Frei","Typ 1","2","4","Fahrbar","Frei","Frei","Frei"]
["TEST","Frei","Typ 1","2","4","Fahrbar","Frei","Frei","Stangenverschluss"]
["TEST","Frei","Typ 1","2","4","Fahrbar","Frei","SPD","Frei"]
["TEST","Frei","Typ 1","2","4","Fahrbar","Frei","SPD","Stangenverschluss"]
["TEST","Frei","Typ 1","2","4","Fest","Frei","Frei","Frei"]
["TEST","Frei","Typ 1","2","4","Fest","Frei","Frei","Stangenverschluss"]
["TEST","Frei","Typ 1","2","4","Fest","Frei","SPD","Frei"]
["TEST","Frei","Typ 1","2","4","Fest","Frei","SPD","Stangenverschluss"]
["TEST","Frei","Typ 1","2","4","Frei","Frei","Frei","Frei"]
["TEST","Frei","Typ 1","2","4","Frei","Frei","Frei","Stangenverschluss"]
["TEST","Frei","Typ 1","2","4","Frei","Frei","SPD","Frei"]
["TEST","Frei","Typ 1","2","4","Frei","Frei","SPD","Stangenverschluss"]
["TEST","Frei","Typ 1","2","Frei","Fahrbar","Frei","Frei","Frei"]
["TEST","Frei","Typ 1","2","Frei","Fahrbar","Frei","Frei","Stangenverschluss"]
["TEST","Frei","Typ 1","2","Frei","Fahrbar","Frei","SPD","Frei"]
["TEST","Frei","Typ 1","2","Frei","Fahrbar","Frei","SPD","Stangenverschluss"]
["TEST","Frei","Typ 1","2","Frei","Fest","Frei","Frei","Frei"]
["TEST","Frei","Typ 1","2","Frei","Fest","Frei","Frei","Stangenverschluss"]
["TEST","Frei","Typ 1","2","Frei","Fest","Frei","SPD","Frei"]
["TEST","Frei","Typ 1","2","Frei","Fest","Frei","SPD","Stangenverschluss"]
["TEST","Frei","Typ 1","2","Frei","Frei","Frei","Frei","Frei"]
["TEST","Frei","Typ 1","2","Frei","Frei","Frei","Frei","Stangenverschluss"]
["TEST","Frei","Typ 1","2","Frei","Frei","Frei","SPD","Frei"]
["TEST","Frei","Typ 1","2","Frei","Frei","Frei","SPD","Stangenverschluss"]
["TEST","Frei","Typ 3","4a","3","Fahrbar","Frei","Frei","Frei"]
["TEST","Frei","Typ 3","4a","3","Fahrbar","Frei","Frei","Stangenverschluss"]
["TEST","Frei","Typ 3","4a","3","Fahrbar","Frei","SPD","Frei"]
["TEST","Frei","Typ 3","4a","3","Fahrbar","Frei","SPD","Stangenverschluss"]
["TEST","Frei","Typ 3","4a","3","Fest","Frei","Frei","Frei"]
["TEST","Frei","Typ 3","4a","3","Fest","Frei","Frei","Stangenverschluss"]
["TEST","Frei","Typ 3","4a","3","Fest","Frei","SPD","Frei"]
["TEST","Frei","Typ 3","4a","3","Fest","Frei","SPD","Stangenverschluss"]
["TEST","Frei","Typ 3","4a","3","Frei","Frei","Frei","Frei"]
["TEST","Frei","Typ 3","4a","3","Frei","Frei","Frei","Stangenverschluss"]
["TEST","Frei","Typ 3","4a","3","Frei","Frei","SPD","Frei"]
["TEST","Frei","Typ 3","4a","3","Frei","Frei","SPD","Stangenverschluss"]
["TEST","Frei","Typ 3","4a","4","Fahrbar","Frei","Frei","Frei"]
["TEST","Frei","Typ 3","4a","4","Fahrbar","Frei","Frei","Stangenverschluss"]
["TEST","Frei","Typ 3","4a","4","Fahrbar","Frei","SPD","Frei"]
["TEST","Frei","Typ 3","4a","4","Fahrbar","Frei","SPD","Stangenverschluss"]
["TEST","Frei","Typ 3","4a","4","Fest","Frei","Frei","Frei"]
["TEST","Frei","Typ 3","4a","4","Fest","Frei","Frei","Stangenverschluss"]
["TEST","Frei","Typ 3","4a","4","Fest","Frei","SPD","Frei"]
["TEST","Frei","Typ 3","4a","4","Fest","Frei","SPD","Stangenverschluss"]
["TEST","Frei","Typ 3","4a","4","Frei","Frei","Frei","Frei"]
["TEST","Frei","Typ 3","4a","4","Frei","Frei","Frei","Stangenverschluss"]
["TEST","Frei","Typ 3","4a","4","Frei","Frei","SPD","Frei"]
["TEST","Frei","Typ 3","4a","4","Frei","Frei","SPD","Stangenverschluss"]
["TEST","Frei","Typ 3","4a","Frei","Fahrbar","Frei","Frei","Frei"]
["TEST","Frei","Typ 3","4a","Frei","Fahrbar","Frei","Frei","Stangenverschluss"]
["TEST","Frei","Typ 3","4a","Frei","Fahrbar","Frei","SPD","Frei"]
["TEST","Frei","Typ 3","4a","Frei","Fahrbar","Frei","SPD","Stangenverschluss"]
["TEST","Frei","Typ 3","4a","Frei","Fest","Frei","Frei","Frei"]
["TEST","Frei","Typ 3","4a","Frei","Fest","Frei","Frei","Stangenverschluss"]
["TEST","Frei","Typ 3","4a","Frei","Fest","Frei","SPD","Frei"]
["TEST","Frei","Typ 3","4a","Frei","Fest","Frei","SPD","Stangenverschluss"]
["TEST","Frei","Typ 3","4a","Frei","Frei","Frei","Frei","Frei"]
["TEST","Frei","Typ 3","4a","Frei","Frei","Frei","Frei","Stangenverschluss"]
["TEST","Frei","Typ 3","4a","Frei","Frei","Frei","SPD","Frei"]
["TEST","Frei","Typ 3","4a","Frei","Frei","Frei","SPD","Stangenverschluss"]
["TEST","Frei","Typ 3","4b","3","Fahrbar","Frei","Frei","Frei"]
["TEST","Frei","Typ 3","4b","3","Fahrbar","Frei","Frei","Stangenverschluss"]
["TEST","Frei","Typ 3","4b","3","Fahrbar","Frei","SPD","Frei"]
["TEST","Frei","Typ 3","4b","3","Fahrbar","Frei","SPD","Stangenverschluss"]
["TEST","Frei","Typ 3","4b","3","Fest","Frei","Frei","Frei"]
["TEST","Frei","Typ 3","4b","3","Fest","Frei","Frei","Stangenverschluss"]
["TEST","Frei","Typ 3","4b","3","Fest","Frei","SPD","Frei"]
["TEST","Frei","Typ 3","4b","3","Fest","Frei","SPD","Stangenverschluss"]
["TEST","Frei","Typ 3","4b","3","Frei","Frei","Frei","Frei"]
["TEST","Frei","Typ 3","4b","3","Frei","Frei","Frei","Stangenverschluss"]
["TEST","Frei","Typ 3","4b","3","Frei","Frei","SPD","Frei"]
["TEST","Frei","Typ 3","4b","3","Frei","Frei","SPD","Stangenverschluss"]
["TEST","Frei","Typ 3","4b","4","Fahrbar","Frei","Frei","Frei"]
["TEST","Frei","Typ 3","4b","4","Fahrbar","Frei","Frei","Stangenverschluss"]
["TEST","Frei","Typ 3","4b","4","Fahrbar","Frei","SPD","Frei"]
["TEST","Frei","Typ 3","4b","4","Fahrbar","Frei","SPD","Stangenverschluss"]
["TEST","Frei","Typ 3","4b","4","Fest","Frei","Frei","Frei"]
["TEST","Frei","Typ 3","4b","4","Fest","Frei","Frei","Stangenverschluss"]
["TEST","Frei","Typ 3","4b","4","Fest","Frei","SPD","Frei"]
["TEST","Frei","Typ 3","4b","4","Fest","Frei","SPD","Stangenverschluss"]
["TEST","Frei","Typ 3","4b","4","Frei","Frei","Frei","Frei"]
["TEST","Frei","Typ 3","4b","4","Frei","Frei","Frei","Stangenverschluss"]
["TEST","Frei","Typ 3","4b","4","Frei","Frei","SPD","Frei"]
["TEST","Frei","Typ 3","4b","4","Frei","Frei","SPD","Stangenverschluss"]
["TEST","Frei","Typ 3","4b","Frei","Fahrbar","Frei","Frei","Frei"]
["TEST","Frei","Typ 3","4b","Frei","Fahrbar","Frei","Frei","Stangenverschluss"]
["TEST","Frei","Typ 3","4b","Frei","Fahrbar","Frei","SPD","Frei"]
["TEST","Frei","Typ 3","4b","Frei","Fahrbar","Frei","SPD","Stangenverschluss"]
["TEST","Frei","Typ 3","4b","Frei","Fest","Frei","Frei","Frei"]
["TEST","Frei","Typ 3","4b","Frei","Fest","Frei","Frei","Stangenverschluss"]
["TEST","Frei","Typ 3","4b","Frei","Fest","Frei","SPD","Frei"]
["TEST","Frei","Typ 3","4b","Frei","Fest","Frei","SPD","Stangenverschluss"]
["TEST","Frei","Typ 3","4b","Frei","Frei","Frei","Frei","Frei"]
["TEST","Frei","Typ 3","4b","Frei","Frei","Frei","Frei","Stangenverschluss"]
["TEST","Frei","Typ 3","4b","Frei","Frei","Frei","SPD","Frei"]
["TEST","Frei","Typ 3","4b","Frei","Frei","Frei","SPD","Stangenverschluss"]
["TEST","Frei","Typ 3","Frei","3","Fahrbar","Frei","Frei","Frei"]
["TEST","Frei","Typ 3","Frei","3","Fahrbar","Frei","Frei","Stangenverschluss"]
["TEST","Frei","Typ 3","Frei","3","Fahrbar","Frei","SPD","Frei"]
["TEST","Frei","Typ 3","Frei","3","Fahrbar","Frei","SPD","Stangenverschluss"]
["TEST","Frei","Typ 3","Frei","3","Fest","Frei","Frei","Frei"]
["TEST","Frei","Typ 3","Frei","3","Fest","Frei","Frei","Stangenverschluss"]
["TEST","Frei","Typ 3","Frei","3","Fest","Frei","SPD","Frei"]
["TEST","Frei","Typ 3","Frei","3","Fest","Frei","SPD","Stangenverschluss"]
["TEST","Frei","Typ 3","Frei","3","Frei","Frei","Frei","Frei"]
["TEST","Frei","Typ 3","Frei","3","Frei","Frei","Frei","Stangenverschluss"]
["TEST","Frei","Typ 3","Frei","3","Frei","Frei","SPD","Frei"]
["TEST","Frei","Typ 3","Frei","3","Frei","Frei","SPD","Stangenverschluss"]
["TEST","Frei","Typ 3","Frei","4","Fahrbar","Frei","Frei","Frei"]
["TEST","Frei","Typ 3","Frei","4","Fahrbar","Frei","Frei","Stangenverschluss"]
["TEST","Frei","Typ 3","Frei","4","Fahrbar","Frei","SPD","Frei"]
["TEST","Frei","Typ 3","Frei","4","Fahrbar","Frei","SPD","Stangenverschluss"]
["TEST","Frei","Typ 3","Frei","4","Fest","Frei","Frei","Frei"]
["TEST","Frei","Typ 3","Frei","4","Fest","Frei","Frei","Stangenverschluss"]
["TEST","Frei","Typ 3","Frei","4","Fest","Frei","SPD","Frei"]
["TEST","Frei","Typ 3","Frei","4","Fest","Frei","SPD","Stangenverschluss"]
["TEST","Frei","Typ 3","Frei","4","Frei","Frei","Frei","Frei"]
["TEST","Frei","Typ 3","Frei","4","Frei","Frei","Frei","Stangenverschluss"]
["TEST","Frei","Typ 3","Frei","4","Frei","Frei","SPD","Frei"]
["TEST","Frei","Typ 3","Frei","4","Frei","Frei","SPD","Stangenverschluss"]
["TEST","Frei","Typ 3","Frei","Frei","Fahrbar","Frei","Frei","Frei"]
["TEST","Frei","Typ 3","Frei","Frei","Fahrbar","Frei","Frei","Stangenverschluss"]
["TEST","Frei","Typ 3","Frei","Frei","Fahrbar","Frei","SPD","Frei"]
["TEST","Frei","Typ 3","Frei","Frei","Fahrbar","Frei","SPD","Stangenverschluss"]
["TEST","Frei","Typ 3","Frei","Frei","Fest","Frei","Frei","Frei"]
["TEST","Frei","Typ 3","Frei","Frei","Fest","Frei","Frei","Stangenverschluss"]
["TEST","Frei","Typ 3","Frei","Frei","Fest","Frei","SPD","Frei"]
["TEST","Frei","Typ 3","Frei","Frei","Fest","Frei","SPD","Stangenverschluss"]
["TEST","Frei","Typ 3","Frei","Frei","Frei","Frei","Frei","Frei"]
["TEST","Frei","Typ 3","Frei","Frei","Frei","Frei","Frei","Stangenverschluss"]
["TEST","Frei","Typ 3","Frei","Frei","Frei","Frei","SPD","Frei"]
["TEST","Frei","Typ 3","Frei","Frei","Frei","Frei","SPD","Stangenverschluss"]
["TEST","Frei","Typ 3","2","3","Fahrbar","Frei","Frei","Frei"]
["TEST","Frei","Typ 3","2","3","Fahrbar","Frei","Frei","Stangenverschluss"]
["TEST","Frei","Typ 3","2","3","Fahrbar","Frei","SPD","Frei"]
["TEST","Frei","Typ 3","2","3","Fahrbar","Frei","SPD","Stangenverschluss"]
["TEST","Frei","Typ 3","2","3","Fest","Frei","Frei","Frei"]
["TEST","Frei","Typ 3","2","3","Fest","Frei","Frei","Stangenverschluss"]
["TEST","Frei","Typ 3","2","3","Fest","Frei","SPD","Frei"]
["TEST","Frei","Typ 3","2","3","Fest","Frei","SPD","Stangenverschluss"]
["TEST","Frei","Typ 3","2","3","Frei","Frei","Frei","Frei"]
["TEST","Frei","Typ 3","2","3","Frei","Frei","Frei","Stangenverschluss"]
["TEST","Frei","Typ 3","2","3","Frei","Frei","SPD","Frei"]
["TEST","Frei","Typ 3","2","3","Frei","Frei","SPD","Stangenverschluss"]
["TEST","Frei","Typ 3","2","4","Fahrbar","Frei","Frei","Frei"]
["TEST","Frei","Typ 3","2","4","Fahrbar","Frei","Frei","Stangenverschluss"]
["TEST","Frei","Typ 3","2","4","Fahrbar","Frei","SPD","Frei"]
["TEST","Frei","Typ 3","2","4","Fahrbar","Frei","SPD","Stangenverschluss"]
["TEST","Frei","Typ 3","2","4","Fest","Frei","Frei","Frei"]
["TEST","Frei","Typ 3","2","4","Fest","Frei","Frei","Stangenverschluss"]
["TEST","Frei","Typ 3","2","4","Fest","Frei","SPD","Frei"]
["TEST","Frei","Typ 3","2","4","Fest","Frei","SPD","Stangenverschluss"]
["TEST","Frei","Typ 3","2","4","Frei","Frei","Frei","Frei"]
["TEST","Frei","Typ 3","2","4","Frei","Frei","Frei","Stangenverschluss"]
["TEST","Frei","Typ 3","2","4","Frei","Frei","SPD","Frei"]
["TEST","Frei","Typ 3","2","4","Frei","Frei","SPD","Stangenverschluss"]
["TEST","Frei","Typ 3","2","Frei","Fahrbar","Frei","Frei","Frei"]
["TEST","Frei","Typ 3","2","Frei","Fahrbar","Frei","Frei","Stangenverschluss"]
["TEST","Frei","Typ 3","2","Frei","Fahrbar","Frei","SPD","Frei"]
["TEST","Frei","Typ 3","2","Frei","Fahrbar","Frei","SPD","Stangenverschluss"]
["TEST","Frei","Typ 3","2","Frei","Fest","Frei","Frei","Frei"]
["TEST","Frei","Typ 3","2","Frei","Fest","Frei","Frei","Stangenverschluss"]
["TEST","Frei","Typ 3","2","Frei","Fest","Frei","SPD","Frei"]
["TEST","Frei","Typ 3","2","Frei","Fest","Frei","SPD","Stangenverschluss"]
["TEST","Frei","Typ 3","2","Frei","Frei","Frei","Frei","Frei"]
["TEST","Frei","Typ 3","2","Frei","Frei","Frei","Frei","Stangenverschluss"]
["TEST","Frei","Typ 3","2","Frei","Frei","Frei","SPD","Frei"]
["TEST","Frei","Typ 3","2","Frei","Frei","Frei","SPD","Stangenverschluss"]
["TEST","Frei","Typ 4","4a","3","Fahrbar","Frei","Frei","Frei"]
["TEST","Frei","Typ 4","4a","3","Fahrbar","Frei","Frei","Stangenverschluss"]
["TEST","Frei","Typ 4","4a","3","Fahrbar","Frei","SPD","Frei"]
["TEST","Frei","Typ 4","4a","3","Fahrbar","Frei","SPD","Stangenverschluss"]
["TEST","Frei","Typ 4","4a","3","Fest","Frei","Frei","Frei"]
["TEST","Frei","Typ 4","4a","3","Fest","Frei","Frei","Stangenverschluss"]
["TEST","Frei","Typ 4","4a","3","Fest","Frei","SPD","Frei"]
["TEST","Frei","Typ 4","4a","3","Fest","Frei","SPD","Stangenverschluss"]
["TEST","Frei","Typ 4","4a","3","Frei","Frei","Frei","Frei"]
["TEST","Frei","Typ 4","4a","3","Frei","Frei","Frei","Stangenverschluss"]
["TEST","Frei","Typ 4","4a","3","Frei","Frei","SPD","Frei"]
["TEST","Frei","Typ 4","4a","3","Frei","Frei","SPD","Stangenverschluss"]
["TEST","Frei","Typ 4","4a","4","Fahrbar","Frei","Frei","Frei"]
["TEST","Frei","Typ 4","4a","4","Fahrbar","Frei","Frei","Stangenverschluss"]
["TEST","Frei","Typ 4","4a","4","Fahrbar","Frei","SPD","Frei"]
["TEST","Frei","Typ 4","4a","4","Fahrbar","Frei","SPD","Stangenverschluss"]
["TEST","Frei","Typ 4","4a","4","Fest","Frei","Frei","Frei"]
["TEST","Frei","Typ 4","4a","4","Fest","Frei","Frei","Stangenverschluss"]
["TEST","Frei","Typ 4","4a","4","Fest","Frei","SPD","Frei"]
["TEST","Frei","Typ 4","4a","4","Fest","Frei","SPD","Stangenverschluss"]
["TEST","Frei","Typ 4","4a","4","Frei","Frei","Frei","Frei"]
["TEST","Frei","Typ 4","4a","4","Frei","Frei","Frei","Stangenverschluss"]
["TEST","Frei","Typ 4","4a","4","Frei","Frei","SPD","Frei"]
["TEST","Frei","Typ 4","4a","4","Frei","Frei","SPD","Stangenverschluss"]
["TEST","Frei","Typ 4","4a","Frei","Fahrbar","Frei","Frei","Frei"]
["TEST","Frei","Typ 4","4a","Frei","Fahrbar","Frei","Frei","Stangenverschluss"]
["TEST","Frei","Typ 4","4a","Frei","Fahrbar","Frei","SPD","Frei"]
["TEST","Frei","Typ 4","4a","Frei","Fahrbar","Frei","SPD","Stangenverschluss"]
["TEST","Frei","Typ 4","4a","Frei","Fest","Frei","Frei","Frei"]
["TEST","Frei","Typ 4","4a","Frei","Fest","Frei","Frei","Stangenverschluss"]
["TEST","Frei","Typ 4","4a","Frei","Fest","Frei","SPD","Frei"]
["TEST","Frei","Typ 4","4a","Frei","Fest","Frei","SPD","Stangenverschluss"]
["TEST","Frei","Typ 4","4a","Frei","Frei","Frei","Frei","Frei"]
["TEST","Frei","Typ 4","4a","Frei","Frei","Frei","Frei","Stangenverschluss"]
["TEST","Frei","Typ 4","4a","Frei","Frei","Frei","SPD","Frei"]
["TEST","Frei","Typ 4","4a","Frei","Frei","Frei","SPD","Stangenverschluss"]
["TEST","Frei","Typ 4","4b","3","Fahrbar","Frei","Frei","Frei"]
["TEST","Frei","Typ 4","4b","3","Fahrbar","Frei","Frei","Stangenverschluss"]
["TEST","Frei","Typ 4","4b","3","Fahrbar","Frei","SPD","Frei"]
["TEST","Frei","Typ 4","4b","3","Fahrbar","Frei","SPD","Stangenverschluss"]
["TEST","Frei","Typ 4","4b","3","Fest","Frei","Frei","Frei"]
["TEST","Frei","Typ 4","4b","3","Fest","Frei","Frei","Stangenverschluss"]
["TEST","Frei","Typ 4","4b","3","Fest","Frei","SPD","Frei"]
["TEST","Frei","Typ 4","4b","3","Fest","Frei","SPD","Stangenverschluss"]
["TEST","Frei","Typ 4","4b","3","Frei","Frei","Frei","Frei"]
["TEST","Frei","Typ 4","4b","3","Frei","Frei","Frei","Stangenverschluss"]
["TEST","Frei","Typ 4","4b","3","Frei","Frei","SPD","Frei"]
["TEST","Frei","Typ 4","4b","3","Frei","Frei","SPD","Stangenverschluss"]
["TEST","Frei","Typ 4","4b","4","Fahrbar","Frei","Frei","Frei"]
["TEST","Frei","Typ 4","4b","4","Fahrbar","Frei","Frei","Stangenverschluss"]
["TEST","Frei","Typ 4","4b","4","Fahrbar","Frei","SPD","Frei"]
["TEST","Frei","Typ 4","4b","4","Fahrbar","Frei","SPD","Stangenverschluss"]
["TEST","Frei","Typ 4","4b","4","Fest","Frei","Frei","Frei"]
["TEST","Frei","Typ 4","4b","4","Fest","Frei","Frei","Stangenverschluss"]
["TEST","Frei","Typ 4","4b","4","Fest","Frei","SPD","Frei"]
["TEST","Frei","Typ 4","4b","4","Fest","Frei","SPD","Stangenverschluss"]
["TEST","Frei","Typ 4","4b","4","Frei","Frei","Frei","Frei"]
["TEST","Frei","Typ 4","4b","4","Frei","Frei","Frei","Stangenverschluss"]
["TEST","Frei","Typ 4","4b","4","Frei","Frei","SPD","Frei"]
["TEST","Frei","Typ 4","4b","4","Frei","Frei","SPD","Stangenverschluss"]
["TEST","Frei","Typ 4","4b","Frei","Fahrbar","Frei","Frei","Frei"]
["TEST","Frei","Typ 4","4b","Frei","Fahrbar","Frei","Frei","Stangenverschluss"]
["TEST","Frei","Typ 4","4b","Frei","Fahrbar","Frei","SPD","Frei"]
["TEST","Frei","Typ 4","4b","Frei","Fahrbar","Frei","SPD","Stangenverschluss"]
["TEST","Frei","Typ 4","4b","Frei","Fest","Frei","Frei","Frei"]
["TEST","Frei","Typ 4","4b","Frei","Fest","Frei","Frei","Stangenverschluss"]
["TEST","Frei","Typ 4","4b","Frei","Fest","Frei","SPD","Frei"]
["TEST","Frei","Typ 4","4b","Frei","Fest","Frei","SPD","Stangenverschluss"]
["TEST","Frei","Typ 4","4b","Frei","Frei","Frei","Frei","Frei"]
["TEST","Frei","Typ 4","4b","Frei","Frei","Frei","Frei","Stangenverschluss"]
["TEST","Frei","Typ 4","4b","Frei","Frei","Frei","SPD","Frei"]
["TEST","Frei","Typ 4","4b","Frei","Frei","Frei","SPD","Stangenverschluss"]
["TEST","Frei","Typ 4","Frei","3","Fahrbar","Frei","Frei","Frei"]
["TEST","Frei","Typ 4","Frei","3","Fahrbar","Frei","Frei","Stangenverschluss"]
["TEST","Frei","Typ 4","Frei","3","Fahrbar","Frei","SPD","Frei"]
["TEST","Frei","Typ 4","Frei","3","Fahrbar","Frei","SPD","Stangenverschluss"]
["TEST","Frei","Typ 4","Frei","3","Fest","Frei","Frei","Frei"]
["TEST","Frei","Typ 4","Frei","3","Fest","Frei","Frei","Stangenverschluss"]
["TEST","Frei","Typ 4","Frei","3","Fest","Frei","SPD","Frei"]
["TEST","Frei","Typ 4","Frei","3","Fest","Frei","SPD","Stangenverschluss"]
["TEST","Frei","Typ 4","Frei","3","Frei","Frei","Frei","Frei"]
["TEST","Frei","Typ 4","Frei","3","Frei","Frei","Frei","Stangenverschluss"]
["TEST","Frei","Typ 4","Frei","3","Frei","Frei","SPD","Frei"]
["TEST","Frei","Typ 4","Frei","3","Frei","Frei","SPD","Stangenverschluss"]
["TEST","Frei","Typ 4","Frei","4","Fahrbar","Frei","Frei","Frei"]
["TEST","Frei","Typ 4","Frei","4","Fahrbar","Frei","Frei","Stangenverschluss"]
["TEST","Frei","Typ 4","Frei","4","Fahrbar","Frei","SPD","Frei"]
["TEST","Frei","Typ 4","Frei","4","Fahrbar","Frei","SPD","Stangenverschluss"]
["TEST","Frei","Typ 4","Frei","4","Fest","Frei","Frei","Frei"]
["TEST","Frei","Typ 4","Frei","4","Fest","Frei","Frei","Stangenverschluss"]
["TEST","Frei","Typ 4","Frei","4","Fest","Frei","SPD","Frei"]
["TEST","Frei","Typ 4","Frei","4","Fest","Frei","SPD","Stangenverschluss"]
["TEST","Frei","Typ 4","Frei","4","Frei","Frei","Frei","Frei"]
["TEST","Frei","Typ 4","Frei","4","Frei","Frei","Frei","Stangenverschluss"]
["TEST","Frei","Typ 4","Frei","4","Frei","Frei","SPD","Frei"]
["TEST","Frei","Typ 4","Frei","4","Frei","Frei","SPD","Stangenverschluss"]
["TEST","Frei","Typ 4","Frei","Frei","Fahrbar","Frei","Frei","Frei"]
["TEST","Frei","Typ 4","Frei","Frei","Fahrbar","Frei","Frei","Stangenverschluss"]
["TEST","Frei","Typ 4","Frei","Frei","Fahrbar","Frei","SPD","Frei"]
["TEST","Frei","Typ 4","Frei","Frei","Fahrbar","Frei","SPD","Stangenverschluss"]
["TEST","Frei","Typ 4","Frei","Frei","Fest","Frei","Frei","Frei"]
["TEST","Frei","Typ 4","Frei","Frei","Fest","Frei","Frei","Stangenverschluss"]
["TEST","Frei","Typ 4","Frei","Frei","Fest","Frei","SPD","Frei"]
["TEST","Frei","Typ 4","Frei","Frei","Fest","Frei","SPD","Stangenverschluss"]
["TEST","Frei","Typ 4","Frei","Frei","Frei","Frei","Frei","Frei"]
["TEST","Frei","Typ 4","Frei","Frei","Frei","Frei","Frei","Stangenverschluss"]
["TEST","Frei","Typ 4","Frei","Frei","Frei","Frei","SPD","Frei"]
["TEST","Frei","Typ 4","Frei","Frei","Frei","Frei","SPD","Stangenverschluss"]
["TEST","Frei","Typ 4","2","3","Fahrbar","Frei","Frei","Frei"]
["TEST","Frei","Typ 4","2","3","Fahrbar","Frei","Frei","Stangenverschluss"]
["TEST","Frei","Typ 4","2","3","Fahrbar","Frei","SPD","Frei"]
["TEST","Frei","Typ 4","2","3","Fahrbar","Frei","SPD","Stangenverschluss"]
["TEST","Frei","Typ 4","2","3","Fest","Frei","Frei","Frei"]
["TEST","Frei","Typ 4","2","3","Fest","Frei","Frei","Stangenverschluss"]
["TEST","Frei","Typ 4","2","3","Fest","Frei","SPD","Frei"]
["TEST","Frei","Typ 4","2","3","Fest","Frei","SPD","Stangenverschluss"]
["TEST","Frei","Typ 4","2","3","Frei","Frei","Frei","Frei"]
["TEST","Frei","Typ 4","2","3","Frei","Frei","Frei","Stangenverschluss"]
["TEST","Frei","Typ 4","2","3","Frei","Frei","SPD","Frei"]
["TEST","Frei","Typ 4","2","3","Frei","Frei","SPD","Stangenverschluss"]
["TEST","Frei","Typ 4","2","4","Fahrbar","Frei","Frei","Frei"]
["TEST","Frei","Typ 4","2","4","Fahrbar","Frei","Frei","Stangenverschluss"]
["TEST","Frei","Typ 4","2","4","Fahrbar","Frei","SPD","Frei"]
["TEST","Frei","Typ 4","2","4","Fahrbar","Frei","SPD","Stangenverschluss"]
["TEST","Frei","Typ 4","2","4","Fest","Frei","Frei","Frei"]
["TEST","Frei","Typ 4","2","4","Fest","Frei","Frei","Stangenverschluss"]
["TEST","Frei","Typ 4","2","4","Fest","Frei","SPD","Frei"]
["TEST","Frei","Typ 4","2","4","Fest","Frei","SPD","Stangenverschluss"]
["TEST","Frei","Typ 4","2","4","Frei","Frei","Frei","Frei"]
["TEST","Frei","Typ 4","2","4","Frei","Frei","Frei","Stangenverschluss"]
["TEST","Frei","Typ 4","2","4","Frei","Frei","SPD","Frei"]
["TEST","Frei","Typ 4","2","4","Frei","Frei","SPD","Stangenverschluss"]
["TEST","Frei","Typ 4","2","Frei","Fahrbar","Frei","Frei","Frei"]
["TEST","Frei","Typ 4","2","Frei","Fahrbar","Frei","Frei","Stangenverschluss"]
["TEST","Frei","Typ 4","2","Frei","Fahrbar","Frei","SPD","Frei"]
["TEST","Frei","Typ 4","2","Frei","Fahrbar","Frei","SPD","Stangenverschluss"]
["TEST","Frei","Typ 4","2","Frei","Fest","Frei","Frei","Frei"]
["TEST","Frei","Typ 4","2","Frei","Fest","Frei","Frei","Stangenverschluss"]
["TEST","Frei","Typ 4","2","Frei","Fest","Frei","SPD","Frei"]
["TEST","Frei","Typ 4","2","Frei","Fest","Frei","SPD","Stangenverschluss"]
["TEST","Frei","Typ 4","2","Frei","Frei","Frei","Frei","Frei"]
["TEST","Frei","Typ 4","2","Frei","Frei","Frei","Frei","Stangenverschluss"]
["TEST","Frei","Typ 4","2","Frei","Frei","Frei","SPD","Frei"]
["TEST","Frei","Typ 4","2","Frei","Frei","Frei","SPD","Stangenverschluss"]
["TEST","Frei","Typ 5","4a","3","Fahrbar","Frei","Frei","Frei"]
["TEST","Frei","Typ 5","4a","3","Fahrbar","Frei","Frei","Stangenverschluss"]
["TEST","Frei","Typ 5","4a","3","Fahrbar","Frei","SPD","Frei"]
["TEST","Frei","Typ 5","4a","3","Fahrbar","Frei","SPD","Stangenverschluss"]
["TEST","Frei","Typ 5","4a","3","Fest","Frei","Frei","Frei"]
["TEST","Frei","Typ 5","4a","3","Fest","Frei","Frei","Stangenverschluss"]
["TEST","Frei","Typ 5","4a","3","Fest","Frei","SPD","Frei"]
["TEST","Frei","Typ 5","4a","3","Fest","Frei","SPD","Stangenverschluss"]
["TEST","Frei","Typ 5","4a","3","Frei","Frei","Frei","Frei"]
["TEST","Frei","Typ 5","4a","3","Frei","Frei","Frei","Stangenverschluss"]
["TEST","Frei","Typ 5","4a","3","Frei","Frei","SPD","Frei"]
["TEST","Frei","Typ 5","4a","3","Frei","Frei","SPD","Stangenverschluss"]
["TEST","Frei","Typ 5","4a","4","Fahrbar","Frei","Frei","Frei"]
["TEST","Frei","Typ 5","4a","4","Fahrbar","Frei","Frei","Stangenverschluss"]
["TEST","Frei","Typ 5","4a","4","Fahrbar","Frei","SPD","Frei"]
["TEST","Frei","Typ 5","4a","4","Fahrbar","Frei","SPD","Stangenverschluss"]
["TEST","Frei","Typ 5","4a","4","Fest","Frei","Frei","Frei"]
["TEST","Frei","Typ 5","4a","4","Fest","Frei","Frei","Stangenverschluss"]
["TEST","Frei","Typ 5","4a","4","Fest","Frei","SPD","Frei"]
["TEST","Frei","Typ 5","4a","4","Fest","Frei","SPD","Stangenverschluss"]
["TEST","Frei","Typ 5","4a","4","Frei","Frei","Frei","Frei"]
["TEST","Frei","Typ 5","4a","4","Frei","Frei","Frei","Stangenverschluss"]
["TEST","Frei","Typ 5","4a","4","Frei","Frei","SPD","Frei"]
["TEST","Frei","Typ 5","4a","4","Frei","Frei","SPD","Stangenverschluss"]
["TEST","Frei","Typ 5","4a","Frei","Fahrbar","Frei","Frei","Frei"]
["TEST","Frei","Typ 5","4a","Frei","Fahrbar","Frei","Frei","Stangenverschluss"]
["TEST","Frei","Typ 5","4a","Frei","Fahrbar","Frei","SPD","Frei"]
["TEST","Frei","Typ 5","4a","Frei","Fahrbar","Frei","SPD","Stangenverschluss"]
["TEST","Frei","Typ 5","4a","Frei","Fest","Frei","Frei","Frei"]
["TEST","Frei","Typ 5","4a","Frei","Fest","Frei","Frei","Stangenverschluss"]
["TEST","Frei","Typ 5","4a","Frei","Fest","Frei","SPD","Frei"]
["TEST","Frei","Typ 5","4a","Frei","Fest","Frei","SPD","Stangenverschluss"]
["TEST","Frei","Typ 5","4a","Frei","Frei","Frei","Frei","Frei"]
["TEST","Frei","Typ 5","4a","Frei","Frei","Frei","Frei","Stangenverschluss"]
["TEST","Frei","Typ 5","4a","Frei","Frei","Frei","SPD","Frei"]
["TEST","Frei","Typ 5","4a","Frei","Frei","Frei","SPD","Stangenverschluss"]
["TEST","Frei","Typ 5","4b","3","Fahrbar","Frei","Frei","Frei"]
["TEST","Frei","Typ 5","4b","3","Fahrbar","Frei","Frei","Stangenverschluss"]
["TEST","Frei","Typ 5","4b","3","Fahrbar","Frei","SPD","Frei"]
["TEST","Frei","Typ 5","4b","3","Fahrbar","Frei","SPD","Stangenverschluss"]
["TEST","Frei","Typ 5","4b","3","Fest","Frei","Frei","Frei"]
["TEST","Frei","Typ 5","4b","3","Fest","Frei","Frei","Stangenverschluss"]
["TEST","Frei","Typ 5","4b","3","Fest","Frei","SPD","Frei"]
["TEST","Frei","Typ 5","4b","3","Fest","Frei","SPD","Stangenverschluss"]
["TEST","Frei","Typ 5","4b","3","Frei","Frei","Frei","Frei"]
["TEST","Frei","Typ 5","4b","3","Frei","Frei","Frei","Stangenverschluss"]
["TEST","Frei","Typ 5","4b","3","Frei","Frei","SPD","Frei"]
["TEST","Frei","Typ 5","4b","3","Frei","Frei","SPD","Stangenverschluss"]
["TEST","Frei","Typ 5","4b","4","Fahrbar","Frei","Frei","Frei"]
["TEST","Frei","Typ 5","4b","4","Fahrbar","Frei","Frei","Stangenverschluss"]
["TEST","Frei","Typ 5","4b","4","Fahrbar","Frei","SPD","Frei"]
["TEST","Frei","Typ 5","4b","4","Fahrbar","Frei","SPD","Stangenverschluss"]
["TEST","Frei","Typ 5","4b","4","Fest","Frei","Frei","Frei"]
["TEST","Frei","Typ 5","4b","4","Fest","Frei","Frei","Stangenverschluss"]
["TEST","Frei","Typ 5","4b","4","Fest","Frei","SPD","Frei"]
["TEST","Frei","Typ 5","4b","4","Fest","Frei","SPD","Stangenverschluss"]
["TEST","Frei","Typ 5","4b","4","Frei","Frei","Frei","Frei"]
["TEST","Frei","Typ 5","4b","4","Frei","Frei","Frei","Stangenverschluss"]
["TEST","Frei","Typ 5","4b","4","Frei","Frei","SPD","Frei"]
["TEST","Frei","Typ 5","4b","4","Frei","Frei","SPD","Stangenverschluss"]
["TEST","Frei","Typ 5","4b","Frei","Fahrbar","Frei","Frei","Frei"]
["TEST","Frei","Typ 5","4b","Frei","Fahrbar","Frei","Frei","Stangenverschluss"]
["TEST","Frei","Typ 5","4b","Frei","Fahrbar","Frei","SPD","Frei"]
["TEST","Frei","Typ 5","4b","Frei","Fahrbar","Frei","SPD","Stangenverschluss"]
["TEST","Frei","Typ 5","4b","Frei","Fest","Frei","Frei","Frei"]
["TEST","Frei","Typ 5","4b","Frei","Fest","Frei","Frei","Stangenverschluss"]
["TEST","Frei","Typ 5","4b","Frei","Fest","Frei","SPD","Frei"]
["TEST","Frei","Typ 5","4b","Frei","Fest","Frei","SPD","Stangenverschluss"]
["TEST","Frei","Typ 5","4b","Frei","Frei","Frei","Frei","Frei"]
["TEST","Frei","Typ 5","4b","Frei","Frei","Frei","Frei","Stangenverschluss"]
["TEST","Frei","Typ 5","4b","Frei","Frei","Frei","SPD","Frei"]
["TEST","Frei","Typ 5","4b","Frei","Frei","Frei","SPD","Stangenverschluss"]
["TEST","Frei","Typ 5","Frei","3","Fahrbar","Frei","Frei","Frei"]
["TEST","Frei","Typ 5","Frei","3","Fahrbar","Frei","Frei","Stangenverschluss"]
["TEST","Frei","Typ 5","Frei","3","Fahrbar","Frei","SPD","Frei"]
["TEST","Frei","Typ 5","Frei","3","Fahrbar","Frei","SPD","Stangenverschluss"]
["TEST","Frei","Typ 5","Frei","3","Fest","Frei","Frei","Frei"]
["TEST","Frei","Typ 5","Frei","3","Fest","Frei","Frei","Stangenverschluss"]
["TEST","Frei","Typ 5","Frei","3","Fest","Frei","SPD","Frei"]
["TEST","Frei","Typ 5","Frei","3","Fest","Frei","SPD","Stangenverschluss"]
["TEST","Frei","Typ 5","Frei","3","Frei","Frei","Frei","Frei"]
["TEST","Frei","Typ 5","Frei","3","Frei","Frei","Frei","Stangenverschluss"]
["TEST","Frei","Typ 5","Frei","3","Frei","Frei","SPD","Frei"]
["TEST","Frei","Typ 5","Frei","3","Frei","Frei","SPD","Stangenverschluss"]
["TEST","Frei","Typ 5","Frei","4","Fahrbar","Frei","Frei","Frei"]
["TEST","Frei","Typ 5","Frei","4","Fahrbar","Frei","Frei","Stangenverschluss"]
["TEST","Frei","Typ 5","Frei","4","Fahrbar","Frei","SPD","Frei"]
["TEST","Frei","Typ 5","Frei","4","Fahrbar","Frei","SPD","Stangenverschluss"]
["TEST","Frei","Typ 5","Frei","4","Fest","Frei","Frei","Frei"]
["TEST","Frei","Typ 5","Frei","4","Fest","Frei","Frei","Stangenverschluss"]
["TEST","Frei","Typ 5","Frei","4","Fest","Frei","SPD","Frei"]
["TEST","Frei","Typ 5","Frei","4","Fest","Frei","SPD","Stangenverschluss"]
["TEST","Frei","Typ 5","Frei","4","Frei","Frei","Frei","Frei"]
["TEST","Frei","Typ 5","Frei","4","Frei","Frei","Frei","Stangenverschluss"]
["TEST","Frei","Typ 5","Frei","4","Frei","Frei","SPD","Frei"]
["TEST","Frei","Typ 5","Frei","4","Frei","Frei","SPD","Stangenverschluss"]
["TEST","Frei","Typ 5","Frei","Frei","Fahrbar","Frei","Frei","Frei"]
["TEST","Frei","Typ 5","Frei","Frei","Fahrbar","Frei","Frei","Stangenverschluss"]
["TEST","Frei","Typ 5","Frei","Frei","Fahrbar","Frei","SPD","Frei"]
["TEST","Frei","Typ 5","Frei","Frei","Fahrbar","Frei","SPD","Stangenverschluss"]
["TEST","Frei","Typ 5","Frei","Frei","Fest","Frei","Frei","Frei"]
["TEST","Frei","Typ 5","Frei","Frei","Fest","Frei","Frei","Stangenverschluss"]
["TEST","Frei","Typ 5","Frei","Frei","Fest","Frei","SPD","Frei"]
["TEST","Frei","Typ 5","Frei","Frei","Fest","Frei","SPD","Stangenverschluss"]
["TEST","Frei","Typ 5","Frei","Frei","Frei","Frei","Frei","Frei"]
["TEST","Frei","Typ 5","Frei","Frei","Frei","Frei","Frei","Stangenverschluss"]
["TEST","Frei","Typ 5","Frei","Frei","Frei","Frei","SPD","Frei"]
["TEST","Frei","Typ 5","Frei","Frei","Frei","Frei","SPD","Stangenverschluss"]
["TEST","Frei","Typ 5","2","3","Fahrbar","Frei","Frei","Frei"]
["TEST","Frei","Typ 5","2","3","Fahrbar","Frei","Frei","Stangenverschluss"]
["TEST","Frei","Typ 5","2","3","Fahrbar","Frei","SPD","Frei"]
["TEST","Frei","Typ 5","2","3","Fahrbar","Frei","SPD","Stangenverschluss"]
["TEST","Frei","Typ 5","2","3","Fest","Frei","Frei","Frei"]
["TEST","Frei","Typ 5","2","3","Fest","Frei","Frei","Stangenverschluss"]
["TEST","Frei","Typ 5","2","3","Fest","Frei","SPD","Frei"]
["TEST","Frei","Typ 5","2","3","Fest","Frei","SPD","Stangenverschluss"]
["TEST","Frei","Typ 5","2","3","Frei","Frei","Frei","Frei"]
["TEST","Frei","Typ 5","2","3","Frei","Frei","Frei","Stangenverschluss"]
["TEST","Frei","Typ 5","2","3","Frei","Frei","SPD","Frei"]
["TEST","Frei","Typ 5","2","3","Frei","Frei","SPD","Stangenverschluss"]
["TEST","Frei","Typ 5","2","4","Fahrbar","Frei","Frei","Frei"]
["TEST","Frei","Typ 5","2","4","Fahrbar","Frei","Frei","Stangenverschluss"]
["TEST","Frei","Typ 5","2","4","Fahrbar","Frei","SPD","Frei"]
["TEST","Frei","Typ 5","2","4","Fahrbar","Frei","SPD","Stangenverschluss"]
["TEST","Frei","Typ 5","2","4","Fest","Frei","Frei","Frei"]
["TEST","Frei","Typ 5","2","4","Fest","Frei","Frei","Stangenverschluss"]
["TEST","Frei","Typ 5","2","4","Fest","Frei","SPD","Frei"]
["TEST","Frei","Typ 5","2","4","Fest","Frei","SPD","Stangenverschluss"]
["TEST","Frei","Typ 5","2","4","Frei","Frei","Frei","Frei"]
["TEST","Frei","Typ 5","2","4","Frei","Frei","Frei","Stangenverschluss"]
["TEST","Frei","Typ 5","2","4","Frei","Frei","SPD","Frei"]
["TEST","Frei","Typ 5","2","4","Frei","Frei","SPD","Stangenverschluss"]
["TEST","Frei","Typ 5","2","Frei","Fahrbar","Frei","Frei","Frei"]
["TEST","Frei","Typ 5","2","Frei","Fahrbar","Frei","Frei","Stangenverschluss"]
["TEST","Frei","Typ 5","2","Frei","Fahrbar","Frei","SPD","Frei"]
["TEST","Frei","Typ 5","2","Frei","Fahrbar","Frei","SPD","Stangenverschluss"]
["TEST","Frei","Typ 5","2","Frei","Fest","Frei","Frei","Frei"]
["TEST","Frei","Typ 5","2","Frei","Fest","Frei","Frei","Stangenverschluss"]
["TEST","Frei","Typ 5","2","Frei","Fest","Frei","SPD","Frei"]
["TEST","Frei","Typ 5","2","Frei","Fest","Frei","SPD","Stangenverschluss"]
["TEST","Frei","Typ 5","2","Frei","Frei","Frei","Frei","Frei"]
["TEST","Frei","Typ 5","2","Frei","Frei","Frei","Frei","Stangenverschluss"]
["TEST","Frei","Typ 5","2","Frei","Frei","Frei","SPD","Frei"]
["TEST","Frei","Typ 5","2","Frei","Frei","Frei","SPD","Stangenverschluss"]
["TEST","Frei","Typ 2","4a","3","Fahrbar","Frei","Frei","Frei"]
["TEST","Frei","Typ 2","4a","3","Fahrbar","Frei","Frei","Stangenverschluss"]
["TEST","Frei","Typ 2","4a","3","Fahrbar","Frei","SPD","Frei"]
["TEST","Frei","Typ 2","4a","3","Fahrbar","Frei","SPD","Stangenverschluss"]
["TEST","Frei","Typ 2","4a","3","Fest","Frei","Frei","Frei"]
["TEST","Frei","Typ 2","4a","3","Fest","Frei","Frei","Stangenverschluss"]
["TEST","Frei","Typ 2","4a","3","Fest","Frei","SPD","Frei"]
["TEST","Frei","Typ 2","4a","3","Fest","Frei","SPD","Stangenverschluss"]
["TEST","Frei","Typ 2","4a","3","Frei","Frei","Frei","Frei"]
["TEST","Frei","Typ 2","4a","3","Frei","Frei","Frei","Stangenverschluss"]
["TEST","Frei","Typ 2","4a","3","Frei","Frei","SPD","Frei"]
["TEST","Frei","Typ 2","4a","3","Frei","Frei","SPD","Stangenverschluss"]
["TEST","Frei","Typ 2","4a","4","Fahrbar","Frei","Frei","Frei"]
["TEST","Frei","Typ 2","4a","4","Fahrbar","Frei","Frei","Stangenverschluss"]
["TEST","Frei","Typ 2","4a","4","Fahrbar","Frei","SPD","Frei"]
["TEST","Frei","Typ 2","4a","4","Fahrbar","Frei","SPD","Stangenverschluss"]
["TEST","Frei","Typ 2","4a","4","Fest","Frei","Frei","Frei"]
["TEST","Frei","Typ 2","4a","4","Fest","Frei","Frei","Stangenverschluss"]
["TEST","Frei","Typ 2","4a","4","Fest","Frei","SPD","Frei"]
["TEST","Frei","Typ 2","4a","4","Fest","Frei","SPD","Stangenverschluss"]
["TEST","Frei","Typ 2","4a","4","Frei","Frei","Frei","Frei"]
["TEST","Frei","Typ 2","4a","4","Frei","Frei","Frei","Stangenverschluss"]
["TEST","Frei","Typ 2","4a","4","Frei","Frei","SPD","Frei"]
["TEST","Frei","Typ 2","4a","4","Frei","Frei","SPD","Stangenverschluss"]
["TEST","Frei","Typ 2","4a","Frei","Fahrbar","Frei","Frei","Frei"]
["TEST","Frei","Typ 2","4a","Frei","Fahrbar","Frei","Frei","Stangenverschluss"]
["TEST","Frei","Typ 2","4a","Frei","Fahrbar","Frei","SPD","Frei"]
["TEST","Frei","Typ 2","4a","Frei","Fahrbar","Frei","SPD","Stangenverschluss"]
["TEST","Frei","Typ 2","4a","Frei","Fest","Frei","Frei","Frei"]
["TEST","Frei","Typ 2","4a","Frei","Fest","Frei","Frei","Stangenverschluss"]
["TEST","Frei","Typ 2","4a","Frei","Fest","Frei","SPD","Frei"]
["TEST","Frei","Typ 2","4a","Frei","Fest","Frei","SPD","Stangenverschluss"]
["TEST","Frei","Typ 2","4a","Frei","Frei","Frei","Frei","Frei"]
["TEST","Frei","Typ 2","4a","Frei","Frei","Frei","Frei","Stangenverschluss"]
["TEST","Frei","Typ 2","4a","Frei","Frei","Frei","SPD","Frei"]
["TEST","Frei","Typ 2","4a","Frei","Frei","Frei","SPD","Stangenverschluss"]
["TEST","Frei","Typ 2","4b","3","Fahrbar","Frei","Frei","Frei"]
["TEST","Frei","Typ 2","4b","3","Fahrbar","Frei","Frei","Stangenverschluss"]
["TEST","Frei","Typ 2","4b","3","Fahrbar","Frei","SPD","Frei"]
["TEST","Frei","Typ 2","4b","3","Fahrbar","Frei","SPD","Stangenverschluss"]
["TEST","Frei","Typ 2","4b","3","Fest","Frei","Frei","Frei"]
["TEST","Frei","Typ 2","4b","3","Fest","Frei","Frei","Stangenverschluss"]
["TEST","Frei","Typ 2","4b","3","Fest","Frei","SPD","Frei"]
["TEST","Frei","Typ 2","4b","3","Fest","Frei","SPD","Stangenverschluss"]
["TEST","Frei","Typ 2","4b","3","Frei","Frei","Frei","Frei"]
["TEST","Frei","Typ 2","4b","3","Frei","Frei","Frei","Stangenverschluss"]
["TEST","Frei","Typ 2","4b","3","Frei","Frei","SPD","Frei"]
["TEST","Frei","Typ 2","4b","3","Frei","Frei","SPD","Stangenverschluss"]
["TEST","Frei","Typ 2","4b","4","Fahrbar","Frei","Frei","Frei"]
["TEST","Frei","Typ 2","4b","4","Fahrbar","Frei","Frei","Stangenverschluss"]
["TEST","Frei","Typ 2","4b","4","Fahrbar","Frei","SPD","Frei"]
["TEST","Frei","Typ 2","4b","4","Fahrbar","Frei","SPD","Stangenverschluss"]
["TEST","Frei","Typ 2","4b","4","Fest","Frei","Frei","Frei"]
["TEST","Frei","Typ 2","4b","4","Fest","Frei","Frei","Stangenverschluss"]
["TEST","Frei","Typ 2","4b","4","Fest","Frei","SPD","Frei"]
["TEST","Frei","Typ 2","4b","4","Fest","Frei","SPD","Stangenverschluss"]
["TEST","Frei","Typ 2","4b","4","Frei","Frei","Frei","Frei"]
["TEST","Frei","Typ 2","4b","4","Frei","Frei","Frei","Stangenverschluss"]
["TEST","Frei","Typ 2","4b","4","Frei","Frei","SPD","Frei"]
["TEST","Frei","Typ 2","4b","4","Frei","Frei","SPD","Stangenverschluss"]
["TEST","Frei","Typ 2","4b","Frei","Fahrbar","Frei","Frei","Frei"]
["TEST","Frei","Typ 2","4b","Frei","Fahrbar","Frei","Frei","Stangenverschluss"]
["TEST","Frei","Typ 2","4b","Frei","Fahrbar","Frei","SPD","Frei"]
["TEST","Frei","Typ 2","4b","Frei","Fahrbar","Frei","SPD","Stangenverschluss"]
["TEST","Frei","Typ 2","4b","Frei","Fest","Frei","Frei","Frei"]
["TEST","Frei","Typ 2","4b","Frei","Fest","Frei","Frei","Stangenverschluss"]
["TEST","Frei","Typ 2","4b","Frei","Fest","Frei","SPD","Frei"]
["TEST","Frei","Typ 2","4b","Frei","Fest","Frei","SPD","Stangenverschluss"]
["TEST","Frei","Typ 2","4b","Frei","Frei","Frei","Frei","Frei"]
["TEST","Frei","Typ 2","4b","Frei","Frei","Frei","Frei","Stangenverschluss"]
["TEST","Frei","Typ 2","4b","Frei","Frei","Frei","SPD","Frei"]
["TEST","Frei","Typ 2","4b","Frei","Frei","Frei","SPD","Stangenverschluss"]
["TEST","Frei","Typ 2","Frei","3","Fahrbar","Frei","Frei","Frei"]
["TEST","Frei","Typ 2","Frei","3","Fahrbar","Frei","Frei","Stangenverschluss"]
["TEST","Frei","Typ 2","Frei","3","Fahrbar","Frei","SPD","Frei"]
["TEST","Frei","Typ 2","Frei","3","Fahrbar","Frei","SPD","Stangenverschluss"]
["TEST","Frei","Typ 2","Frei","3","Fest","Frei","Frei","Frei"]
["TEST","Frei","Typ 2","Frei","3","Fest","Frei","Frei","Stangenverschluss"]
["TEST","Frei","Typ 2","Frei","3","Fest","Frei","SPD","Frei"]
["TEST","Frei","Typ 2","Frei","3","Fest","Frei","SPD","Stangenverschluss"]
["TEST","Frei","Typ 2","Frei","3","Frei","Frei","Frei","Frei"]
["TEST","Frei","Typ 2","Frei","3","Frei","Frei","Frei","Stangenverschluss"]
["TEST","Frei","Typ 2","Frei","3","Frei","Frei","SPD","Frei"]
["TEST","Frei","Typ 2","Frei","3","Frei","Frei","SPD","Stangenverschluss"]
["TEST","Frei","Typ 2","Frei","4","Fahrbar","Frei","Frei","Frei"]
["TEST","Frei","Typ 2","Frei","4","Fahrbar","Frei","Frei","Stangenverschluss"]
["TEST","Frei","Typ 2","Frei","4","Fahrbar","Frei","SPD","Frei"]
["TEST","Frei","Typ 2","Frei","4","Fahrbar","Frei","SPD","Stangenverschluss"]
["TEST","Frei","Typ 2","Frei","4","Fest","Frei","Frei","Frei"]
["TEST","Frei","Typ 2","Frei","4","Fest","Frei","Frei","Stangenverschluss"]
["TEST","Frei","Typ 2","Frei","4","Fest","Frei","SPD","Frei"]
["TEST","Frei","Typ 2","Frei","4","Fest","Frei","SPD","Stangenverschluss"]
["TEST","Frei","Typ 2","Frei","4","Frei","Frei","Frei","Frei"]
["TEST","Frei","Typ 2","Frei","4","Frei","Frei","Frei","Stangenverschluss"]
["TEST","Frei","Typ 2","Frei","4","Frei","Frei","SPD","Frei"]
["TEST","Frei","Typ 2","Frei","4","Frei","Frei","SPD","Stangenverschluss"]
["TEST","Frei","Typ 2","Frei","Frei","Fahrbar","Frei","Frei","Frei"]
["TEST","Frei","Typ 2","Frei","Frei","Fahrbar","Frei","Frei","Stangenverschluss"]
["TEST","Frei","Typ 2","Frei","Frei","Fahrbar","Frei","SPD","Frei"]
["TEST","Frei","Typ 2","Frei","Frei","Fahrbar","Frei","SPD","Stangenverschluss"]
["TEST","Frei","Typ 2","Frei","Frei","Fest","Frei","Frei","Frei"]
["TEST","Frei","Typ 2","Frei","Frei","Fest","Frei","Frei","Stangenverschluss"]
["TEST","Frei","Typ 2","Frei","Frei","Fest","Frei","SPD","Frei"]
["TEST","Frei","Typ 2","Frei","Frei","Fest","Frei","SPD","Stangenverschluss"]
["TEST","Frei","Typ 2","Frei","Frei","Frei","Frei","Frei","Frei"]
["TEST","Frei","Typ 2","Frei","Frei","Frei","Frei","Frei","Stangenverschluss"]
["TEST","Frei","Typ 2","Frei","Frei","Frei","Frei","SPD","Frei"]
["TEST","Frei","Typ 2","Frei","Frei","Frei","Frei","SPD","Stangenverschluss"]
["TEST","Frei","Typ 2","2","3","Fahrbar","Frei","Frei","Frei"]
["TEST","Frei","Typ 2","2","3","Fahrbar","Frei","Frei","Stangenverschluss"]
["TEST","Frei","Typ 2","2","3","Fahrbar","Frei","SPD","Frei"]
["TEST","Frei","Typ 2","2","3","Fahrbar","Frei","SPD","Stangenverschluss"]
["TEST","Frei","Typ 2","2","3","Fest","Frei","Frei","Frei"]
["TEST","Frei","Typ 2","2","3","Fest","Frei","Frei","Stangenverschluss"]
["TEST","Frei","Typ 2","2","3","Fest","Frei","SPD","Frei"]
["TEST","Frei","Typ 2","2","3","Fest","Frei","SPD","Stangenverschluss"]
["TEST","Frei","Typ 2","2","3","Frei","Frei","Frei","Frei"]
["TEST","Frei","Typ 2","2","3","Frei","Frei","Frei","Stangenverschluss"]
["TEST","Frei","Typ 2","2","3","Frei","Frei","SPD","Frei"]
["TEST","Frei","Typ 2","2","3","Frei","Frei","SPD","Stangenverschluss"]
["TEST","Frei","Typ 2","2","4","Fahrbar","Frei","Frei","Frei"]
["TEST","Frei","Typ 2","2","4","Fahrbar","Frei","Frei","Stangenverschluss"]
["TEST","Frei","Typ 2","2","4","Fahrbar","Frei","SPD","Frei"]
["TEST","Frei","Typ 2","2","4","Fahrbar","Frei","SPD","Stangenverschluss"]
["TEST","Frei","Typ 2","2","4","Fest","Frei","Frei","Frei"]
["TEST","Frei","Typ 2","2","4","Fest","Frei","Frei","Stangenverschluss"]
["TEST","Frei","Typ 2","2","4","Fest","Frei","SPD","Frei"]
["TEST","Frei","Typ 2","2","4","Fest","Frei","SPD","Stangenverschluss"]
["TEST","Frei","Typ 2","2","4","Frei","Frei","Frei","Frei"]
["TEST","Frei","Typ 2","2","4","Frei","Frei","Frei","Stangenverschluss"]
["TEST","Frei","Typ 2","2","4","Frei","Frei","SPD","Frei"]
["TEST","Frei","Typ 2","2","4","Frei","Frei","SPD","Stangenverschluss"]
["TEST","Frei","Typ 2","2","Frei","Fahrbar","Frei","Frei","Frei"]
["TEST","Frei","Typ 2","2","Frei","Fahrbar","Frei","Frei","Stangenverschluss"]
["TEST","Frei","Typ 2","2","Frei","Fahrbar","Frei","SPD","Frei"]
["TEST","Frei","Typ 2","2","Frei","Fahrbar","Frei","SPD","Stangenverschluss"]
["TEST","Frei","Typ 2","2","Frei","Fest","Frei","Frei","Frei"]
["TEST","Frei","Typ 2","2","Frei","Fest","Frei","Frei","Stangenverschluss"]
["TEST","Frei","Typ 2","2","Frei","Fest","Frei","SPD","Frei"]
["TEST","Frei","Typ 2","2","Frei","Fest","Frei","SPD","Stangenverschluss"]
["TEST","Frei","Typ 2","2","Frei","Frei","Frei","Frei","Frei"]
["TEST","Frei","Typ 2","2","Frei","Frei","Frei","Frei","Stangenverschluss"]
["TEST","Frei","Typ 2","2","Frei","Frei","Frei","SPD","Frei"]
["TEST","Frei","Typ 2","2","Frei","Frei","Frei","SPD","Stangenverschluss"]
["TEST 2","Frei","Frei","4b","Frei","Fest","Frei","Frei","Frei"]
["TEST 2","Frei","Frei","4b","Frei","Fest","Frei","SPD","Frei"]
["TEST 2","Frei","Frei","4b","Frei","Fahrbar","Frei","Frei","Frei"]
["TEST 2","Frei","Frei","4b","Frei","Fahrbar","Frei","SPD","Frei"]
["TEST 2","Frei","Frei","4b","Frei","Frei","Frei","Frei","Frei"]
["TEST 2","Frei","Frei","4b","Frei","Frei","Frei","SPD","Frei"]
["TEST 2","Frei","Frei","4b","4","Fest","Frei","Frei","Frei"]
["TEST 2","Frei","Frei","4b","4","Fest","Frei","SPD","Frei"]
["TEST 2","Frei","Frei","4b","4","Fahrbar","Frei","Frei","Frei"]
["TEST 2","Frei","Frei","4b","4","Fahrbar","Frei","SPD","Frei"]
["TEST 2","Frei","Frei","4b","4","Frei","Frei","Frei","Frei"]
["TEST 2","Frei","Frei","4b","4","Frei","Frei","SPD","Frei"]
["TEST 2","Frei","Frei","2","Frei","Fest","Frei","Frei","Frei"]
["TEST 2","Frei","Frei","2","Frei","Fest","Frei","SPD","Frei"]
["TEST 2","Frei","Frei","2","Frei","Fahrbar","Frei","Frei","Frei"]
["TEST 2","Frei","Frei","2","Frei","Fahrbar","Frei","SPD","Frei"]
["TEST 2","Frei","Frei","2","Frei","Frei","Frei","Frei","Frei"]
["TEST 2","Frei","Frei","2","Frei","Frei","Frei","SPD","Frei"]
["TEST 2","Frei","Frei","2","4","Fest","Frei","Frei","Frei"]
["TEST 2","Frei","Frei","2","4","Fest","Frei","SPD","Frei"]
["TEST 2","Frei","Frei","2","4","Fahrbar","Frei","Frei","Frei"]
["TEST 2","Frei","Frei","2","4","Fahrbar","Frei","SPD","Frei"]
["TEST 2","Frei","Frei","2","4","Frei","Frei","Frei","Frei"]
["TEST 2","Frei","Frei","2","4","Frei","Frei","SPD","Frei"]
["TEST 2","Frei","Frei","Frei","Frei","Fest","Frei","Frei","Frei"]
["TEST 2","Frei","Frei","Frei","Frei","Fest","Frei","SPD","Frei"]
["TEST 2","Frei","Frei","Frei","Frei","Fahrbar","Frei","Frei","Frei"]
["TEST 2","Frei","Frei","Frei","Frei","Fahrbar","Frei","SPD","Frei"]
["TEST 2","Frei","Frei","Frei","Frei","Frei","Frei","Frei","Frei"]
["TEST 2","Frei","Frei","Frei","Frei","Frei","Frei","SPD","Frei"]
["TEST 2","Frei","Frei","Frei","4","Fest","Frei","Frei","Frei"]
["TEST 2","Frei","Frei","Frei","4","Fest","Frei","SPD","Frei"]
["TEST 2","Frei","Frei","Frei","4","Fahrbar","Frei","Frei","Frei"]
["TEST 2","Frei","Frei","Frei","4","Fahrbar","Frei","SPD","Frei"]
["TEST 2","Frei","Frei","Frei","4","Frei","Frei","Frei","Frei"]
["TEST 2","Frei","Frei","Frei","4","Frei","Frei","SPD","Frei"]
["TEST 2","Frei","Typ 1","4b","Frei","Fest","Frei","Frei","Frei"]
["TEST 2","Frei","Typ 1","4b","Frei","Fest","Frei","SPD","Frei"]
["TEST 2","Frei","Typ 1","4b","Frei","Fahrbar","Frei","Frei","Frei"]
["TEST 2","Frei","Typ 1","4b","Frei","Fahrbar","Frei","SPD","Frei"]
["TEST 2","Frei","Typ 1","4b","Frei","Frei","Frei","Frei","Frei"]
["TEST 2","Frei","Typ 1","4b","Frei","Frei","Frei","SPD","Frei"]
["TEST 2","Frei","Typ 1","4b","4","Fest","Frei","Frei","Frei"]
["TEST 2","Frei","Typ 1","4b","4","Fest","Frei","SPD","Frei"]
["TEST 2","Frei","Typ 1","4b","4","Fahrbar","Frei","Frei","Frei"]
["TEST 2","Frei","Typ 1","4b","4","Fahrbar","Frei","SPD","Frei"]
["TEST 2","Frei","Typ 1","4b","4","Frei","Frei","Frei","Frei"]
["TEST 2","Frei","Typ 1","4b","4","Frei","Frei","SPD","Frei"]
["TEST 2","Frei","Typ 1","2","Frei","Fest","Frei","Frei","Frei"]
["TEST 2","Frei","Typ 1","2","Frei","Fest","Frei","SPD","Frei"]
["TEST 2","Frei","Typ 1","2","Frei","Fahrbar","Frei","Frei","Frei"]
["TEST 2","Frei","Typ 1","2","Frei","Fahrbar","Frei","SPD","Frei"]
["TEST 2","Frei","Typ 1","2","Frei","Frei","Frei","Frei","Frei"]
["TEST 2","Frei","Typ 1","2","Frei","Frei","Frei","SPD","Frei"]
["TEST 2","Frei","Typ 1","2","4","Fest","Frei","Frei","Frei"]
["TEST 2","Frei","Typ 1","2","4","Fest","Frei","SPD","Frei"]
["TEST 2","Frei","Typ 1","2","4","Fahrbar","Frei","Frei","Frei"]
["TEST 2","Frei","Typ 1","2","4","Fahrbar","Frei","SPD","Frei"]
["TEST 2","Frei","Typ 1","2","4","Frei","Frei","Frei","Frei"]
["TEST 2","Frei","Typ 1","2","4","Frei","Frei","SPD","Frei"]
["TEST 2","Frei","Typ 1","Frei","Frei","Fest","Frei","Frei","Frei"]
["TEST 2","Frei","Typ 1","Frei","Frei","Fest","Frei","SPD","Frei"]
["TEST 2","Frei","Typ 1","Frei","Frei","Fahrbar","Frei","Frei","Frei"]
["TEST 2","Frei","Typ 1","Frei","Frei","Fahrbar","Frei","SPD","Frei"]
["TEST 2","Frei","Typ 1","Frei","Frei","Frei","Frei","Frei","Frei"]
["TEST 2","Frei","Typ 1","Frei","Frei","Frei","Frei","SPD","Frei"]
["TEST 2","Frei","Typ 1","Frei","4","Fest","Frei","Frei","Frei"]
["TEST 2","Frei","Typ 1","Frei","4","Fest","Frei","SPD","Frei"]
["TEST 2","Frei","Typ 1","Frei","4","Fahrbar","Frei","Frei","Frei"]
["TEST 2","Frei","Typ 1","Frei","4","Fahrbar","Frei","SPD","Frei"]
["TEST 2","Frei","Typ 1","Frei","4","Frei","Frei","Frei","Frei"]
["TEST 2","Frei","Typ 1","Frei","4","Frei","Frei","SPD","Frei"]
["TEST 2","Frei","Typ 2","4b","Frei","Fest","Frei","Frei","Frei"]
["TEST 2","Frei","Typ 2","4b","Frei","Fest","Frei","SPD","Frei"]
["TEST 2","Frei","Typ 2","4b","Frei","Fahrbar","Frei","Frei","Frei"]
["TEST 2","Frei","Typ 2","4b","Frei","Fahrbar","Frei","SPD","Frei"]
["TEST 2","Frei","Typ 2","4b","Frei","Frei","Frei","Frei","Frei"]
["TEST 2","Frei","Typ 2","4b","Frei","Frei","Frei","SPD","Frei"]
["TEST 2","Frei","Typ 2","4b","4","Fest","Frei","Frei","Frei"]
["TEST 2","Frei","Typ 2","4b","4","Fest","Frei","SPD","Frei"]
["TEST 2","Frei","Typ 2","4b","4","Fahrbar","Frei","Frei","Frei"]
["TEST 2","Frei","Typ 2","4b","4","Fahrbar","Frei","SPD","Frei"]
["TEST 2","Frei","Typ 2","4b","4","Frei","Frei","Frei","Frei"]
["TEST 2","Frei","Typ 2","4b","4","Frei","Frei","SPD","Frei"]
["TEST 2","Frei","Typ 2","2","Frei","Fest","Frei","Frei","Frei"]
["TEST 2","Frei","Typ 2","2","Frei","Fest","Frei","SPD","Frei"]
["TEST 2","Frei","Typ 2","2","Frei","Fahrbar","Frei","Frei","Frei"]
["TEST 2","Frei","Typ 2","2","Frei","Fahrbar","Frei","SPD","Frei"]
["TEST 2","Frei","Typ 2","2","Frei","Frei","Frei","Frei","Frei"]
["TEST 2","Frei","Typ 2","2","Frei","Frei","Frei","SPD","Frei"]
["TEST 2","Frei","Typ 2","2","4","Fest","Frei","Frei","Frei"]
["TEST 2","Frei","Typ 2","2","4","Fest","Frei","SPD","Frei"]
["TEST 2","Frei","Typ 2","2","4","Fahrbar","Frei","Frei","Frei"]
["TEST 2","Frei","Typ 2","2","4","Fahrbar","Frei","SPD","Frei"]
["TEST 2","Frei","Typ 2","2","4","Frei","Frei","Frei","Frei"]
["TEST 2","Frei","Typ 2","2","4","Frei","Frei","SPD","Frei"]
["TEST 2","Frei","Typ 2","Frei","Frei","Fest","Frei","Frei","Frei"]
["TEST 2","Frei","Typ 2","Frei","Frei","Fest","Frei","SPD","Frei"]
["TEST 2","Frei","Typ 2","Frei","Frei","Fahrbar","Frei","Frei","Frei"]
["TEST 2","Frei","Typ 2","Frei","Frei","Fahrbar","Frei","SPD","Frei"]
["TEST 2","Frei","Typ 2","Frei","Frei","Frei","Frei","Frei","Frei"]
["TEST 2","Frei","Typ 2","Frei","Frei","Frei","Frei","SPD","Frei"]
["TEST 2","Frei","Typ 2","Frei","4","Fest","Frei","Frei","Frei"]
["TEST 2","Frei","Typ 2","Frei","4","Fest","Frei","SPD","Frei"]
["TEST 2","Frei","Typ 2","Frei","4","Fahrbar","Frei","Frei","Frei"]
["TEST 2","Frei","Typ 2","Frei","4","Fahrbar","Frei","SPD","Frei"]
["TEST 2","Frei","Typ 2","Frei","4","Frei","Frei","Frei","Frei"]
["TEST 2","Frei","Typ 2","Frei","4","Frei","Frei","SPD","Frei"]